{"text_format":"1","workbook":"xlsx","n_sheets":7,"sheets":["تفاصيل الحجز","حجوزات الملاعب","طباعة الحجز","سجل الفواتير","الفاتورة","القوائم","ورقة1"],"not_rendered":{"charts":0,"images":2,"macros":1,"external_links":0,"defined_names":1,"comments":0,"pivot_tables":0},"unopened":[],"bounds":{"document_bytes":16777216,"sheet_cells":100000,"rows_first":2000,"rows_last":500,"rows_between":2000,"halvings":0,"cell_chars":16384,"cell_head_chars":4096},"cells_cut":0,"cells_raw":0,"read":"whole","date_system":"1900"}

{"sheet":"تفاصيل الحجز","index":0,"n_rows":1985,"n_cols":7,"rows_kept":1985,"cut":false,"hidden":false,"merged":[[0,7,0,20]]}
["اسم المشترك ","رقم الجوال","نوع الاشتراك ","الملعب","تاريخ االحجز","يوم الحجز ","وقت الحجز "]
[null,null,null,null,null,{"$f":"IF(E2=\"\",\"\",TEXT(E2,\"ddd\"))","v":""}]
[null,null,null,null,null,{"$f":"IF(E3=\"\",\"\",TEXT(E3,\"ddd\"))","v":""}]
[null,null,null,null,null,""]
[null,null,null,null,null,""]
[null,null,null,null,null,{"$f":"IF(E6=\"\",\"\",TEXT(E6,\"ddd\"))","v":""}]
[null,null,null,null,null,""]
[null,null,null,null,null,""]
[null,null,null,null,null,""]
[null,null,null,null,null,""]
[null,null,null,null,null,""]
[null,null,null,null,null,""]
[null,null,null,null,null,""]
[null,null,null,null,null,""]
[null,null,null,null,null,""]
[null,null,null,null,null,""]
[null,null,null,null,null,""]
[null,null,null,null,null,""]
[null,null,null,null,null,""]
[null,null,null,null,null,""]
[null,null,null,null,null,""]
[null,null,null,null,null,""]
[null,null,null,null,null,""]
[null,null,null,null,null,""]
[null,null,null,null,null,""]
[null,null,null,null,null,""]
[null,null,null,null,null,""]
[null,null,null,null,null,""]
[null,null,null,null,null,""]
[null,null,null,null,null,""]
[null,null,null,null,null,""]
[null,null,null,null,null,""]
[null,null,null,null,null,""]
[null,null,null,null,null,""]
[null,null,null,null,null,""]
[null,null,null,null,null,""]
[null,null,null,null,null,""]
[null,null,null,null,null,""]
[null,null,null,null,null,""]
[null,null,null,null,null,""]
[null,null,null,null,null,""]
[null,null,null,null,null,""]
[null,null,null,null,null,""]
[null,null,null,null,null,""]
[null,null,null,null,null,""]
[null,null,null,null,null,""]
[null,null,null,null,null,""]
[null,null,null,null,null,""]
[null,null,null,null,null,""]
[null,null,null,null,null,""]
[null,null,null,null,null,""]
[null,null,null,null,null,""]
[null,null,null,null,null,""]
[null,null,null,null,null,""]
[null,null,null,null,null,""]
[null,null,null,null,null,""]
[null,null,null,null,null,""]
[null,null,null,null,null,""]
[null,null,null,null,null,""]
[null,null,null,null,null,""]
[null,null,null,null,null,""]
[null,null,null,null,null,""]
[null,null,null,null,null,""]
[null,null,null,null,null,""]
[null,null,null,null,null,""]
[null,null,null,null,null,""]
[null,null,null,null,null,{"$f":"IF(E67=\"\",\"\",TEXT(E67,\"ddd\"))","v":""}]
[null,null,null,null,null,""]
[null,null,null,null,null,""]
[null,null,null,null,null,""]
[null,null,null,null,null,""]
[null,null,null,null,null,""]
[null,null,null,null,null,""]
[null,null,null,null,null,""]
[null,null,null,null,null,""]
[null,null,null,null,null,""]
[null,null,null,null,null,""]
[null,null,null,null,null,""]
[null,null,null,null,null,""]
[null,null,null,null,null,""]
[null,null,null,null,null,""]
[null,null,null,null,null,""]
[null,null,null,null,null,""]
[null,null,null,null,null,""]
[null,null,null,null,null,""]
[null,null,null,null,null,""]
[null,null,null,null,null,""]
[null,null,null,null,null,""]
[null,null,null,null,null,""]
[null,null,null,null,null,""]
[null,null,null,null,null,""]
[null,null,null,null,null,""]
[null,null,null,null,null,""]
[null,null,null,null,null,""]
[null,null,null,null,null,""]
[null,null,null,null,null,""]
[null,null,null,null,null,""]
[null,null,null,null,null,""]
[null,null,null,null,null,""]
[null,null,null,null,null,""]
[null,null,null,null,null,""]
[null,null,null,null,null,""]
[null,null,null,null,null,""]
[null,null,null,null,null,""]
[null,null,null,null,null,""]
[null,null,null,null,null,""]
[null,null,null,null,null,""]
[null,null,null,null,null,""]
[null,null,null,null,null,""]
[null,null,null,null,null,""]
[null,null,null,null,null,""]
[null,null,null,null,null,""]
[null,null,null,null,null,""]
[null,null,null,null,null,""]
[null,null,null,null,null,""]
[null,null,null,null,null,""]
[null,null,null,null,null,""]
[null,null,null,null,null,""]
[null,null,null,null,null,""]
[null,null,null,null,null,""]
[null,null,null,null,null,""]
[null,null,null,null,null,""]
[null,null,null,null,null,""]
[null,null,null,null,null,""]
[null,null,null,null,null,""]
[null,null,null,null,null,""]
[null,null,null,null,null,""]
[null,null,null,null,null,""]
[null,null,null,null,null,""]
[null,null,null,null,null,""]
[null,null,null,null,null,{"$f":"IF(E131=\"\",\"\",TEXT(E131,\"ddd\"))","v":""}]
[null,null,null,null,null,""]
[null,null,null,null,null,""]
[null,null,null,null,null,""]
[null,null,null,null,null,""]
[null,null,null,null,null,""]
[null,null,null,null,null,""]
[null,null,null,null,null,""]
[null,null,null,null,null,""]
[null,null,null,null,null,""]
[null,null,null,null,null,""]
[null,null,null,null,null,""]
[null,null,null,null,null,""]
[null,null,null,null,null,""]
[null,null,null,null,null,""]
[null,null,null,null,null,""]
[null,null,null,null,null,""]
[null,null,null,null,null,""]
[null,null,null,null,null,""]
[null,null,null,null,null,""]
[null,null,null,null,null,""]
[null,null,null,null,null,""]
[null,null,null,null,null,""]
[null,null,null,null,null,""]
[null,null,null,null,null,""]
[null,null,null,null,null,""]
[null,null,null,null,null,""]
[null,null,null,null,null,""]
[null,null,null,null,null,""]
[null,null,null,null,null,""]
[null,null,null,null,null,""]
[null,null,null,null,null,""]
[null,null,null,null,null,""]
[null,null,null,null,null,""]
[null,null,null,null,null,""]
[null,null,null,null,null,""]
[null,null,null,null,null,""]
[null,null,null,null,null,""]
[null,null,null,null,null,""]
[null,null,null,null,null,""]
[null,null,null,null,null,""]
[null,null,null,null,null,""]
[null,null,null,null,null,""]
[null,null,null,null,null,""]
[null,null,null,null,null,""]
[null,null,null,null,null,""]
[null,null,null,null,null,""]
[null,null,null,null,null,""]
[null,null,null,null,null,""]
[null,null,null,null,null,""]
[null,null,null,null,null,""]
[null,null,null,null,null,""]
[null,null,null,null,null,""]
[null,null,null,null,null,""]
[null,null,null,null,null,""]
[null,null,null,null,null,""]
[null,null,null,null,null,""]
[null,null,null,null,null,""]
[null,null,null,null,null,""]
[null,null,null,null,null,""]
[null,null,null,null,null,""]
[null,null,null,null,null,""]
[null,null,null,null,null,""]
[null,null,null,null,null,""]
[null,null,null,null,null,{"$f":"IF(E195=\"\",\"\",TEXT(E195,\"ddd\"))","v":""}]
[null,null,null,null,null,""]
[null,null,null,null,null,""]
[null,null,null,null,null,""]
[null,null,null,null,null,""]
[null,null,null,null,null,""]
[null,null,null,null,null,""]
[null,null,null,null,null,""]
[null,null,null,null,null,""]
[null,null,null,null,null,""]
[null,null,null,null,null,""]
[null,null,null,null,null,""]
[null,null,null,null,null,""]
[null,null,null,null,null,""]
[null,null,null,null,null,""]
[null,null,null,null,null,""]
[null,null,null,null,null,""]
[null,null,null,null,null,""]
[null,null,null,null,null,""]
[null,null,null,null,null,""]
[null,null,null,null,null,""]
[null,null,null,null,null,""]
[null,null,null,null,null,""]
[null,null,null,null,null,""]
[null,null,null,null,null,""]
[null,null,null,null,null,""]
[null,null,null,null,null,""]
[null,null,null,null,null,""]
[null,null,null,null,null,""]
[null,null,null,null,null,""]
[null,null,null,null,null,""]
[null,null,null,null,null,""]
[null,null,null,null,null,""]
[null,null,null,null,null,""]
[null,null,null,null,null,""]
[null,null,null,null,null,""]
[null,null,null,null,null,""]
[null,null,null,null,null,""]
[null,null,null,null,null,""]
[null,null,null,null,null,""]
[null,null,null,null,null,""]
[null,null,null,null,null,""]
[null,null,null,null,null,""]
[null,null,null,null,null,""]
[null,null,null,null,null,""]
[null,null,null,null,null,""]
[null,null,null,null,null,""]
[null,null,null,null,null,""]
[null,null,null,null,null,""]
[null,null,null,null,null,""]
[null,null,null,null,null,""]
[null,null,null,null,null,""]
[null,null,null,null,null,""]
[null,null,null,null,null,""]
[null,null,null,null,null,""]
[null,null,null,null,null,""]
[null,null,null,null,null,""]
[null,null,null,null,null,""]
[null,null,null,null,null,""]
[null,null,null,null,null,""]
[null,null,null,null,null,""]
[null,null,null,null,null,""]
[null,null,null,null,null,""]
[null,null,null,null,null,""]
[null,null,null,null,null,{"$f":"IF(E259=\"\",\"\",TEXT(E259,\"ddd\"))","v":""}]
[null,null,null,null,null,""]
[null,null,null,null,null,""]
[null,null,null,null,null,""]
[null,null,null,null,null,""]
[null,null,null,null,null,""]
[null,null,null,null,null,""]
[null,null,null,null,null,""]
[null,null,null,null,null,""]
[null,null,null,null,null,""]
[null,null,null,null,null,""]
[null,null,null,null,null,""]
[null,null,null,null,null,""]
[null,null,null,null,null,""]
[null,null,null,null,null,""]
[null,null,null,null,null,""]
[null,null,null,null,null,""]
[null,null,null,null,null,""]
[null,null,null,null,null,""]
[null,null,null,null,null,""]
[null,null,null,null,null,""]
[null,null,null,null,null,""]
[null,null,null,null,null,""]
[null,null,null,null,null,""]
[null,null,null,null,null,""]
[null,null,null,null,null,""]
[null,null,null,null,null,""]
[null,null,null,null,null,""]
[null,null,null,null,null,""]
[null,null,null,null,null,""]
[null,null,null,null,null,""]
[null,null,null,null,null,""]
[null,null,null,null,null,""]
[null,null,null,null,null,""]
[null,null,null,null,null,""]
[null,null,null,null,null,""]
[null,null,null,null,null,""]
[null,null,null,null,null,""]
[null,null,null,null,null,""]
[null,null,null,null,null,""]
[null,null,null,null,null,""]
[null,null,null,null,null,""]
[null,null,null,null,null,""]
[null,null,null,null,null,""]
[null,null,null,null,null,""]
[null,null,null,null,null,""]
[null,null,null,null,null,""]
[null,null,null,null,null,""]
[null,null,null,null,null,""]
[null,null,null,null,null,""]
[null,null,null,null,null,""]
[null,null,null,null,null,""]
[null,null,null,null,null,""]
[null,null,null,null,null,""]
[null,null,null,null,null,""]
[null,null,null,null,null,""]
[null,null,null,null,null,""]
[null,null,null,null,null,""]
[null,null,null,null,null,""]
[null,null,null,null,null,""]
[null,null,null,null,null,""]
[null,null,null,null,null,""]
[null,null,null,null,null,""]
[null,null,null,null,null,""]
[null,null,null,null,null,{"$f":"IF(E323=\"\",\"\",TEXT(E323,\"ddd\"))","v":""}]
[null,null,null,null,null,""]
[null,null,null,null,null,""]
[null,null,null,null,null,""]
[null,null,null,null,null,""]
[null,null,null,null,null,""]
[null,null,null,null,null,""]
[null,null,null,null,null,""]
[null,null,null,null,null,""]
[null,null,null,null,null,""]
[null,null,null,null,null,""]
[null,null,null,null,null,""]
[null,null,null,null,null,""]
[null,null,null,null,null,""]
[null,null,null,null,null,""]
[null,null,null,null,null,""]
[null,null,null,null,null,""]
[null,null,null,null,null,""]
[null,null,null,null,null,""]
[null,null,null,null,null,""]
[null,null,null,null,null,""]
[null,null,null,null,null,""]
[null,null,null,null,null,""]
[null,null,null,null,null,""]
[null,null,null,null,null,""]
[null,null,null,null,null,""]
[null,null,null,null,null,""]
[null,null,null,null,null,""]
[null,null,null,null,null,""]
[null,null,null,null,null,""]
[null,null,null,null,null,""]
[null,null,null,null,null,""]
[null,null,null,null,null,""]
[null,null,null,null,null,""]
[null,null,null,null,null,""]
[null,null,null,null,null,""]
[null,null,null,null,null,""]
[null,null,null,null,null,""]
[null,null,null,null,null,""]
[null,null,null,null,null,""]
[null,null,null,null,null,""]
[null,null,null,null,null,""]
[null,null,null,null,null,""]
[null,null,null,null,null,""]
[null,null,null,null,null,""]
[null,null,null,null,null,""]
[null,null,null,null,null,""]
[null,null,null,null,null,""]
[null,null,null,null,null,""]
[null,null,null,null,null,""]
[null,null,null,null,null,""]
[null,null,null,null,null,""]
[null,null,null,null,null,""]
[null,null,null,null,null,""]
[null,null,null,null,null,""]
[null,null,null,null,null,""]
[null,null,null,null,null,""]
[null,null,null,null,null,""]
[null,null,null,null,null,""]
[null,null,null,null,null,""]
[null,null,null,null,null,""]
[null,null,null,null,null,""]
[null,null,null,null,null,""]
[null,null,null,null,null,""]
[null,null,null,null,null,{"$f":"IF(E387=\"\",\"\",TEXT(E387,\"ddd\"))","v":""}]
[null,null,null,null,null,""]
[null,null,null,null,null,""]
[null,null,null,null,null,""]
[null,null,null,null,null,""]
[null,null,null,null,null,""]
[null,null,null,null,null,""]
[null,null,null,null,null,""]
[null,null,null,null,null,""]
[null,null,null,null,null,""]
[null,null,null,null,null,""]
[null,null,null,null,null,""]
[null,null,null,null,null,""]
[null,null,null,null,null,""]
[null,null,null,null,null,""]
[null,null,null,null,null,""]
[null,null,null,null,null,""]
[null,null,null,null,null,""]
[null,null,null,null,null,""]
[null,null,null,null,null,""]
[null,null,null,null,null,""]
[null,null,null,null,null,""]
[null,null,null,null,null,""]
[null,null,null,null,null,""]
[null,null,null,null,null,""]
[null,null,null,null,null,""]
[null,null,null,null,null,""]
[null,null,null,null,null,""]
[null,null,null,null,null,""]
[null,null,null,null,null,""]
[null,null,null,null,null,""]
[null,null,null,null,null,""]
[null,null,null,null,null,""]
[null,null,null,null,null,""]
[null,null,null,null,null,""]
[null,null,null,null,null,""]
[null,null,null,null,null,""]
[null,null,null,null,null,""]
[null,null,null,null,null,""]
[null,null,null,null,null,""]
[null,null,null,null,null,""]
[null,null,null,null,null,""]
[null,null,null,null,null,""]
[null,null,null,null,null,""]
[null,null,null,null,null,""]
[null,null,null,null,null,""]
[null,null,null,null,null,""]
[null,null,null,null,null,""]
[null,null,null,null,null,""]
[null,null,null,null,null,""]
[null,null,null,null,null,""]
[null,null,null,null,null,""]
[null,null,null,null,null,""]
[null,null,null,null,null,""]
[null,null,null,null,null,""]
[null,null,null,null,null,""]
[null,null,null,null,null,""]
[null,null,null,null,null,""]
[null,null,null,null,null,""]
[null,null,null,null,null,""]
[null,null,null,null,null,""]
[null,null,null,null,null,""]
[null,null,null,null,null,""]
[null,null,null,null,null,""]
[null,null,null,null,null,{"$f":"IF(E451=\"\",\"\",TEXT(E451,\"ddd\"))","v":""}]
[null,null,null,null,null,""]
[null,null,null,null,null,""]
[null,null,null,null,null,""]
[null,null,null,null,null,""]
[null,null,null,null,null,""]
[null,null,null,null,null,""]
[null,null,null,null,null,""]
[null,null,null,null,null,""]
[null,null,null,null,null,""]
[null,null,null,null,null,""]
[null,null,null,null,null,""]
[null,null,null,null,null,""]
[null,null,null,null,null,""]
[null,null,null,null,null,""]
[null,null,null,null,null,""]
[null,null,null,null,null,""]
[null,null,null,null,null,""]
[null,null,null,null,null,""]
[null,null,null,null,null,""]
[null,null,null,null,null,""]
[null,null,null,null,null,""]
[null,null,null,null,null,""]
[null,null,null,null,null,""]
[null,null,null,null,null,""]
[null,null,null,null,null,""]
[null,null,null,null,null,""]
[null,null,null,null,null,""]
[null,null,null,null,null,""]
[null,null,null,null,null,""]
[null,null,null,null,null,""]
[null,null,null,null,null,""]
[null,null,null,null,null,""]
[null,null,null,null,null,""]
[null,null,null,null,null,""]
[null,null,null,null,null,""]
[null,null,null,null,null,""]
[null,null,null,null,null,""]
[null,null,null,null,null,""]
[null,null,null,null,null,""]
[null,null,null,null,null,""]
[null,null,null,null,null,""]
[null,null,null,null,null,""]
[null,null,null,null,null,""]
[null,null,null,null,null,""]
[null,null,null,null,null,""]
[null,null,null,null,null,""]
[null,null,null,null,null,""]
[null,null,null,null,null,""]
[null,null,null,null,null,""]
[null,null,null,null,null,""]
[null,null,null,null,null,""]
[null,null,null,null,null,""]
[null,null,null,null,null,""]
[null,null,null,null,null,""]
[null,null,null,null,null,""]
[null,null,null,null,null,""]
[null,null,null,null,null,""]
[null,null,null,null,null,""]
[null,null,null,null,null,""]
[null,null,null,null,null,""]
[null,null,null,null,null,""]
[null,null,null,null,null,""]
[null,null,null,null,null,""]
[null,null,null,null,null,{"$f":"IF(E515=\"\",\"\",TEXT(E515,\"ddd\"))","v":""}]
[null,null,null,null,null,""]
[null,null,null,null,null,""]
[null,null,null,null,null,""]
[null,null,null,null,null,""]
[null,null,null,null,null,""]
[null,null,null,null,null,""]
[null,null,null,null,null,""]
[null,null,null,null,null,""]
[null,null,null,null,null,""]
[null,null,null,null,null,""]
[null,null,null,null,null,""]
[null,null,null,null,null,""]
[null,null,null,null,null,""]
[null,null,null,null,null,""]
[null,null,null,null,null,""]
[null,null,null,null,null,""]
[null,null,null,null,null,""]
[null,null,null,null,null,""]
[null,null,null,null,null,""]
[null,null,null,null,null,""]
[null,null,null,null,null,""]
[null,null,null,null,null,""]
[null,null,null,null,null,""]
[null,null,null,null,null,""]
[null,null,null,null,null,""]
[null,null,null,null,null,""]
[null,null,null,null,null,""]
[null,null,null,null,null,""]
[null,null,null,null,null,""]
[null,null,null,null,null,""]
[null,null,null,null,null,""]
[null,null,null,null,null,""]
[null,null,null,null,null,""]
[null,null,null,null,null,""]
[null,null,null,null,null,""]
[null,null,null,null,null,""]
[null,null,null,null,null,""]
[null,null,null,null,null,""]
[null,null,null,null,null,""]
[null,null,null,null,null,""]
[null,null,null,null,null,""]
[null,null,null,null,null,""]
[null,null,null,null,null,""]
[null,null,null,null,null,""]
[null,null,null,null,null,""]
[null,null,null,null,null,""]
[null,null,null,null,null,""]
[null,null,null,null,null,""]
[null,null,null,null,null,""]
[null,null,null,null,null,""]
[null,null,null,null,null,""]
[null,null,null,null,null,""]
[null,null,null,null,null,""]
[null,null,null,null,null,""]
[null,null,null,null,null,""]
[null,null,null,null,null,""]
[null,null,null,null,null,""]
[null,null,null,null,null,""]
[null,null,null,null,null,""]
[null,null,null,null,null,""]
[null,null,null,null,null,""]
[null,null,null,null,null,""]
[null,null,null,null,null,""]
[null,null,null,null,null,{"$f":"IF(E579=\"\",\"\",TEXT(E579,\"ddd\"))","v":""}]
[null,null,null,null,null,""]
[null,null,null,null,null,""]
[null,null,null,null,null,""]
[null,null,null,null,null,""]
[null,null,null,null,null,""]
[null,null,null,null,null,""]
[null,null,null,null,null,""]
[null,null,null,null,null,""]
[null,null,null,null,null,""]
[null,null,null,null,null,""]
[null,null,null,null,null,""]
[null,null,null,null,null,""]
[null,null,null,null,null,""]
[null,null,null,null,null,""]
[null,null,null,null,null,""]
[null,null,null,null,null,""]
[null,null,null,null,null,""]
[null,null,null,null,null,""]
[null,null,null,null,null,""]
[null,null,null,null,null,""]
[null,null,null,null,null,""]
[null,null,null,null,null,""]
[null,null,null,null,null,""]
[null,null,null,null,null,""]
[null,null,null,null,null,""]
[null,null,null,null,null,""]
[null,null,null,null,null,""]
[null,null,null,null,null,""]
[null,null,null,null,null,""]
[null,null,null,null,null,""]
[null,null,null,null,null,""]
[null,null,null,null,null,""]
[null,null,null,null,null,""]
[null,null,null,null,null,""]
[null,null,null,null,null,""]
[null,null,null,null,null,""]
[null,null,null,null,null,""]
[null,null,null,null,null,""]
[null,null,null,null,null,""]
[null,null,null,null,null,""]
[null,null,null,null,null,""]
[null,null,null,null,null,""]
[null,null,null,null,null,""]
[null,null,null,null,null,""]
[null,null,null,null,null,""]
[null,null,null,null,null,""]
[null,null,null,null,null,""]
[null,null,null,null,null,""]
[null,null,null,null,null,""]
[null,null,null,null,null,""]
[null,null,null,null,null,""]
[null,null,null,null,null,""]
[null,null,null,null,null,""]
[null,null,null,null,null,""]
[null,null,null,null,null,""]
[null,null,null,null,null,""]
[null,null,null,null,null,""]
[null,null,null,null,null,""]
[null,null,null,null,null,""]
[null,null,null,null,null,""]
[null,null,null,null,null,""]
[null,null,null,null,null,""]
[null,null,null,null,null,""]
[null,null,null,null,null,{"$f":"IF(E643=\"\",\"\",TEXT(E643,\"ddd\"))","v":""}]
[null,null,null,null,null,""]
[null,null,null,null,null,""]
[null,null,null,null,null,""]
[null,null,null,null,null,""]
[null,null,null,null,null,""]
[null,null,null,null,null,""]
[null,null,null,null,null,""]
[null,null,null,null,null,""]
[null,null,null,null,null,""]
[null,null,null,null,null,""]
[null,null,null,null,null,""]
[null,null,null,null,null,""]
[null,null,null,null,null,""]
[null,null,null,null,null,""]
[null,null,null,null,null,""]
[null,null,null,null,null,""]
[null,null,null,null,null,""]
[null,null,null,null,null,""]
[null,null,null,null,null,""]
[null,null,null,null,null,""]
[null,null,null,null,null,""]
[null,null,null,null,null,""]
[null,null,null,null,null,""]
[null,null,null,null,null,""]
[null,null,null,null,null,""]
[null,null,null,null,null,""]
[null,null,null,null,null,""]
[null,null,null,null,null,""]
[null,null,null,null,null,""]
[null,null,null,null,null,""]
[null,null,null,null,null,""]
[null,null,null,null,null,""]
[null,null,null,null,null,""]
[null,null,null,null,null,""]
[null,null,null,null,null,""]
[null,null,null,null,null,""]
[null,null,null,null,null,""]
[null,null,null,null,null,""]
[null,null,null,null,null,""]
[null,null,null,null,null,""]
[null,null,null,null,null,""]
[null,null,null,null,null,""]
[null,null,null,null,null,""]
[null,null,null,null,null,""]
[null,null,null,null,null,""]
[null,null,null,null,null,""]
[null,null,null,null,null,""]
[null,null,null,null,null,""]
[null,null,null,null,null,""]
[null,null,null,null,null,""]
[null,null,null,null,null,""]
[null,null,null,null,null,""]
[null,null,null,null,null,""]
[null,null,null,null,null,""]
[null,null,null,null,null,""]
[null,null,null,null,null,""]
[null,null,null,null,null,""]
[null,null,null,null,null,""]
[null,null,null,null,null,""]
[null,null,null,null,null,""]
[null,null,null,null,null,""]
[null,null,null,null,null,""]
[null,null,null,null,null,""]
[null,null,null,null,null,{"$f":"IF(E707=\"\",\"\",TEXT(E707,\"ddd\"))","v":""}]
[null,null,null,null,null,""]
[null,null,null,null,null,""]
[null,null,null,null,null,""]
[null,null,null,null,null,""]
[null,null,null,null,null,""]
[null,null,null,null,null,""]
[null,null,null,null,null,""]
[null,null,null,null,null,""]
[null,null,null,null,null,""]
[null,null,null,null,null,""]
[null,null,null,null,null,""]
[null,null,null,null,null,""]
[null,null,null,null,null,""]
[null,null,null,null,null,""]
[null,null,null,null,null,""]
[null,null,null,null,null,""]
[null,null,null,null,null,""]
[null,null,null,null,null,""]
[null,null,null,null,null,""]
[null,null,null,null,null,""]
[null,null,null,null,null,""]
[null,null,null,null,null,""]
[null,null,null,null,null,""]
[null,null,null,null,null,""]
[null,null,null,null,null,""]
[null,null,null,null,null,""]
[null,null,null,null,null,""]
[null,null,null,null,null,""]
[null,null,null,null,null,""]
[null,null,null,null,null,""]
[null,null,null,null,null,""]
[null,null,null,null,null,""]
[null,null,null,null,null,""]
[null,null,null,null,null,""]
[null,null,null,null,null,""]
[null,null,null,null,null,""]
[null,null,null,null,null,""]
[null,null,null,null,null,""]
[null,null,null,null,null,""]
[null,null,null,null,null,""]
[null,null,null,null,null,""]
[null,null,null,null,null,""]
[null,null,null,null,null,""]
[null,null,null,null,null,""]
[null,null,null,null,null,""]
[null,null,null,null,null,""]
[null,null,null,null,null,""]
[null,null,null,null,null,""]
[null,null,null,null,null,""]
[null,null,null,null,null,""]
[null,null,null,null,null,""]
[null,null,null,null,null,""]
[null,null,null,null,null,""]
[null,null,null,null,null,""]
[null,null,null,null,null,""]
[null,null,null,null,null,""]
[null,null,null,null,null,""]
[null,null,null,null,null,""]
[null,null,null,null,null,""]
[null,null,null,null,null,""]
[null,null,null,null,null,""]
[null,null,null,null,null,""]
[null,null,null,null,null,""]
[null,null,null,null,null,{"$f":"IF(E771=\"\",\"\",TEXT(E771,\"ddd\"))","v":""}]
[null,null,null,null,null,""]
[null,null,null,null,null,""]
[null,null,null,null,null,""]
[null,null,null,null,null,""]
[null,null,null,null,null,""]
[null,null,null,null,null,""]
[null,null,null,null,null,""]
[null,null,null,null,null,""]
[null,null,null,null,null,""]
[null,null,null,null,null,""]
[null,null,null,null,null,""]
[null,null,null,null,null,""]
[null,null,null,null,null,""]
[null,null,null,null,null,""]
[null,null,null,null,null,""]
[null,null,null,null,null,""]
[null,null,null,null,null,""]
[null,null,null,null,null,""]
[null,null,null,null,null,""]
[null,null,null,null,null,""]
[null,null,null,null,null,""]
[null,null,null,null,null,""]
[null,null,null,null,null,""]
[null,null,null,null,null,""]
[null,null,null,null,null,""]
[null,null,null,null,null,""]
[null,null,null,null,null,""]
[null,null,null,null,null,""]
[null,null,null,null,null,""]
[null,null,null,null,null,""]
[null,null,null,null,null,""]
[null,null,null,null,null,""]
[null,null,null,null,null,""]
[null,null,null,null,null,""]
[null,null,null,null,null,""]
[null,null,null,null,null,""]
[null,null,null,null,null,""]
[null,null,null,null,null,""]
[null,null,null,null,null,""]
[null,null,null,null,null,""]
[null,null,null,null,null,""]
[null,null,null,null,null,""]
[null,null,null,null,null,""]
[null,null,null,null,null,""]
[null,null,null,null,null,""]
[null,null,null,null,null,""]
[null,null,null,null,null,""]
[null,null,null,null,null,""]
[null,null,null,null,null,""]
[null,null,null,null,null,""]
[null,null,null,null,null,""]
[null,null,null,null,null,""]
[null,null,null,null,null,""]
[null,null,null,null,null,""]
[null,null,null,null,null,""]
[null,null,null,null,null,""]
[null,null,null,null,null,""]
[null,null,null,null,null,""]
[null,null,null,null,null,""]
[null,null,null,null,null,""]
[null,null,null,null,null,""]
[null,null,null,null,null,""]
[null,null,null,null,null,""]
[null,null,null,null,null,{"$f":"IF(E835=\"\",\"\",TEXT(E835,\"ddd\"))","v":""}]
[null,null,null,null,null,""]
[null,null,null,null,null,""]
[null,null,null,null,null,""]
[null,null,null,null,null,""]
[null,null,null,null,null,""]
[null,null,null,null,null,""]
[null,null,null,null,null,""]
[null,null,null,null,null,""]
[null,null,null,null,null,""]
[null,null,null,null,null,""]
[null,null,null,null,null,""]
[null,null,null,null,null,""]
[null,null,null,null,null,""]
[null,null,null,null,null,""]
[null,null,null,null,null,""]
[null,null,null,null,null,""]
[null,null,null,null,null,""]
[null,null,null,null,null,""]
[null,null,null,null,null,""]
[null,null,null,null,null,""]
[null,null,null,null,null,""]
[null,null,null,null,null,""]
[null,null,null,null,null,""]
[null,null,null,null,null,""]
[null,null,null,null,null,""]
[null,null,null,null,null,""]
[null,null,null,null,null,""]
[null,null,null,null,null,""]
[null,null,null,null,null,""]
[null,null,null,null,null,""]
[null,null,null,null,null,""]
[null,null,null,null,null,""]
[null,null,null,null,null,""]
[null,null,null,null,null,""]
[null,null,null,null,null,""]
[null,null,null,null,null,""]
[null,null,null,null,null,""]
[null,null,null,null,null,""]
[null,null,null,null,null,""]
[null,null,null,null,null,""]
[null,null,null,null,null,""]
[null,null,null,null,null,""]
[null,null,null,null,null,""]
[null,null,null,null,null,""]
[null,null,null,null,null,""]
[null,null,null,null,null,""]
[null,null,null,null,null,""]
[null,null,null,null,null,""]
[null,null,null,null,null,""]
[null,null,null,null,null,""]
[null,null,null,null,null,""]
[null,null,null,null,null,""]
[null,null,null,null,null,""]
[null,null,null,null,null,""]
[null,null,null,null,null,""]
[null,null,null,null,null,""]
[null,null,null,null,null,""]
[null,null,null,null,null,""]
[null,null,null,null,null,""]
[null,null,null,null,null,""]
[null,null,null,null,null,""]
[null,null,null,null,null,""]
[null,null,null,null,null,""]
[null,null,null,null,null,{"$f":"IF(E899=\"\",\"\",TEXT(E899,\"ddd\"))","v":""}]
[null,null,null,null,null,""]
[null,null,null,null,null,""]
[null,null,null,null,null,""]
[null,null,null,null,null,""]
[null,null,null,null,null,""]
[null,null,null,null,null,""]
[null,null,null,null,null,""]
[null,null,null,null,null,""]
[null,null,null,null,null,""]
[null,null,null,null,null,""]
[null,null,null,null,null,""]
[null,null,null,null,null,""]
[null,null,null,null,null,""]
[null,null,null,null,null,""]
[null,null,null,null,null,""]
[null,null,null,null,null,""]
[null,null,null,null,null,""]
[null,null,null,null,null,""]
[null,null,null,null,null,""]
[null,null,null,null,null,""]
[null,null,null,null,null,""]
[null,null,null,null,null,""]
[null,null,null,null,null,""]
[null,null,null,null,null,""]
[null,null,null,null,null,""]
[null,null,null,null,null,""]
[null,null,null,null,null,""]
[null,null,null,null,null,""]
[null,null,null,null,null,""]
[null,null,null,null,null,""]
[null,null,null,null,null,""]
[null,null,null,null,null,""]
[null,null,null,null,null,""]
[null,null,null,null,null,""]
[null,null,null,null,null,""]
[null,null,null,null,null,""]
[null,null,null,null,null,""]
[null,null,null,null,null,""]
[null,null,null,null,null,""]
[null,null,null,null,null,""]
[null,null,null,null,null,""]
[null,null,null,null,null,""]
[null,null,null,null,null,""]
[null,null,null,null,null,""]
[null,null,null,null,null,""]
[null,null,null,null,null,""]
[null,null,null,null,null,""]
[null,null,null,null,null,""]
[null,null,null,null,null,""]
[null,null,null,null,null,""]
[null,null,null,null,null,""]
[null,null,null,null,null,""]
[null,null,null,null,null,""]
[null,null,null,null,null,""]
[null,null,null,null,null,""]
[null,null,null,null,null,""]
[null,null,null,null,null,""]
[null,null,null,null,null,""]
[null,null,null,null,null,""]
[null,null,null,null,null,""]
[null,null,null,null,null,""]
[null,null,null,null,null,""]
[null,null,null,null,null,""]
[null,null,null,null,null,{"$f":"IF(E963=\"\",\"\",TEXT(E963,\"ddd\"))","v":""}]
[null,null,null,null,null,""]
[null,null,null,null,null,""]
[null,null,null,null,null,""]
[null,null,null,null,null,""]
[null,null,null,null,null,""]
[null,null,null,null,null,""]
[null,null,null,null,null,""]
[null,null,null,null,null,""]
[null,null,null,null,null,""]
[null,null,null,null,null,""]
[null,null,null,null,null,""]
[null,null,null,null,null,""]
[null,null,null,null,null,""]
[null,null,null,null,null,""]
[null,null,null,null,null,""]
[null,null,null,null,null,""]
[null,null,null,null,null,""]
[null,null,null,null,null,""]
[null,null,null,null,null,""]
[null,null,null,null,null,""]
[null,null,null,null,null,""]
[null,null,null,null,null,""]
[null,null,null,null,null,""]
[null,null,null,null,null,""]
[null,null,null,null,null,""]
[null,null,null,null,null,""]
[null,null,null,null,null,""]
[null,null,null,null,null,""]
[null,null,null,null,null,""]
[null,null,null,null,null,""]
[null,null,null,null,null,""]
[null,null,null,null,null,""]
[null,null,null,null,null,""]
[null,null,null,null,null,""]
[null,null,null,null,null,""]
[null,null,null,null,null,""]
[null,null,null,null,null,""]
[null,null,null,null,null,""]
[null,null,null,null,null,""]
[null,null,null,null,null,""]
[null,null,null,null,null,""]
[null,null,null,null,null,""]
[null,null,null,null,null,""]
[null,null,null,null,null,""]
[null,null,null,null,null,""]
[null,null,null,null,null,""]
[null,null,null,null,null,""]
[null,null,null,null,null,""]
[null,null,null,null,null,""]
[null,null,null,null,null,""]
[null,null,null,null,null,""]
[null,null,null,null,null,""]
[null,null,null,null,null,""]
[null,null,null,null,null,""]
[null,null,null,null,null,""]
[null,null,null,null,null,""]
[null,null,null,null,null,""]
[null,null,null,null,null,""]
[null,null,null,null,null,""]
[null,null,null,null,null,""]
[null,null,null,null,null,""]
[null,null,null,null,null,""]
[null,null,null,null,null,""]
[null,null,null,null,null,{"$f":"IF(E1027=\"\",\"\",TEXT(E1027,\"ddd\"))","v":""}]
[null,null,null,null,null,""]
[null,null,null,null,null,""]
[null,null,null,null,null,""]
[null,null,null,null,null,""]
[null,null,null,null,null,""]
[null,null,null,null,null,""]
[null,null,null,null,null,""]
[null,null,null,null,null,""]
[null,null,null,null,null,""]
[null,null,null,null,null,""]
[null,null,null,null,null,""]
[null,null,null,null,null,""]
[null,null,null,null,null,""]
[null,null,null,null,null,""]
[null,null,null,null,null,""]
[null,null,null,null,null,""]
[null,null,null,null,null,""]
[null,null,null,null,null,""]
[null,null,null,null,null,""]
[null,null,null,null,null,""]
[null,null,null,null,null,""]
[null,null,null,null,null,""]
[null,null,null,null,null,""]
[null,null,null,null,null,""]
[null,null,null,null,null,""]
[null,null,null,null,null,""]
[null,null,null,null,null,""]
[null,null,null,null,null,""]
[null,null,null,null,null,""]
[null,null,null,null,null,""]
[null,null,null,null,null,""]
[null,null,null,null,null,""]
[null,null,null,null,null,""]
[null,null,null,null,null,""]
[null,null,null,null,null,""]
[null,null,null,null,null,""]
[null,null,null,null,null,""]
[null,null,null,null,null,""]
[null,null,null,null,null,""]
[null,null,null,null,null,""]
[null,null,null,null,null,""]
[null,null,null,null,null,""]
[null,null,null,null,null,""]
[null,null,null,null,null,""]
[null,null,null,null,null,""]
[null,null,null,null,null,""]
[null,null,null,null,null,""]
[null,null,null,null,null,""]
[null,null,null,null,null,""]
[null,null,null,null,null,""]
[null,null,null,null,null,""]
[null,null,null,null,null,""]
[null,null,null,null,null,""]
[null,null,null,null,null,""]
[null,null,null,null,null,""]
[null,null,null,null,null,""]
[null,null,null,null,null,""]
[null,null,null,null,null,""]
[null,null,null,null,null,""]
[null,null,null,null,null,""]
[null,null,null,null,null,""]
[null,null,null,null,null,""]
[null,null,null,null,null,""]
[null,null,null,null,null,{"$f":"IF(E1091=\"\",\"\",TEXT(E1091,\"ddd\"))","v":""}]
[null,null,null,null,null,""]
[null,null,null,null,null,""]
[null,null,null,null,null,""]
[null,null,null,null,null,""]
[null,null,null,null,null,""]
[null,null,null,null,null,""]
[null,null,null,null,null,""]
[null,null,null,null,null,""]
[null,null,null,null,null,""]
[null,null,null,null,null,""]
[null,null,null,null,null,""]
[null,null,null,null,null,""]
[null,null,null,null,null,""]
[null,null,null,null,null,""]
[null,null,null,null,null,""]
[null,null,null,null,null,""]
[null,null,null,null,null,""]
[null,null,null,null,null,""]
[null,null,null,null,null,""]
[null,null,null,null,null,""]
[null,null,null,null,null,""]
[null,null,null,null,null,""]
[null,null,null,null,null,""]
[null,null,null,null,null,""]
[null,null,null,null,null,""]
[null,null,null,null,null,""]
[null,null,null,null,null,""]
[null,null,null,null,null,""]
[null,null,null,null,null,""]
[null,null,null,null,null,""]
[null,null,null,null,null,""]
[null,null,null,null,null,""]
[null,null,null,null,null,""]
[null,null,null,null,null,""]
[null,null,null,null,null,""]
[null,null,null,null,null,""]
[null,null,null,null,null,""]
[null,null,null,null,null,""]
[null,null,null,null,null,""]
[null,null,null,null,null,""]
[null,null,null,null,null,""]
[null,null,null,null,null,""]
[null,null,null,null,null,""]
[null,null,null,null,null,""]
[null,null,null,null,null,""]
[null,null,null,null,null,""]
[null,null,null,null,null,""]
[null,null,null,null,null,""]
[null,null,null,null,null,""]
[null,null,null,null,null,""]
[null,null,null,null,null,""]
[null,null,null,null,null,""]
[null,null,null,null,null,""]
[null,null,null,null,null,""]
[null,null,null,null,null,""]
[null,null,null,null,null,""]
[null,null,null,null,null,""]
[null,null,null,null,null,""]
[null,null,null,null,null,""]
[null,null,null,null,null,""]
[null,null,null,null,null,""]
[null,null,null,null,null,""]
[null,null,null,null,null,""]
[null,null,null,null,null,{"$f":"IF(E1155=\"\",\"\",TEXT(E1155,\"ddd\"))","v":""}]
[null,null,null,null,null,""]
[null,null,null,null,null,""]
[null,null,null,null,null,""]
[null,null,null,null,null,""]
[null,null,null,null,null,""]
[null,null,null,null,null,""]
[null,null,null,null,null,""]
[null,null,null,null,null,""]
[null,null,null,null,null,""]
[null,null,null,null,null,""]
[null,null,null,null,null,""]
[null,null,null,null,null,""]
[null,null,null,null,null,""]
[null,null,null,null,null,""]
[null,null,null,null,null,""]
[null,null,null,null,null,""]
[null,null,null,null,null,""]
[null,null,null,null,null,""]
[null,null,null,null,null,""]
[null,null,null,null,null,""]
[null,null,null,null,null,""]
[null,null,null,null,null,""]
[null,null,null,null,null,""]
[null,null,null,null,null,""]
[null,null,null,null,null,""]
[null,null,null,null,null,""]
[null,null,null,null,null,""]
[null,null,null,null,null,""]
[null,null,null,null,null,""]
[null,null,null,null,null,""]
[null,null,null,null,null,""]
[null,null,null,null,null,""]
[null,null,null,null,null,""]
[null,null,null,null,null,""]
[null,null,null,null,null,""]
[null,null,null,null,null,""]
[null,null,null,null,null,""]
[null,null,null,null,null,""]
[null,null,null,null,null,""]
[null,null,null,null,null,""]
[null,null,null,null,null,""]
[null,null,null,null,null,""]
[null,null,null,null,null,""]
[null,null,null,null,null,""]
[null,null,null,null,null,""]
[null,null,null,null,null,""]
[null,null,null,null,null,""]
[null,null,null,null,null,""]
[null,null,null,null,null,""]
[null,null,null,null,null,""]
[null,null,null,null,null,""]
[null,null,null,null,null,""]
[null,null,null,null,null,""]
[null,null,null,null,null,""]
[null,null,null,null,null,""]
[null,null,null,null,null,""]
[null,null,null,null,null,""]
[null,null,null,null,null,""]
[null,null,null,null,null,""]
[null,null,null,null,null,""]
[null,null,null,null,null,""]
[null,null,null,null,null,""]
[null,null,null,null,null,""]
[null,null,null,null,null,{"$f":"IF(E1219=\"\",\"\",TEXT(E1219,\"ddd\"))","v":""}]
[null,null,null,null,null,""]
[null,null,null,null,null,""]
[null,null,null,null,null,""]
[null,null,null,null,null,""]
[null,null,null,null,null,""]
[null,null,null,null,null,""]
[null,null,null,null,null,""]
[null,null,null,null,null,""]
[null,null,null,null,null,""]
[null,null,null,null,null,""]
[null,null,null,null,null,""]
[null,null,null,null,null,""]
[null,null,null,null,null,""]
[null,null,null,null,null,""]
[null,null,null,null,null,""]
[null,null,null,null,null,""]
[null,null,null,null,null,""]
[null,null,null,null,null,""]
[null,null,null,null,null,""]
[null,null,null,null,null,""]
[null,null,null,null,null,""]
[null,null,null,null,null,""]
[null,null,null,null,null,""]
[null,null,null,null,null,""]
[null,null,null,null,null,""]
[null,null,null,null,null,""]
[null,null,null,null,null,""]
[null,null,null,null,null,""]
[null,null,null,null,null,""]
[null,null,null,null,null,""]
[null,null,null,null,null,""]
[null,null,null,null,null,""]
[null,null,null,null,null,""]
[null,null,null,null,null,""]
[null,null,null,null,null,""]
[null,null,null,null,null,""]
[null,null,null,null,null,""]
[null,null,null,null,null,""]
[null,null,null,null,null,""]
[null,null,null,null,null,""]
[null,null,null,null,null,""]
[null,null,null,null,null,""]
[null,null,null,null,null,""]
[null,null,null,null,null,""]
[null,null,null,null,null,""]
[null,null,null,null,null,""]
[null,null,null,null,null,""]
[null,null,null,null,null,""]
[null,null,null,null,null,""]
[null,null,null,null,null,""]
[null,null,null,null,null,""]
[null,null,null,null,null,""]
[null,null,null,null,null,""]
[null,null,null,null,null,""]
[null,null,null,null,null,""]
[null,null,null,null,null,""]
[null,null,null,null,null,""]
[null,null,null,null,null,""]
[null,null,null,null,null,""]
[null,null,null,null,null,""]
[null,null,null,null,null,""]
[null,null,null,null,null,""]
[null,null,null,null,null,""]
[null,null,null,null,null,{"$f":"IF(E1283=\"\",\"\",TEXT(E1283,\"ddd\"))","v":""}]
[null,null,null,null,null,""]
[null,null,null,null,null,""]
[null,null,null,null,null,""]
[null,null,null,null,null,""]
[null,null,null,null,null,""]
[null,null,null,null,null,""]
[null,null,null,null,null,""]
[null,null,null,null,null,""]
[null,null,null,null,null,""]
[null,null,null,null,null,""]
[null,null,null,null,null,""]
[null,null,null,null,null,""]
[null,null,null,null,null,""]
[null,null,null,null,null,""]
[null,null,null,null,null,""]
[null,null,null,null,null,""]
[null,null,null,null,null,""]
[null,null,null,null,null,""]
[null,null,null,null,null,""]
[null,null,null,null,null,""]
[null,null,null,null,null,""]
[null,null,null,null,null,""]
[null,null,null,null,null,""]
[null,null,null,null,null,""]
[null,null,null,null,null,""]
[null,null,null,null,null,""]
[null,null,null,null,null,""]
[null,null,null,null,null,""]
[null,null,null,null,null,""]
[null,null,null,null,null,""]
[null,null,null,null,null,""]
[null,null,null,null,null,""]
[null,null,null,null,null,""]
[null,null,null,null,null,""]
[null,null,null,null,null,""]
[null,null,null,null,null,""]
[null,null,null,null,null,""]
[null,null,null,null,null,""]
[null,null,null,null,null,""]
[null,null,null,null,null,""]
[null,null,null,null,null,""]
[null,null,null,null,null,""]
[null,null,null,null,null,""]
[null,null,null,null,null,""]
[null,null,null,null,null,""]
[null,null,null,null,null,""]
[null,null,null,null,null,""]
[null,null,null,null,null,""]
[null,null,null,null,null,""]
[null,null,null,null,null,""]
[null,null,null,null,null,""]
[null,null,null,null,null,""]
[null,null,null,null,null,""]
[null,null,null,null,null,""]
[null,null,null,null,null,""]
[null,null,null,null,null,""]
[null,null,null,null,null,""]
[null,null,null,null,null,""]
[null,null,null,null,null,""]
[null,null,null,null,null,""]
[null,null,null,null,null,""]
[null,null,null,null,null,""]
[null,null,null,null,null,""]
[null,null,null,null,null,{"$f":"IF(E1347=\"\",\"\",TEXT(E1347,\"ddd\"))","v":""}]
[null,null,null,null,null,""]
[null,null,null,null,null,""]
[null,null,null,null,null,""]
[null,null,null,null,null,""]
[null,null,null,null,null,""]
[null,null,null,null,null,""]
[null,null,null,null,null,""]
[null,null,null,null,null,""]
[null,null,null,null,null,""]
[null,null,null,null,null,""]
[null,null,null,null,null,""]
[null,null,null,null,null,""]
[null,null,null,null,null,""]
[null,null,null,null,null,""]
[null,null,null,null,null,""]
[null,null,null,null,null,""]
[null,null,null,null,null,""]
[null,null,null,null,null,""]
[null,null,null,null,null,""]
[null,null,null,null,null,""]
[null,null,null,null,null,""]
[null,null,null,null,null,""]
[null,null,null,null,null,""]
[null,null,null,null,null,""]
[null,null,null,null,null,""]
[null,null,null,null,null,""]
[null,null,null,null,null,""]
[null,null,null,null,null,""]
[null,null,null,null,null,""]
[null,null,null,null,null,""]
[null,null,null,null,null,""]
[null,null,null,null,null,""]
[null,null,null,null,null,""]
[null,null,null,null,null,""]
[null,null,null,null,null,""]
[null,null,null,null,null,""]
[null,null,null,null,null,""]
[null,null,null,null,null,""]
[null,null,null,null,null,""]
[null,null,null,null,null,""]
[null,null,null,null,null,""]
[null,null,null,null,null,""]
[null,null,null,null,null,""]
[null,null,null,null,null,""]
[null,null,null,null,null,""]
[null,null,null,null,null,""]
[null,null,null,null,null,""]
[null,null,null,null,null,""]
[null,null,null,null,null,""]
[null,null,null,null,null,""]
[null,null,null,null,null,""]
[null,null,null,null,null,""]
[null,null,null,null,null,""]
[null,null,null,null,null,""]
[null,null,null,null,null,""]
[null,null,null,null,null,""]
[null,null,null,null,null,""]
[null,null,null,null,null,""]
[null,null,null,null,null,""]
[null,null,null,null,null,""]
[null,null,null,null,null,""]
[null,null,null,null,null,""]
[null,null,null,null,null,""]
[null,null,null,null,null,{"$f":"IF(E1411=\"\",\"\",TEXT(E1411,\"ddd\"))","v":""}]
[null,null,null,null,null,""]
[null,null,null,null,null,""]
[null,null,null,null,null,""]
[null,null,null,null,null,""]
[null,null,null,null,null,""]
[null,null,null,null,null,""]
[null,null,null,null,null,""]
[null,null,null,null,null,""]
[null,null,null,null,null,""]
[null,null,null,null,null,""]
[null,null,null,null,null,""]
[null,null,null,null,null,""]
[null,null,null,null,null,""]
[null,null,null,null,null,""]
[null,null,null,null,null,""]
[null,null,null,null,null,""]
[null,null,null,null,null,""]
[null,null,null,null,null,""]
[null,null,null,null,null,""]
[null,null,null,null,null,""]
[null,null,null,null,null,""]
[null,null,null,null,null,""]
[null,null,null,null,null,""]
[null,null,null,null,null,""]
[null,null,null,null,null,""]
[null,null,null,null,null,""]
[null,null,null,null,null,""]
[null,null,null,null,null,""]
[null,null,null,null,null,""]
[null,null,null,null,null,""]
[null,null,null,null,null,""]
[null,null,null,null,null,""]
[null,null,null,null,null,""]
[null,null,null,null,null,""]
[null,null,null,null,null,""]
[null,null,null,null,null,""]
[null,null,null,null,null,""]
[null,null,null,null,null,""]
[null,null,null,null,null,""]
[null,null,null,null,null,""]
[null,null,null,null,null,""]
[null,null,null,null,null,""]
[null,null,null,null,null,""]
[null,null,null,null,null,""]
[null,null,null,null,null,""]
[null,null,null,null,null,""]
[null,null,null,null,null,""]
[null,null,null,null,null,""]
[null,null,null,null,null,""]
[null,null,null,null,null,""]
[null,null,null,null,null,""]
[null,null,null,null,null,""]
[null,null,null,null,null,""]
[null,null,null,null,null,""]
[null,null,null,null,null,""]
[null,null,null,null,null,""]
[null,null,null,null,null,""]
[null,null,null,null,null,""]
[null,null,null,null,null,""]
[null,null,null,null,null,""]
[null,null,null,null,null,""]
[null,null,null,null,null,""]
[null,null,null,null,null,""]
[null,null,null,null,null,{"$f":"IF(E1475=\"\",\"\",TEXT(E1475,\"ddd\"))","v":""}]
[null,null,null,null,null,""]
[null,null,null,null,null,""]
[null,null,null,null,null,""]
[null,null,null,null,null,""]
[null,null,null,null,null,""]
[null,null,null,null,null,""]
[null,null,null,null,null,""]
[null,null,null,null,null,""]
[null,null,null,null,null,""]
[null,null,null,null,null,""]
[null,null,null,null,null,""]
[null,null,null,null,null,""]
[null,null,null,null,null,""]
[null,null,null,null,null,""]
[null,null,null,null,null,""]
[null,null,null,null,null,""]
[null,null,null,null,null,""]
[null,null,null,null,null,""]
[null,null,null,null,null,""]
[null,null,null,null,null,""]
[null,null,null,null,null,""]
[null,null,null,null,null,""]
[null,null,null,null,null,""]
[null,null,null,null,null,""]
[null,null,null,null,null,""]
[null,null,null,null,null,""]
[null,null,null,null,null,""]
[null,null,null,null,null,""]
[null,null,null,null,null,""]
[null,null,null,null,null,""]
[null,null,null,null,null,""]
[null,null,null,null,null,""]
[null,null,null,null,null,""]
[null,null,null,null,null,""]
[null,null,null,null,null,""]
[null,null,null,null,null,""]
[null,null,null,null,null,""]
[null,null,null,null,null,""]
[null,null,null,null,null,""]
[null,null,null,null,null,""]
[null,null,null,null,null,""]
[null,null,null,null,null,""]
[null,null,null,null,null,""]
[null,null,null,null,null,""]
[null,null,null,null,null,""]
[null,null,null,null,null,""]
[null,null,null,null,null,""]
[null,null,null,null,null,""]
[null,null,null,null,null,""]
[null,null,null,null,null,""]
[null,null,null,null,null,""]
[null,null,null,null,null,""]
[null,null,null,null,null,""]
[null,null,null,null,null,""]
[null,null,null,null,null,""]
[null,null,null,null,null,""]
[null,null,null,null,null,""]
[null,null,null,null,null,""]
[null,null,null,null,null,""]
[null,null,null,null,null,""]
[null,null,null,null,null,""]
[null,null,null,null,null,""]
[null,null,null,null,null,""]
[null,null,null,null,null,{"$f":"IF(E1539=\"\",\"\",TEXT(E1539,\"ddd\"))","v":""}]
[null,null,null,null,null,""]
[null,null,null,null,null,""]
[null,null,null,null,null,""]
[null,null,null,null,null,""]
[null,null,null,null,null,""]
[null,null,null,null,null,""]
[null,null,null,null,null,""]
[null,null,null,null,null,""]
[null,null,null,null,null,""]
[null,null,null,null,null,""]
[null,null,null,null,null,""]
[null,null,null,null,null,""]
[null,null,null,null,null,""]
[null,null,null,null,null,""]
[null,null,null,null,null,""]
[null,null,null,null,null,""]
[null,null,null,null,null,""]
[null,null,null,null,null,""]
[null,null,null,null,null,""]
[null,null,null,null,null,""]
[null,null,null,null,null,""]
[null,null,null,null,null,""]
[null,null,null,null,null,""]
[null,null,null,null,null,""]
[null,null,null,null,null,""]
[null,null,null,null,null,""]
[null,null,null,null,null,""]
[null,null,null,null,null,""]
[null,null,null,null,null,""]
[null,null,null,null,null,""]
[null,null,null,null,null,""]
[null,null,null,null,null,""]
[null,null,null,null,null,""]
[null,null,null,null,null,""]
[null,null,null,null,null,""]
[null,null,null,null,null,""]
[null,null,null,null,null,""]
[null,null,null,null,null,""]
[null,null,null,null,null,""]
[null,null,null,null,null,""]
[null,null,null,null,null,""]
[null,null,null,null,null,""]
[null,null,null,null,null,""]
[null,null,null,null,null,""]
[null,null,null,null,null,""]
[null,null,null,null,null,""]
[null,null,null,null,null,""]
[null,null,null,null,null,""]
[null,null,null,null,null,""]
[null,null,null,null,null,""]
[null,null,null,null,null,""]
[null,null,null,null,null,""]
[null,null,null,null,null,""]
[null,null,null,null,null,""]
[null,null,null,null,null,""]
[null,null,null,null,null,""]
[null,null,null,null,null,""]
[null,null,null,null,null,""]
[null,null,null,null,null,""]
[null,null,null,null,null,""]
[null,null,null,null,null,""]
[null,null,null,null,null,""]
[null,null,null,null,null,""]
[null,null,null,null,null,{"$f":"IF(E1603=\"\",\"\",TEXT(E1603,\"ddd\"))","v":""}]
[null,null,null,null,null,""]
[null,null,null,null,null,""]
[null,null,null,null,null,""]
[null,null,null,null,null,""]
[null,null,null,null,null,""]
[null,null,null,null,null,""]
[null,null,null,null,null,""]
[null,null,null,null,null,""]
[null,null,null,null,null,""]
[null,null,null,null,null,""]
[null,null,null,null,null,""]
[null,null,null,null,null,""]
[null,null,null,null,null,""]
[null,null,null,null,null,""]
[null,null,null,null,null,""]
[null,null,null,null,null,""]
[null,null,null,null,null,""]
[null,null,null,null,null,""]
[null,null,null,null,null,""]
[null,null,null,null,null,""]
[null,null,null,null,null,""]
[null,null,null,null,null,""]
[null,null,null,null,null,""]
[null,null,null,null,null,""]
[null,null,null,null,null,""]
[null,null,null,null,null,""]
[null,null,null,null,null,""]
[null,null,null,null,null,""]
[null,null,null,null,null,""]
[null,null,null,null,null,""]
[null,null,null,null,null,""]
[null,null,null,null,null,""]
[null,null,null,null,null,""]
[null,null,null,null,null,""]
[null,null,null,null,null,""]
[null,null,null,null,null,""]
[null,null,null,null,null,""]
[null,null,null,null,null,""]
[null,null,null,null,null,""]
[null,null,null,null,null,""]
[null,null,null,null,null,""]
[null,null,null,null,null,""]
[null,null,null,null,null,""]
[null,null,null,null,null,""]
[null,null,null,null,null,""]
[null,null,null,null,null,""]
[null,null,null,null,null,""]
[null,null,null,null,null,""]
[null,null,null,null,null,""]
[null,null,null,null,null,""]
[null,null,null,null,null,""]
[null,null,null,null,null,""]
[null,null,null,null,null,""]
[null,null,null,null,null,""]
[null,null,null,null,null,""]
[null,null,null,null,null,""]
[null,null,null,null,null,""]
[null,null,null,null,null,""]
[null,null,null,null,null,""]
[null,null,null,null,null,""]
[null,null,null,null,null,""]
[null,null,null,null,null,""]
[null,null,null,null,null,""]
[null,null,null,null,null,{"$f":"IF(E1667=\"\",\"\",TEXT(E1667,\"ddd\"))","v":""}]
[null,null,null,null,null,""]
[null,null,null,null,null,""]
[null,null,null,null,null,""]
[null,null,null,null,null,""]
[null,null,null,null,null,""]
[null,null,null,null,null,""]
[null,null,null,null,null,""]
[null,null,null,null,null,""]
[null,null,null,null,null,""]
[null,null,null,null,null,""]
[null,null,null,null,null,""]
[null,null,null,null,null,""]
[null,null,null,null,null,""]
[null,null,null,null,null,""]
[null,null,null,null,null,""]
[null,null,null,null,null,""]
[null,null,null,null,null,""]
[null,null,null,null,null,""]
[null,null,null,null,null,""]
[null,null,null,null,null,""]
[null,null,null,null,null,""]
[null,null,null,null,null,""]
[null,null,null,null,null,""]
[null,null,null,null,null,""]
[null,null,null,null,null,""]
[null,null,null,null,null,""]
[null,null,null,null,null,""]
[null,null,null,null,null,""]
[null,null,null,null,null,""]
[null,null,null,null,null,""]
[null,null,null,null,null,""]
[null,null,null,null,null,""]
[null,null,null,null,null,""]
[null,null,null,null,null,""]
[null,null,null,null,null,""]
[null,null,null,null,null,""]
[null,null,null,null,null,""]
[null,null,null,null,null,""]
[null,null,null,null,null,""]
[null,null,null,null,null,""]
[null,null,null,null,null,""]
[null,null,null,null,null,""]
[null,null,null,null,null,""]
[null,null,null,null,null,""]
[null,null,null,null,null,""]
[null,null,null,null,null,""]
[null,null,null,null,null,""]
[null,null,null,null,null,""]
[null,null,null,null,null,""]
[null,null,null,null,null,""]
[null,null,null,null,null,""]
[null,null,null,null,null,""]
[null,null,null,null,null,""]
[null,null,null,null,null,""]
[null,null,null,null,null,""]
[null,null,null,null,null,""]
[null,null,null,null,null,""]
[null,null,null,null,null,""]
[null,null,null,null,null,""]
[null,null,null,null,null,""]
[null,null,null,null,null,""]
[null,null,null,null,null,""]
[null,null,null,null,null,""]
[null,null,null,null,null,{"$f":"IF(E1731=\"\",\"\",TEXT(E1731,\"ddd\"))","v":""}]
[null,null,null,null,null,""]
[null,null,null,null,null,""]
[null,null,null,null,null,""]
[null,null,null,null,null,""]
[null,null,null,null,null,""]
[null,null,null,null,null,""]
[null,null,null,null,null,""]
[null,null,null,null,null,""]
[null,null,null,null,null,""]
[null,null,null,null,null,""]
[null,null,null,null,null,""]
[null,null,null,null,null,""]
[null,null,null,null,null,""]
[null,null,null,null,null,""]
[null,null,null,null,null,""]
[null,null,null,null,null,""]
[null,null,null,null,null,""]
[null,null,null,null,null,""]
[null,null,null,null,null,""]
[null,null,null,null,null,""]
[null,null,null,null,null,""]
[null,null,null,null,null,""]
[null,null,null,null,null,""]
[null,null,null,null,null,""]
[null,null,null,null,null,""]
[null,null,null,null,null,""]
[null,null,null,null,null,""]
[null,null,null,null,null,""]
[null,null,null,null,null,""]
[null,null,null,null,null,""]
[null,null,null,null,null,""]
[null,null,null,null,null,""]
[null,null,null,null,null,""]
[null,null,null,null,null,""]
[null,null,null,null,null,""]
[null,null,null,null,null,""]
[null,null,null,null,null,""]
[null,null,null,null,null,""]
[null,null,null,null,null,""]
[null,null,null,null,null,""]
[null,null,null,null,null,""]
[null,null,null,null,null,""]
[null,null,null,null,null,""]
[null,null,null,null,null,""]
[null,null,null,null,null,""]
[null,null,null,null,null,""]
[null,null,null,null,null,""]
[null,null,null,null,null,""]
[null,null,null,null,null,""]
[null,null,null,null,null,""]
[null,null,null,null,null,""]
[null,null,null,null,null,""]
[null,null,null,null,null,""]
[null,null,null,null,null,""]
[null,null,null,null,null,""]
[null,null,null,null,null,""]
[null,null,null,null,null,""]
[null,null,null,null,null,""]
[null,null,null,null,null,""]
[null,null,null,null,null,""]
[null,null,null,null,null,""]
[null,null,null,null,null,""]
[null,null,null,null,null,""]
[null,null,null,null,null,{"$f":"IF(E1795=\"\",\"\",TEXT(E1795,\"ddd\"))","v":""}]
[null,null,null,null,null,""]
[null,null,null,null,null,""]
[null,null,null,null,null,""]
[null,null,null,null,null,""]
[null,null,null,null,null,""]
[null,null,null,null,null,""]
[null,null,null,null,null,""]
[null,null,null,null,null,""]
[null,null,null,null,null,""]
[null,null,null,null,null,""]
[null,null,null,null,null,""]
[null,null,null,null,null,""]
[null,null,null,null,null,""]
[null,null,null,null,null,""]
[null,null,null,null,null,""]
[null,null,null,null,null,""]
[null,null,null,null,null,""]
[null,null,null,null,null,""]
[null,null,null,null,null,""]
[null,null,null,null,null,""]
[null,null,null,null,null,""]
[null,null,null,null,null,""]
[null,null,null,null,null,""]
[null,null,null,null,null,""]
[null,null,null,null,null,""]
[null,null,null,null,null,""]
[null,null,null,null,null,""]
[null,null,null,null,null,""]
[null,null,null,null,null,""]
[null,null,null,null,null,""]
[null,null,null,null,null,""]
[null,null,null,null,null,""]
[null,null,null,null,null,""]
[null,null,null,null,null,""]
[null,null,null,null,null,""]
[null,null,null,null,null,""]
[null,null,null,null,null,""]
[null,null,null,null,null,""]
[null,null,null,null,null,""]
[null,null,null,null,null,""]
[null,null,null,null,null,""]
[null,null,null,null,null,""]
[null,null,null,null,null,""]
[null,null,null,null,null,""]
[null,null,null,null,null,""]
[null,null,null,null,null,""]
[null,null,null,null,null,""]
[null,null,null,null,null,""]
[null,null,null,null,null,""]
[null,null,null,null,null,""]
[null,null,null,null,null,""]
[null,null,null,null,null,""]
[null,null,null,null,null,""]
[null,null,null,null,null,""]
[null,null,null,null,null,""]
[null,null,null,null,null,""]
[null,null,null,null,null,""]
[null,null,null,null,null,""]
[null,null,null,null,null,""]
[null,null,null,null,null,""]
[null,null,null,null,null,""]
[null,null,null,null,null,""]
[null,null,null,null,null,""]
[null,null,null,null,null,{"$f":"IF(E1859=\"\",\"\",TEXT(E1859,\"ddd\"))","v":""}]
[null,null,null,null,null,""]
[null,null,null,null,null,""]
[null,null,null,null,null,""]
[null,null,null,null,null,""]
[null,null,null,null,null,""]
[null,null,null,null,null,""]
[null,null,null,null,null,""]
[null,null,null,null,null,""]
[null,null,null,null,null,""]
[null,null,null,null,null,""]
[null,null,null,null,null,""]
[null,null,null,null,null,""]
[null,null,null,null,null,""]
[null,null,null,null,null,""]
[null,null,null,null,null,""]
[null,null,null,null,null,""]
[null,null,null,null,null,""]
[null,null,null,null,null,""]
[null,null,null,null,null,""]
[null,null,null,null,null,""]
[null,null,null,null,null,""]
[null,null,null,null,null,""]
[null,null,null,null,null,""]
[null,null,null,null,null,""]
[null,null,null,null,null,""]
[null,null,null,null,null,""]
[null,null,null,null,null,""]
[null,null,null,null,null,""]
[null,null,null,null,null,""]
[null,null,null,null,null,""]
[null,null,null,null,null,""]
[null,null,null,null,null,""]
[null,null,null,null,null,""]
[null,null,null,null,null,""]
[null,null,null,null,null,""]
[null,null,null,null,null,""]
[null,null,null,null,null,""]
[null,null,null,null,null,""]
[null,null,null,null,null,""]
[null,null,null,null,null,""]
[null,null,null,null,null,""]
[null,null,null,null,null,""]
[null,null,null,null,null,""]
[null,null,null,null,null,""]
[null,null,null,null,null,""]
[null,null,null,null,null,""]
[null,null,null,null,null,""]
[null,null,null,null,null,""]
[null,null,null,null,null,""]
[null,null,null,null,null,""]
[null,null,null,null,null,""]
[null,null,null,null,null,""]
[null,null,null,null,null,""]
[null,null,null,null,null,""]
[null,null,null,null,null,""]
[null,null,null,null,null,""]
[null,null,null,null,null,""]
[null,null,null,null,null,""]
[null,null,null,null,null,""]
[null,null,null,null,null,""]
[null,null,null,null,null,""]
[null,null,null,null,null,""]
[null,null,null,null,null,""]
[null,null,null,null,null,{"$f":"IF(E1923=\"\",\"\",TEXT(E1923,\"ddd\"))","v":""}]
[null,null,null,null,null,""]
[null,null,null,null,null,""]
[null,null,null,null,null,""]
[null,null,null,null,null,""]
[null,null,null,null,null,""]
[null,null,null,null,null,""]
[null,null,null,null,null,""]
[null,null,null,null,null,""]
[null,null,null,null,null,""]
[null,null,null,null,null,""]
[null,null,null,null,null,""]
[null,null,null,null,null,""]
[null,null,null,null,null,""]
[null,null,null,null,null,""]
[null,null,null,null,null,""]
[null,null,null,null,null,""]
[null,null,null,null,null,""]
[null,null,null,null,null,""]
[null,null,null,null,null,""]
[null,null,null,null,null,""]
[null,null,null,null,null,""]
[null,null,null,null,null,""]
[null,null,null,null,null,""]
[null,null,null,null,null,""]
[null,null,null,null,null,""]
[null,null,null,null,null,""]
[null,null,null,null,null,""]
[null,null,null,null,null,""]
[null,null,null,null,null,""]
[null,null,null,null,null,""]
[null,null,null,null,null,""]
[null,null,null,null,null,""]
[null,null,null,null,null,""]
[null,null,null,null,null,""]
[null,null,null,null,null,""]
[null,null,null,null,null,""]
[null,null,null,null,null,""]
[null,null,null,null,null,""]
[null,null,null,null,null,""]
[null,null,null,null,null,""]
[null,null,null,null,null,""]
[null,null,null,null,null,""]
[null,null,null,null,null,""]
[null,null,null,null,null,""]
[null,null,null,null,null,""]
[null,null,null,null,null,""]
[null,null,null,null,null,""]
[null,null,null,null,null,""]
[null,null,null,null,null,""]
[null,null,null,null,null,""]
[null,null,null,null,null,""]
[null,null,null,null,null,""]
[null,null,null,null,null,""]
[null,null,null,null,null,""]
[null,null,null,null,null,""]
[null,null,null,null,null,""]
[null,null,null,null,null,""]
[null,null,null,null,null,""]
[null,null,null,null,null,""]
[null,null,null,null,null,""]
[null,null,null,null,null,""]
[null,null,null,null,null,""]

{"sheet":"حجوزات الملاعب","index":1,"n_rows":1217,"n_cols":9,"rows_kept":1217,"cut":false,"hidden":false,"merged":[[1214,0,1216,0],[1214,1,1216,1],[1205,0,1207,0],[1205,1,1207,1],[1208,0,1210,0],[1208,1,1210,1],[1211,0,1213,0],[1211,1,1213,1],[1196,0,1198,0],[1196,1,1198,1],[1199,0,1201,0],[1199,1,1201,1],[1202,0,1204,0],[1202,1,1204,1],[1187,0,1189,0],[1187,1,1189,1],[1190,0,1192,0],[1190,1,1192,1],[1193,0,1195,0],[1193,1,1195,1],[1178,0,1180,0],[1178,1,1180,1],[1181,0,1183,0],[1181,1,1183,1],[1184,0,1186,0],[1184,1,1186,1],[1169,0,1171,0],[1169,1,1171,1],[1172,0,1174,0],[1172,1,1174,1],[1175,0,1177,0],[1175,1,1177,1],[1160,0,1162,0],[1160,1,1162,1],[1163,0,1165,0],[1163,1,1165,1],[1166,0,1168,0],[1166,1,1168,1],[1151,0,1153,0],[1151,1,1153,1],[1154,0,1156,0],[1154,1,1156,1],[1157,0,1159,0],[1157,1,1159,1],[1142,0,1144,0],[1142,1,1144,1],[1145,0,1147,0],[1145,1,1147,1],[1148,0,1150,0],[1148,1,1150,1],[1133,0,1135,0],[1133,1,1135,1],[1136,0,1138,0],[1136,1,1138,1],[1139,0,1141,0],[1139,1,1141,1],[1124,0,1126,0],[1124,1,1126,1],[1127,0,1129,0],[1127,1,1129,1],[1130,0,1132,0],[1130,1,1132,1],[1115,0,1117,0],[1115,1,1117,1],[1118,0,1120,0],[1118,1,1120,1],[1121,0,1123,0],[1121,1,1123,1],[1106,0,1108,0],[1106,1,1108,1],[1109,0,1111,0],[1109,1,1111,1],[1112,0,1114,0],[1112,1,1114,1],[1097,0,1099,0],[1097,1,1099,1],[1100,0,1102,0],[1100,1,1102,1],[1103,0,1105,0],[1103,1,1105,1],[1088,0,1090,0],[1088,1,1090,1],[1091,0,1093,0],[1091,1,1093,1],[1094,0,1096,0],[1094,1,1096,1],[1079,0,1081,0],[1079,1,1081,1],[1082,0,1084,0],[1082,1,1084,1],[1085,0,1087,0],[1085,1,1087,1],[1070,0,1072,0],[1070,1,1072,1],[1073,0,1075,0],[1073,1,1075,1],[1076,0,1078,0],[1076,1,1078,1],[1061,0,1063,0],[1061,1,1063,1],[1064,0,1066,0],[1064,1,1066,1],[1067,0,1069,0],[1067,1,1069,1],[1052,0,1054,0],[1052,1,1054,1],[1055,0,1057,0],[1055,1,1057,1],[1058,0,1060,0],[1058,1,1060,1],[1043,0,1045,0],[1043,1,1045,1],[1046,0,1048,0],[1046,1,1048,1],[1049,0,1051,0],[1049,1,1051,1],[1034,0,1036,0],[1034,1,1036,1],[1037,0,1039,0],[1037,1,1039,1],[1040,0,1042,0],[1040,1,1042,1],[1025,0,1027,0],[1025,1,1027,1],[1028,0,1030,0],[1028,1,1030,1],[1031,0,1033,0],[1031,1,1033,1],[1016,0,1018,0],[1016,1,1018,1],[1019,0,1021,0],[1019,1,1021,1],[1022,0,1024,0],[1022,1,1024,1],[1007,0,1009,0],[1007,1,1009,1],[1010,0,1012,0],[1010,1,1012,1],[1013,0,1015,0],[1013,1,1015,1],[998,0,1000,0],[998,1,1000,1],[1001,0,1003,0],[1001,1,1003,1],[1004,0,1006,0],[1004,1,1006,1],[989,0,991,0],[989,1,991,1],[992,0,994,0],[992,1,994,1],[995,0,997,0],[995,1,997,1],[980,0,982,0],[980,1,982,1],[983,0,985,0],[983,1,985,1],[986,0,988,0],[986,1,988,1],[971,0,973,0],[971,1,973,1],[974,0,976,0],[974,1,976,1],[977,0,979,0],[977,1,979,1],[962,0,964,0],[962,1,964,1],[965,0,967,0],[965,1,967,1],[968,0,970,0],[968,1,970,1],[953,0,955,0],[953,1,955,1],[956,0,958,0],[956,1,958,1],[959,0,961,0],[959,1,961,1],[944,0,946,0],[944,1,946,1],[947,0,949,0],[947,1,949,1],[950,0,952,0],[950,1,952,1],[935,0,937,0],[935,1,937,1],[938,0,940,0],[938,1,940,1],[941,0,943,0],[941,1,943,1],[926,0,928,0],[926,1,928,1],[929,0,931,0],[929,1,931,1],[932,0,934,0],[932,1,934,1],[917,0,919,0],[917,1,919,1],[920,0,922,0],[920,1,922,1],[923,0,925,0],[923,1,925,1],[908,0,910,0],[908,1,910,1],[911,0,913,0],[911,1,913,1],[914,0,916,0],[914,1,916,1],[899,0,901,0],[899,1,901,1],[902,0,904,0],[902,1,904,1],[905,0,907,0],[905,1,907,1],[890,0,892,0],[890,1,892,1],[893,0,895,0],[893,1,895,1],[896,0,898,0],[896,1,898,1],[881,0,883,0],[881,1,883,1],[884,0,886,0],[884,1,886,1],[887,0,889,0],[887,1,889,1],[872,0,874,0],[872,1,874,1],[875,0,877,0],[875,1,877,1],[878,0,880,0],[878,1,880,1],[863,0,865,0],[863,1,865,1],[866,0,868,0],[866,1,868,1],[869,0,871,0],[869,1,871,1],[854,0,856,0],[854,1,856,1],[857,0,859,0],[857,1,859,1],[860,0,862,0],[860,1,862,1],[845,0,847,0],[845,1,847,1],[848,0,850,0],[848,1,850,1],[851,0,853,0],[851,1,853,1],[836,0,838,0],[836,1,838,1],[839,0,841,0],[839,1,841,1],[842,0,844,0],[842,1,844,1],[827,0,829,0],[827,1,829,1],[830,0,832,0],[830,1,832,1],[833,0,835,0],[833,1,835,1],[818,0,820,0],[818,1,820,1],[821,0,823,0],[821,1,823,1],[824,0,826,0],[824,1,826,1],[809,0,811,0],[809,1,811,1],[812,0,814,0],[812,1,814,1],[815,0,817,0],[815,1,817,1],[800,0,802,0],[800,1,802,1],[803,0,805,0],[803,1,805,1],[806,0,808,0],[806,1,808,1],[791,0,793,0],[791,1,793,1],[794,0,796,0],[794,1,796,1],[797,0,799,0],[797,1,799,1],[782,0,784,0],[782,1,784,1],[785,0,787,0],[785,1,787,1],[788,0,790,0],[788,1,790,1],[773,0,775,0],[773,1,775,1],[776,0,778,0],[776,1,778,1],[779,0,781,0],[779,1,781,1],[764,0,766,0],[764,1,766,1],[767,0,769,0],[767,1,769,1],[770,0,772,0],[770,1,772,1],[755,0,757,0],[755,1,757,1],[758,0,760,0],[758,1,760,1],[761,0,763,0],[761,1,763,1],[746,0,748,0],[746,1,748,1],[749,0,751,0],[749,1,751,1],[752,0,754,0],[752,1,754,1],[737,0,739,0],[737,1,739,1],[740,0,742,0],[740,1,742,1],[743,0,745,0],[743,1,745,1],[728,0,730,0],[728,1,730,1],[731,0,733,0],[731,1,733,1],[734,0,736,0],[734,1,736,1],[719,0,721,0],[719,1,721,1],[722,0,724,0],[722,1,724,1],[725,0,727,0],[725,1,727,1],[710,0,712,0],[710,1,712,1],[713,0,715,0],[713,1,715,1],[716,0,718,0],[716,1,718,1],[701,0,703,0],[701,1,703,1],[704,0,706,0],[704,1,706,1],[707,0,709,0],[707,1,709,1],[692,0,694,0],[692,1,694,1],[695,0,697,0],[695,1,697,1],[698,0,700,0],[698,1,700,1],[683,0,685,0],[683,1,685,1],[686,0,688,0],[686,1,688,1],[689,0,691,0],[689,1,691,1],[674,0,676,0],[674,1,676,1],[677,0,679,0],[677,1,679,1],[680,0,682,0],[680,1,682,1],[665,0,667,0],[665,1,667,1],[668,0,670,0],[668,1,670,1],[671,0,673,0],[671,1,673,1],[656,0,658,0],[656,1,658,1],[659,0,661,0],[659,1,661,1],[662,0,664,0],[662,1,664,1],[647,0,649,0],[647,1,649,1],[650,0,652,0],[650,1,652,1],[653,0,655,0],[653,1,655,1],[638,0,640,0],[638,1,640,1],[641,0,643,0],[641,1,643,1],[644,0,646,0],[644,1,646,1],[629,0,631,0],[629,1,631,1],[632,0,634,0],[632,1,634,1],[635,0,637,0],[635,1,637,1],[620,0,622,0],[620,1,622,1],[623,0,625,0],[623,1,625,1],[626,0,628,0],[626,1,628,1],[611,0,613,0],[611,1,613,1],[614,0,616,0],[614,1,616,1],[617,0,619,0],[617,1,619,1],[602,0,604,0],[602,1,604,1],[605,0,607,0],[605,1,607,1],[608,0,610,0],[608,1,610,1],[593,0,595,0],[593,1,595,1],[596,0,598,0],[596,1,598,1],[599,0,601,0],[599,1,601,1],[584,0,586,0],[584,1,586,1],[587,0,589,0],[587,1,589,1],[590,0,592,0],[590,1,592,1],[575,0,577,0],[575,1,577,1],[578,0,580,0],[578,1,580,1],[581,0,583,0],[581,1,583,1],[566,0,568,0],[566,1,568,1],[569,0,571,0],[569,1,571,1],[572,0,574,0],[572,1,574,1],[557,0,559,0],[557,1,559,1],[560,0,562,0],[560,1,562,1],[563,0,565,0],[563,1,565,1],[548,0,550,0],[548,1,550,1],[551,0,553,0],[551,1,553,1],[554,0,556,0],[554,1,556,1],[539,0,541,0],[539,1,541,1],[542,0,544,0],[542,1,544,1],[545,0,547,0],[545,1,547,1],[530,0,532,0],[530,1,532,1],[533,0,535,0],[533,1,535,1],[536,0,538,0],[536,1,538,1],[521,0,523,0],[521,1,523,1],[524,0,526,0],[524,1,526,1],[527,0,529,0],[527,1,529,1],[512,0,514,0],[512,1,514,1],[515,0,517,0],[515,1,517,1],[518,0,520,0],[518,1,520,1],[503,0,505,0],[503,1,505,1],[506,0,508,0],[506,1,508,1],[509,0,511,0],[509,1,511,1],[494,0,496,0],[494,1,496,1],[497,0,499,0],[497,1,499,1],[500,0,502,0],[500,1,502,1],[485,0,487,0],[485,1,487,1],[488,0,490,0],[488,1,490,1],[491,0,493,0],[491,1,493,1],[476,0,478,0],[476,1,478,1],[479,0,481,0],[479,1,481,1],[482,0,484,0],[482,1,484,1],[467,0,469,0],[467,1,469,1],[470,0,472,0],[470,1,472,1],[473,0,475,0],[473,1,475,1],[458,0,460,0],[458,1,460,1],[461,0,463,0],[461,1,463,1],[464,0,466,0],[464,1,466,1],[449,0,451,0],[449,1,451,1],[452,0,454,0],[452,1,454,1],[455,0,457,0],[455,1,457,1],[440,0,442,0],[440,1,442,1],[443,0,445,0],[443,1,445,1],[446,0,448,0],[446,1,448,1],[431,0,433,0],[431,1,433,1],[434,0,436,0],[434,1,436,1],[437,0,439,0],[437,1,439,1],[422,0,424,0],[422,1,424,1],[425,0,427,0],[425,1,427,1],[428,0,430,0],[428,1,430,1],[413,0,415,0],[413,1,415,1],[416,0,418,0],[416,1,418,1],[419,0,421,0],[419,1,421,1],[404,0,406,0],[404,1,406,1],[407,0,409,0],[407,1,409,1],[410,0,412,0],[410,1,412,1],[395,0,397,0],[395,1,397,1],[398,0,400,0],[398,1,400,1],[401,0,403,0],[401,1,403,1],[386,0,388,0],[386,1,388,1],[389,0,391,0],[389,1,391,1],[392,0,394,0],[392,1,394,1],[377,0,379,0],[377,1,379,1],[380,0,382,0],[380,1,382,1],[383,0,385,0],[383,1,385,1],[368,0,370,0],[368,1,370,1],[371,0,373,0],[371,1,373,1],[374,0,376,0],[374,1,376,1],[359,0,361,0],[359,1,361,1],[362,0,364,0],[362,1,364,1],[365,0,367,0],[365,1,367,1],[350,0,352,0],[350,1,352,1],[353,0,355,0],[353,1,355,1],[356,0,358,0],[356,1,358,1],[341,0,343,0],[341,1,343,1],[344,0,346,0],[344,1,346,1],[347,0,349,0],[347,1,349,1],[332,0,334,0],[332,1,334,1],[335,0,337,0],[335,1,337,1],[338,0,340,0],[338,1,340,1],[323,0,325,0],[323,1,325,1],[326,0,328,0],[326,1,328,1],[329,0,331,0],[329,1,331,1],[314,0,316,0],[314,1,316,1],[317,0,319,0],[317,1,319,1],[320,0,322,0],[320,1,322,1],[305,0,307,0],[305,1,307,1],[308,0,310,0],[308,1,310,1],[311,0,313,0],[311,1,313,1],[296,0,298,0],[296,1,298,1],[299,0,301,0],[299,1,301,1],[302,0,304,0],[302,1,304,1],[287,0,289,0],[287,1,289,1],[290,0,292,0],[290,1,292,1],[293,0,295,0],[293,1,295,1],[278,0,280,0],[278,1,280,1],[281,0,283,0],[281,1,283,1],[284,0,286,0],[284,1,286,1],[269,0,271,0],[269,1,271,1],[272,0,274,0],[272,1,274,1],[275,0,277,0],[275,1,277,1],[260,0,262,0],[260,1,262,1],[263,0,265,0],[263,1,265,1],[266,0,268,0],[266,1,268,1],[251,0,253,0],[251,1,253,1],[254,0,256,0],[254,1,256,1],[257,0,259,0],[257,1,259,1],[242,0,244,0],[242,1,244,1],[245,0,247,0],[245,1,247,1],[248,0,250,0],[248,1,250,1],[233,0,235,0],[233,1,235,1],[236,0,238,0],[236,1,238,1],[239,0,241,0],[239,1,241,1],[224,0,226,0],[224,1,226,1],[227,0,229,0],[227,1,229,1],[230,0,232,0],[230,1,232,1],[215,0,217,0],[215,1,217,1],[218,0,220,0],[218,1,220,1],[221,0,223,0],[221,1,223,1],[206,0,208,0],[206,1,208,1],[209,0,211,0],[209,1,211,1],[212,0,214,0],[212,1,214,1],[197,0,199,0],[197,1,199,1],[200,0,202,0],[200,1,202,1],[203,0,205,0],[203,1,205,1],[188,0,190,0],[188,1,190,1],[191,0,193,0],[191,1,193,1],[194,0,196,0],[194,1,196,1],[179,0,181,0],[179,1,181,1],[182,0,184,0],[182,1,184,1],[185,0,187,0],[185,1,187,1],[170,0,172,0],[170,1,172,1],[173,0,175,0],[173,1,175,1],[176,0,178,0],[176,1,178,1],[161,0,163,0],[161,1,163,1],[164,0,166,0],[164,1,166,1],[167,0,169,0],[167,1,169,1],[152,0,154,0],[152,1,154,1],[155,0,157,0],[155,1,157,1],[158,0,160,0],[158,1,160,1],[116,1,118,1],[119,1,121,1],[122,1,124,1],[140,0,142,0],[131,1,133,1],[98,1,100,1],[101,1,103,1],[104,1,106,1],[107,1,109,1],[125,1,127,1],[128,1,130,1],[110,1,112,1],[113,1,115,1],[128,0,130,0],[131,0,133,0],[119,0,121,0],[122,0,124,0],[125,0,127,0],[110,0,112,0],[113,0,115,0],[116,0,118,0],[107,0,109,0],[104,0,106,0],[143,0,145,0],[146,0,148,0],[149,0,151,0],[134,1,136,1],[137,1,139,1],[140,1,142,1],[143,1,145,1],[146,1,148,1],[149,1,151,1],[134,0,136,0],[137,0,139,0],[71,0,73,0],[38,0,40,0],[41,0,43,0],[95,1,97,1],[62,1,64,1],[65,1,67,1],[68,1,70,1],[71,1,73,1],[74,1,76,1],[77,1,79,1],[80,1,82,1],[83,1,85,1],[86,1,88,1],[89,1,91,1],[92,1,94,1],[59,1,61,1],[38,1,40,1],[41,1,43,1],[44,1,46,1],[47,1,49,1],[50,1,52,1],[53,1,55,1],[56,1,58,1],[74,0,76,0],[77,0,79,0],[80,0,82,0],[83,0,85,0],[86,0,88,0],[89,0,91,0],[92,0,94,0],[95,0,97,0],[98,0,100,0],[101,0,103,0],[44,0,46,0],[47,0,49,0],[50,0,52,0],[53,0,55,0],[56,0,58,0],[59,0,61,0],[62,0,64,0],[65,0,67,0],[68,0,70,0],[2,0,2,1],[1,0,1,1],[35,0,37,0],[5,1,7,1],[5,0,7,0],[8,0,10,0],[11,0,13,0],[14,0,16,0],[17,0,19,0],[20,0,22,0],[23,0,25,0],[26,0,28,0],[29,0,31,0],[32,0,34,0],[8,1,10,1],[11,1,13,1],[14,1,16,1],[17,1,19,1],[20,1,22,1],[23,1,25,1],[26,1,28,1],[29,1,31,1],[32,1,34,1],[35,1,37,1]]}
[]
["تاريخ اليوم "]
[{"$f":"TODAY()","v":"2021-03-29"}]
[]
["الأيام ","التاريخ ","الملعب ","من 4:30 م إلى 6:00 م","من 7:00 م  إلى 8:30 م ","من9:00 م إلى 10:30 م","من10:30 م إلى 12:00 ص","من 12:00 ص إلى 1:30 ص","من 1:30 ص إلى 3:00 ص"]
[{"$f":"IF(B6=\"\",\"\",TEXT(B6,\"ddd\"))","v":"الخميس"},"2021-04-01","الملعب الصغير"]
[null,null,"الملعب الوسط "]
[null,null,"الملعب الكبير"]
[{"$f":"IF(B9=\"\",\"\",TEXT(B9,\"ddd\"))","v":"الجمعة"},"2021-04-02","الملعب الصغير"]
[null,null,"الملعب الوسط "]
[null,null,"الملعب الكبير"]
[{"$f":"IF(B12=\"\",\"\",TEXT(B12,\"ddd\"))","v":"السبت"},"2021-04-03","الملعب الصغير"]
[null,null,"الملعب الوسط "]
[null,null,"الملعب الكبير"]
[{"$f":"IF(B15=\"\",\"\",TEXT(B15,\"ddd\"))","v":"الأحد"},"2021-04-04","الملعب الصغير"]
[null,null,"الملعب الوسط "]
[null,null,"الملعب الكبير"]
[{"$f":"IF(B18=\"\",\"\",TEXT(B18,\"ddd\"))","v":"الإثنين"},"2021-04-05","الملعب الصغير"]
[null,null,"الملعب الوسط "]
[null,null,"الملعب الكبير"]
[{"$f":"IF(B21=\"\",\"\",TEXT(B21,\"ddd\"))","v":"الثلاثاء"},"2021-04-06","الملعب الصغير"]
[null,null,"الملعب الوسط "]
[null,null,"الملعب الكبير"]
[{"$f":"IF(B24=\"\",\"\",TEXT(B24,\"ddd\"))","v":"الأربعاء"},"2021-04-07","الملعب الصغير"]
[null,null,"الملعب الوسط "]
[null,null,"الملعب الكبير"]
[{"$f":"IF(B27=\"\",\"\",TEXT(B27,\"ddd\"))","v":"الخميس"},"2021-04-08","الملعب الصغير"]
[null,null,"الملعب الوسط "]
[null,null,"الملعب الكبير"]
[{"$f":"IF(B30=\"\",\"\",TEXT(B30,\"ddd\"))","v":"الجمعة"},"2021-04-09","الملعب الصغير"]
[null,null,"الملعب الوسط "]
[null,null,"الملعب الكبير"]
[{"$f":"IF(B33=\"\",\"\",TEXT(B33,\"ddd\"))","v":"السبت"},"2021-04-10","الملعب الصغير"]
[null,null,"الملعب الوسط "]
[null,null,"الملعب الكبير"]
[{"$f":"IF(B36=\"\",\"\",TEXT(B36,\"ddd\"))","v":"الأحد"},"2021-04-11","الملعب الصغير"]
[null,null,"الملعب الوسط "]
[null,null,"الملعب الكبير"]
[{"$f":"IF(B39=\"\",\"\",TEXT(B39,\"ddd\"))","v":"الإثنين"},"2021-04-12","الملعب الصغير"]
[null,null,"الملعب الوسط "]
[null,null,"الملعب الكبير"]
[{"$f":"IF(B42=\"\",\"\",TEXT(B42,\"ddd\"))","v":"الثلاثاء"},"2021-04-13","الملعب الصغير"]
[null,null,"الملعب الوسط "]
[null,null,"الملعب الكبير"]
["الأربعاء","2021-04-14","الملعب الصغير"]
[null,null,"الملعب الوسط "]
[null,null,"الملعب الكبير"]
["الخميس","2021-04-15","الملعب الصغير"]
[null,null,"الملعب الوسط "]
[null,null,"الملعب الكبير"]
["الجمعة","2021-04-16","الملعب الصغير"]
[null,null,"الملعب الوسط "]
[null,null,"الملعب الكبير"]
["السبت","2021-04-17","الملعب الصغير"]
[null,null,"الملعب الوسط "]
[null,null,"الملعب الكبير"]
["الأحد","2021-04-18","الملعب الصغير"]
[null,null,"الملعب الوسط "]
[null,null,"الملعب الكبير"]
[{"$f":"IF(B60=\"\",\"\",TEXT(B60,\"ddd\"))","v":"الإثنين"},"2021-04-19","الملعب الصغير"]
[null,null,"الملعب الوسط "]
[null,null,"الملعب الكبير"]
["الثلاثاء","2021-04-20","الملعب الصغير"]
[null,null,"الملعب الوسط "]
[null,null,"الملعب الكبير"]
["الأربعاء","2021-04-21","الملعب الصغير"]
[null,null,"الملعب الوسط "]
[null,null,"الملعب الكبير"]
["الخميس","2021-04-22","الملعب الصغير"]
[null,null,"الملعب الوسط "]
[null,null,"الملعب الكبير"]
["الجمعة","2021-04-23","الملعب الصغير"]
[null,null,"الملعب الوسط "]
[null,null,"الملعب الكبير"]
["السبت","2021-04-24","الملعب الصغير"]
[null,null,"الملعب الوسط "]
[null,null,"الملعب الكبير"]
[{"$f":"IF(B78=\"\",\"\",TEXT(B78,\"ddd\"))","v":"الأحد"},"2021-04-25","الملعب الصغير"]
[null,null,"الملعب الوسط "]
[null,null,"الملعب الكبير"]
["الإثنين","2021-04-26","الملعب الصغير"]
[null,null,"الملعب الوسط "]
[null,null,"الملعب الكبير"]
["الثلاثاء","2021-04-27","الملعب الصغير"]
[null,null,"الملعب الوسط "]
[null,null,"الملعب الكبير"]
["الأربعاء","2021-04-28","الملعب الصغير"]
[null,null,"الملعب الوسط "]
[null,null,"الملعب الكبير"]
["الخميس","2021-04-29","الملعب الصغير"]
[null,null,"الملعب الوسط "]
[null,null,"الملعب الكبير"]
["الجمعة","2021-04-30","الملعب الصغير"]
[null,null,"الملعب الوسط "]
[null,null,"الملعب الكبير"]
[{"$f":"IF(B96=\"\",\"\",TEXT(B96,\"ddd\"))","v":"السبت"},"2021-05-01","الملعب الصغير"]
[null,null,"الملعب الوسط "]
[null,null,"الملعب الكبير"]
[{"$f":"IF(B99=\"\",\"\",TEXT(B99,\"ddd\"))","v":"الأحد"},"2021-05-02","الملعب الصغير"]
[null,null,"الملعب الوسط "]
[null,null,"الملعب الكبير"]
[{"$f":"IF(B102=\"\",\"\",TEXT(B102,\"ddd\"))","v":"الإثنين"},"2021-05-03","الملعب الصغير"]
[null,null,"الملعب الوسط "]
[null,null,"الملعب الكبير"]
[{"$f":"IF(B105=\"\",\"\",TEXT(B105,\"ddd\"))","v":"الثلاثاء"},"2021-05-04","الملعب الصغير"]
[null,null,"الملعب الوسط "]
[null,null,"الملعب الكبير"]
[{"$f":"IF(B108=\"\",\"\",TEXT(B108,\"ddd\"))","v":"الأربعاء"},"2021-05-05","الملعب الصغير"]
[null,null,"الملعب الوسط "]
[null,null,"الملعب الكبير"]
[{"$f":"IF(B111=\"\",\"\",TEXT(B111,\"ddd\"))","v":"الخميس"},"2021-05-06","الملعب الصغير"]
[null,null,"الملعب الوسط "]
[null,null,"الملعب الكبير"]
[{"$f":"IF(B114=\"\",\"\",TEXT(B114,\"ddd\"))","v":"الجمعة"},"2021-05-07","الملعب الصغير"]
[null,null,"الملعب الوسط "]
[null,null,"الملعب الكبير"]
["السبت","2021-05-08","الملعب الصغير"]
[null,null,"الملعب الوسط "]
[null,null,"الملعب الكبير"]
["الأحد","2021-05-09","الملعب الصغير"]
[null,null,"الملعب الوسط "]
[null,null,"الملعب الكبير"]
["الإثنين","2021-05-10","الملعب الصغير"]
[null,null,"الملعب الوسط "]
[null,null,"الملعب الكبير"]
["الثلاثاء","2021-05-11","الملعب الصغير"]
[null,null,"الملعب الوسط "]
[null,null,"الملعب الكبير"]
["الأربعاء","2021-05-12","الملعب الصغير"]
[null,null,"الملعب الوسط "]
[null,null,"الملعب الكبير"]
[{"$f":"IF(B132=\"\",\"\",TEXT(B132,\"ddd\"))","v":"الخميس"},"2021-05-13","الملعب الصغير"]
[null,null,"الملعب الوسط "]
[null,null,"الملعب الكبير"]
["الجمعة","2021-05-14","الملعب الصغير"]
[null,null,"الملعب الوسط "]
[null,null,"الملعب الكبير"]
["السبت","2021-05-15","الملعب الصغير"]
[null,null,"الملعب الوسط "]
[null,null,"الملعب الكبير"]
["الأحد","2021-05-16","الملعب الصغير"]
[null,null,"الملعب الوسط "]
[null,null,"الملعب الكبير"]
["الإثنين","2021-05-17","الملعب الصغير"]
[null,null,"الملعب الوسط "]
[null,null,"الملعب الكبير"]
["الثلاثاء","2021-05-18","الملعب الصغير"]
[null,null,"الملعب الوسط "]
[null,null,"الملعب الكبير"]
[{"$f":"IF(B150=\"\",\"\",TEXT(B150,\"ddd\"))","v":"الأربعاء"},"2021-05-19","الملعب الصغير"]
[null,null,"الملعب الوسط "]
[null,null,"الملعب الكبير"]
["الخميس","2021-05-20","الملعب الصغير"]
[null,null,"الملعب الوسط "]
[null,null,"الملعب الكبير"]
["الجمعة","2021-05-21","الملعب الصغير"]
[null,null,"الملعب الوسط "]
[null,null,"الملعب الكبير"]
["السبت","2021-05-22","الملعب الصغير"]
[null,null,"الملعب الوسط "]
[null,null,"الملعب الكبير"]
["الأحد","2021-05-23","الملعب الصغير"]
[null,null,"الملعب الوسط "]
[null,null,"الملعب الكبير"]
["الإثنين","2021-05-24","الملعب الصغير"]
[null,null,"الملعب الوسط "]
[null,null,"الملعب الكبير"]
[{"$f":"IF(B168=\"\",\"\",TEXT(B168,\"ddd\"))","v":"الثلاثاء"},"2021-05-25","الملعب الصغير"]
[null,null,"الملعب الوسط "]
[null,null,"الملعب الكبير"]
[{"$f":"IF(B171=\"\",\"\",TEXT(B171,\"ddd\"))","v":"الأربعاء"},"2021-05-26","الملعب الصغير"]
[null,null,"الملعب الوسط "]
[null,null,"الملعب الكبير"]
[{"$f":"IF(B174=\"\",\"\",TEXT(B174,\"ddd\"))","v":"الخميس"},"2021-05-27","الملعب الصغير"]
[null,null,"الملعب الوسط "]
[null,null,"الملعب الكبير"]
[{"$f":"IF(B177=\"\",\"\",TEXT(B177,\"ddd\"))","v":"الجمعة"},"2021-05-28","الملعب الصغير"]
[null,null,"الملعب الوسط "]
[null,null,"الملعب الكبير"]
[{"$f":"IF(B180=\"\",\"\",TEXT(B180,\"ddd\"))","v":"السبت"},"2021-05-29","الملعب الصغير"]
[null,null,"الملعب الوسط "]
[null,null,"الملعب الكبير"]
[{"$f":"IF(B183=\"\",\"\",TEXT(B183,\"ddd\"))","v":"الأحد"},"2021-05-30","الملعب الصغير"]
[null,null,"الملعب الوسط "]
[null,null,"الملعب الكبير"]
[{"$f":"IF(B186=\"\",\"\",TEXT(B186,\"ddd\"))","v":"الإثنين"},"2021-05-31","الملعب الصغير"]
[null,null,"الملعب الوسط "]
[null,null,"الملعب الكبير"]
["الثلاثاء","2021-06-01","الملعب الصغير"]
[null,null,"الملعب الوسط "]
[null,null,"الملعب الكبير"]
["الأربعاء","2021-06-02","الملعب الصغير"]
[null,null,"الملعب الوسط "]
[null,null,"الملعب الكبير"]
["الخميس","2021-06-03","الملعب الصغير"]
[null,null,"الملعب الوسط "]
[null,null,"الملعب الكبير"]
["الجمعة","2021-06-04","الملعب الصغير"]
[null,null,"الملعب الوسط "]
[null,null,"الملعب الكبير"]
["السبت","2021-06-05","الملعب الصغير"]
[null,null,"الملعب الوسط "]
[null,null,"الملعب الكبير"]
[{"$f":"IF(B204=\"\",\"\",TEXT(B204,\"ddd\"))","v":"الأحد"},"2021-06-06","الملعب الصغير"]
[null,null,"الملعب الوسط "]
[null,null,"الملعب الكبير"]
["الإثنين","2021-06-07","الملعب الصغير"]
[null,null,"الملعب الوسط "]
[null,null,"الملعب الكبير"]
["الثلاثاء","2021-06-08","الملعب الصغير"]
[null,null,"الملعب الوسط "]
[null,null,"الملعب الكبير"]
["الأربعاء","2021-06-09","الملعب الصغير"]
[null,null,"الملعب الوسط "]
[null,null,"الملعب الكبير"]
["الخميس","2021-06-10","الملعب الصغير"]
[null,null,"الملعب الوسط "]
[null,null,"الملعب الكبير"]
["الجمعة","2021-06-11","الملعب الصغير"]
[null,null,"الملعب الوسط "]
[null,null,"الملعب الكبير"]
[{"$f":"IF(B222=\"\",\"\",TEXT(B222,\"ddd\"))","v":"السبت"},"2021-06-12","الملعب الصغير"]
[null,null,"الملعب الوسط "]
[null,null,"الملعب الكبير"]
["الأحد","2021-06-13","الملعب الصغير"]
[null,null,"الملعب الوسط "]
[null,null,"الملعب الكبير"]
["الإثنين","2021-06-14","الملعب الصغير"]
[null,null,"الملعب الوسط "]
[null,null,"الملعب الكبير"]
["الثلاثاء","2021-06-15","الملعب الصغير"]
[null,null,"الملعب الوسط "]
[null,null,"الملعب الكبير"]
["الأربعاء","2021-06-16","الملعب الصغير"]
[null,null,"الملعب الوسط "]
[null,null,"الملعب الكبير"]
["الخميس","2021-06-17","الملعب الصغير"]
[null,null,"الملعب الوسط "]
[null,null,"الملعب الكبير"]
[{"$f":"IF(B240=\"\",\"\",TEXT(B240,\"ddd\"))","v":"الجمعة"},"2021-06-18","الملعب الصغير"]
[null,null,"الملعب الوسط "]
[null,null,"الملعب الكبير"]
[{"$f":"IF(B243=\"\",\"\",TEXT(B243,\"ddd\"))","v":"السبت"},"2021-06-19","الملعب الصغير"]
[null,null,"الملعب الوسط "]
[null,null,"الملعب الكبير"]
[{"$f":"IF(B246=\"\",\"\",TEXT(B246,\"ddd\"))","v":"الأحد"},"2021-06-20","الملعب الصغير"]
[null,null,"الملعب الوسط "]
[null,null,"الملعب الكبير"]
[{"$f":"IF(B249=\"\",\"\",TEXT(B249,\"ddd\"))","v":"الإثنين"},"2021-06-21","الملعب الصغير"]
[null,null,"الملعب الوسط "]
[null,null,"الملعب الكبير"]
[{"$f":"IF(B252=\"\",\"\",TEXT(B252,\"ddd\"))","v":"الثلاثاء"},"2021-06-22","الملعب الصغير"]
[null,null,"الملعب الوسط "]
[null,null,"الملعب الكبير"]
[{"$f":"IF(B255=\"\",\"\",TEXT(B255,\"ddd\"))","v":"الأربعاء"},"2021-06-23","الملعب الصغير"]
[null,null,"الملعب الوسط "]
[null,null,"الملعب الكبير"]
[{"$f":"IF(B258=\"\",\"\",TEXT(B258,\"ddd\"))","v":"الخميس"},"2021-06-24","الملعب الصغير"]
[null,null,"الملعب الوسط "]
[null,null,"الملعب الكبير"]
["الجمعة","2021-06-25","الملعب الصغير"]
[null,null,"الملعب الوسط "]
[null,null,"الملعب الكبير"]
["السبت","2021-06-26","الملعب الصغير"]
[null,null,"الملعب الوسط "]
[null,null,"الملعب الكبير"]
["الأحد","2021-06-27","الملعب الصغير"]
[null,null,"الملعب الوسط "]
[null,null,"الملعب الكبير"]
["الإثنين","2021-06-28","الملعب الصغير"]
[null,null,"الملعب الوسط "]
[null,null,"الملعب الكبير"]
["الثلاثاء","2021-06-29","الملعب الصغير"]
[null,null,"الملعب الوسط "]
[null,null,"الملعب الكبير"]
[{"$f":"IF(B276=\"\",\"\",TEXT(B276,\"ddd\"))","v":"الأربعاء"},"2021-06-30","الملعب الصغير"]
[null,null,"الملعب الوسط "]
[null,null,"الملعب الكبير"]
["الخميس","2021-07-01","الملعب الصغير"]
[null,null,"الملعب الوسط "]
[null,null,"الملعب الكبير"]
["الجمعة","2021-07-02","الملعب الصغير"]
[null,null,"الملعب الوسط "]
[null,null,"الملعب الكبير"]
["السبت","2021-07-03","الملعب الصغير"]
[null,null,"الملعب الوسط "]
[null,null,"الملعب الكبير"]
["الأحد","2021-07-04","الملعب الصغير"]
[null,null,"الملعب الوسط "]
[null,null,"الملعب الكبير"]
["الإثنين","2021-07-05","الملعب الصغير"]
[null,null,"الملعب الوسط "]
[null,null,"الملعب الكبير"]
[{"$f":"IF(B294=\"\",\"\",TEXT(B294,\"ddd\"))","v":"الثلاثاء"},"2021-07-06","الملعب الصغير"]
[null,null,"الملعب الوسط "]
[null,null,"الملعب الكبير"]
["الأربعاء","2021-07-07","الملعب الصغير"]
[null,null,"الملعب الوسط "]
[null,null,"الملعب الكبير"]
["الخميس","2021-07-08","الملعب الصغير"]
[null,null,"الملعب الوسط "]
[null,null,"الملعب الكبير"]
["الجمعة","2021-07-09","الملعب الصغير"]
[null,null,"الملعب الوسط "]
[null,null,"الملعب الكبير"]
["السبت","2021-07-10","الملعب الصغير"]
[null,null,"الملعب الوسط "]
[null,null,"الملعب الكبير"]
["الأحد","2021-07-11","الملعب الصغير"]
[null,null,"الملعب الوسط "]
[null,null,"الملعب الكبير"]
[{"$f":"IF(B312=\"\",\"\",TEXT(B312,\"ddd\"))","v":"الإثنين"},"2021-07-12","الملعب الصغير"]
[null,null,"الملعب الوسط "]
[null,null,"الملعب الكبير"]
[{"$f":"IF(B315=\"\",\"\",TEXT(B315,\"ddd\"))","v":"الثلاثاء"},"2021-07-13","الملعب الصغير"]
[null,null,"الملعب الوسط "]
[null,null,"الملعب الكبير"]
[{"$f":"IF(B318=\"\",\"\",TEXT(B318,\"ddd\"))","v":"الأربعاء"},"2021-07-14","الملعب الصغير"]
[null,null,"الملعب الوسط "]
[null,null,"الملعب الكبير"]
[{"$f":"IF(B321=\"\",\"\",TEXT(B321,\"ddd\"))","v":"الخميس"},"2021-07-15","الملعب الصغير"]
[null,null,"الملعب الوسط "]
[null,null,"الملعب الكبير"]
[{"$f":"IF(B324=\"\",\"\",TEXT(B324,\"ddd\"))","v":"الجمعة"},"2021-07-16","الملعب الصغير"]
[null,null,"الملعب الوسط "]
[null,null,"الملعب الكبير"]
[{"$f":"IF(B327=\"\",\"\",TEXT(B327,\"ddd\"))","v":"السبت"},"2021-07-17","الملعب الصغير"]
[null,null,"الملعب الوسط "]
[null,null,"الملعب الكبير"]
[{"$f":"IF(B330=\"\",\"\",TEXT(B330,\"ddd\"))","v":"الأحد"},"2021-07-18","الملعب الصغير"]
[null,null,"الملعب الوسط "]
[null,null,"الملعب الكبير"]
["الإثنين","2021-07-19","الملعب الصغير"]
[null,null,"الملعب الوسط "]
[null,null,"الملعب الكبير"]
["الثلاثاء","2021-07-20","الملعب الصغير"]
[null,null,"الملعب الوسط "]
[null,null,"الملعب الكبير"]
["الأربعاء","2021-07-21","الملعب الصغير"]
[null,null,"الملعب الوسط "]
[null,null,"الملعب الكبير"]
["الخميس","2021-07-22","الملعب الصغير"]
[null,null,"الملعب الوسط "]
[null,null,"الملعب الكبير"]
["الجمعة","2021-07-23","الملعب الصغير"]
[null,null,"الملعب الوسط "]
[null,null,"الملعب الكبير"]
[{"$f":"IF(B348=\"\",\"\",TEXT(B348,\"ddd\"))","v":"السبت"},"2021-07-24","الملعب الصغير"]
[null,null,"الملعب الوسط "]
[null,null,"الملعب الكبير"]
["الأحد","2021-07-25","الملعب الصغير"]
[null,null,"الملعب الوسط "]
[null,null,"الملعب الكبير"]
["الإثنين","2021-07-26","الملعب الصغير"]
[null,null,"الملعب الوسط "]
[null,null,"الملعب الكبير"]
["الثلاثاء","2021-07-27","الملعب الصغير"]
[null,null,"الملعب الوسط "]
[null,null,"الملعب الكبير"]
["الأربعاء","2021-07-28","الملعب الصغير"]
[null,null,"الملعب الوسط "]
[null,null,"الملعب الكبير"]
["الخميس","2021-07-29","الملعب الصغير"]
[null,null,"الملعب الوسط "]
[null,null,"الملعب الكبير"]
[{"$f":"IF(B366=\"\",\"\",TEXT(B366,\"ddd\"))","v":"الجمعة"},"2021-07-30","الملعب الصغير"]
[null,null,"الملعب الوسط "]
[null,null,"الملعب الكبير"]
["السبت","2021-07-31","الملعب الصغير"]
[null,null,"الملعب الوسط "]
[null,null,"الملعب الكبير"]
["الأحد","2021-08-01","الملعب الصغير"]
[null,null,"الملعب الوسط "]
[null,null,"الملعب الكبير"]
["الإثنين","2021-08-02","الملعب الصغير"]
[null,null,"الملعب الوسط "]
[null,null,"الملعب الكبير"]
["الثلاثاء","2021-08-03","الملعب الصغير"]
[null,null,"الملعب الوسط "]
[null,null,"الملعب الكبير"]
["الأربعاء","2021-08-04","الملعب الصغير"]
[null,null,"الملعب الوسط "]
[null,null,"الملعب الكبير"]
[{"$f":"IF(B384=\"\",\"\",TEXT(B384,\"ddd\"))","v":"الخميس"},"2021-08-05","الملعب الصغير"]
[null,null,"الملعب الوسط "]
[null,null,"الملعب الكبير"]
[{"$f":"IF(B387=\"\",\"\",TEXT(B387,\"ddd\"))","v":"الجمعة"},"2021-08-06","الملعب الصغير"]
[null,null,"الملعب الوسط "]
[null,null,"الملعب الكبير"]
[{"$f":"IF(B390=\"\",\"\",TEXT(B390,\"ddd\"))","v":"السبت"},"2021-08-07","الملعب الصغير"]
[null,null,"الملعب الوسط "]
[null,null,"الملعب الكبير"]
[{"$f":"IF(B393=\"\",\"\",TEXT(B393,\"ddd\"))","v":"الأحد"},"2021-08-08","الملعب الصغير"]
[null,null,"الملعب الوسط "]
[null,null,"الملعب الكبير"]
[{"$f":"IF(B396=\"\",\"\",TEXT(B396,\"ddd\"))","v":"الإثنين"},"2021-08-09","الملعب الصغير"]
[null,null,"الملعب الوسط "]
[null,null,"الملعب الكبير"]
[{"$f":"IF(B399=\"\",\"\",TEXT(B399,\"ddd\"))","v":"الثلاثاء"},"2021-08-10","الملعب الصغير"]
[null,null,"الملعب الوسط "]
[null,null,"الملعب الكبير"]
[{"$f":"IF(B402=\"\",\"\",TEXT(B402,\"ddd\"))","v":"الأربعاء"},"2021-08-11","الملعب الصغير"]
[null,null,"الملعب الوسط "]
[null,null,"الملعب الكبير"]
["الخميس","2021-08-12","الملعب الصغير"]
[null,null,"الملعب الوسط "]
[null,null,"الملعب الكبير"]
["الجمعة","2021-08-13","الملعب الصغير"]
[null,null,"الملعب الوسط "]
[null,null,"الملعب الكبير"]
["السبت","2021-08-14","الملعب الصغير"]
[null,null,"الملعب الوسط "]
[null,null,"الملعب الكبير"]
["الأحد","2021-08-15","الملعب الصغير"]
[null,null,"الملعب الوسط "]
[null,null,"الملعب الكبير"]
["الإثنين","2021-08-16","الملعب الصغير"]
[null,null,"الملعب الوسط "]
[null,null,"الملعب الكبير"]
[{"$f":"IF(B420=\"\",\"\",TEXT(B420,\"ddd\"))","v":"الثلاثاء"},"2021-08-17","الملعب الصغير"]
[null,null,"الملعب الوسط "]
[null,null,"الملعب الكبير"]
["الأربعاء","2021-08-18","الملعب الصغير"]
[null,null,"الملعب الوسط "]
[null,null,"الملعب الكبير"]
["الخميس","2021-08-19","الملعب الصغير"]
[null,null,"الملعب الوسط "]
[null,null,"الملعب الكبير"]
["الجمعة","2021-08-20","الملعب الصغير"]
[null,null,"الملعب الوسط "]
[null,null,"الملعب الكبير"]
["السبت","2021-08-21","الملعب الصغير"]
[null,null,"الملعب الوسط "]
[null,null,"الملعب الكبير"]
["الأحد","2021-08-22","الملعب الصغير"]
[null,null,"الملعب الوسط "]
[null,null,"الملعب الكبير"]
[{"$f":"IF(B438=\"\",\"\",TEXT(B438,\"ddd\"))","v":"الإثنين"},"2021-08-23","الملعب الصغير"]
[null,null,"الملعب الوسط "]
[null,null,"الملعب الكبير"]
["الثلاثاء","2021-08-24","الملعب الصغير"]
[null,null,"الملعب الوسط "]
[null,null,"الملعب الكبير"]
["الأربعاء","2021-08-25","الملعب الصغير"]
[null,null,"الملعب الوسط "]
[null,null,"الملعب الكبير"]
["الخميس","2021-08-26","الملعب الصغير"]
[null,null,"الملعب الوسط "]
[null,null,"الملعب الكبير"]
["الجمعة","2021-08-27","الملعب الصغير"]
[null,null,"الملعب الوسط "]
[null,null,"الملعب الكبير"]
["السبت","2021-08-28","الملعب الصغير"]
[null,null,"الملعب الوسط "]
[null,null,"الملعب الكبير"]
[{"$f":"IF(B456=\"\",\"\",TEXT(B456,\"ddd\"))","v":"الأحد"},"2021-08-29","الملعب الصغير"]
[null,null,"الملعب الوسط "]
[null,null,"الملعب الكبير"]
[{"$f":"IF(B459=\"\",\"\",TEXT(B459,\"ddd\"))","v":"الإثنين"},"2021-08-30","الملعب الصغير"]
[null,null,"الملعب الوسط "]
[null,null,"الملعب الكبير"]
[{"$f":"IF(B462=\"\",\"\",TEXT(B462,\"ddd\"))","v":"الثلاثاء"},"2021-08-31","الملعب الصغير"]
[null,null,"الملعب الوسط "]
[null,null,"الملعب الكبير"]
[{"$f":"IF(B465=\"\",\"\",TEXT(B465,\"ddd\"))","v":"الأربعاء"},"2021-09-01","الملعب الصغير"]
[null,null,"الملعب الوسط "]
[null,null,"الملعب الكبير"]
[{"$f":"IF(B468=\"\",\"\",TEXT(B468,\"ddd\"))","v":"الخميس"},"2021-09-02","الملعب الصغير"]
[null,null,"الملعب الوسط "]
[null,null,"الملعب الكبير"]
[{"$f":"IF(B471=\"\",\"\",TEXT(B471,\"ddd\"))","v":"الجمعة"},"2021-09-03","الملعب الصغير"]
[null,null,"الملعب الوسط "]
[null,null,"الملعب الكبير"]
[{"$f":"IF(B474=\"\",\"\",TEXT(B474,\"ddd\"))","v":"السبت"},"2021-09-04","الملعب الصغير"]
[null,null,"الملعب الوسط "]
[null,null,"الملعب الكبير"]
["الأحد","2021-09-05","الملعب الصغير"]
[null,null,"الملعب الوسط "]
[null,null,"الملعب الكبير"]
["الإثنين","2021-09-06","الملعب الصغير"]
[null,null,"الملعب الوسط "]
[null,null,"الملعب الكبير"]
["الثلاثاء","2021-09-07","الملعب الصغير"]
[null,null,"الملعب الوسط "]
[null,null,"الملعب الكبير"]
["الأربعاء","2021-09-08","الملعب الصغير"]
[null,null,"الملعب الوسط "]
[null,null,"الملعب الكبير"]
["الخميس","2021-09-09","الملعب الصغير"]
[null,null,"الملعب الوسط "]
[null,null,"الملعب الكبير"]
[{"$f":"IF(B492=\"\",\"\",TEXT(B492,\"ddd\"))","v":"الجمعة"},"2021-09-10","الملعب الصغير"]
[null,null,"الملعب الوسط "]
[null,null,"الملعب الكبير"]
["السبت","2021-09-11","الملعب الصغير"]
[null,null,"الملعب الوسط "]
[null,null,"الملعب الكبير"]
["الأحد","2021-09-12","الملعب الصغير"]
[null,null,"الملعب الوسط "]
[null,null,"الملعب الكبير"]
["الإثنين","2021-09-13","الملعب الصغير"]
[null,null,"الملعب الوسط "]
[null,null,"الملعب الكبير"]
["الثلاثاء","2021-09-14","الملعب الصغير"]
[null,null,"الملعب الوسط "]
[null,null,"الملعب الكبير"]
["الأربعاء","2021-09-15","الملعب الصغير"]
[null,null,"الملعب الوسط "]
[null,null,"الملعب الكبير"]
[{"$f":"IF(B510=\"\",\"\",TEXT(B510,\"ddd\"))","v":"الخميس"},"2021-09-16","الملعب الصغير"]
[null,null,"الملعب الوسط "]
[null,null,"الملعب الكبير"]
["الجمعة","2021-09-17","الملعب الصغير"]
[null,null,"الملعب الوسط "]
[null,null,"الملعب الكبير"]
["السبت","2021-09-18","الملعب الصغير"]
[null,null,"الملعب الوسط "]
[null,null,"الملعب الكبير"]
["الأحد","2021-09-19","الملعب الصغير"]
[null,null,"الملعب الوسط "]
[null,null,"الملعب الكبير"]
["الإثنين","2021-09-20","الملعب الصغير"]
[null,null,"الملعب الوسط "]
[null,null,"الملعب الكبير"]
["الثلاثاء","2021-09-21","الملعب الصغير"]
[null,null,"الملعب الوسط "]
[null,null,"الملعب الكبير"]
[{"$f":"IF(B528=\"\",\"\",TEXT(B528,\"ddd\"))","v":"الأربعاء"},"2021-09-22","الملعب الصغير"]
[null,null,"الملعب الوسط "]
[null,null,"الملعب الكبير"]
[{"$f":"IF(B531=\"\",\"\",TEXT(B531,\"ddd\"))","v":"الخميس"},"2021-09-23","الملعب الصغير"]
[null,null,"الملعب الوسط "]
[null,null,"الملعب الكبير"]
[{"$f":"IF(B534=\"\",\"\",TEXT(B534,\"ddd\"))","v":"الجمعة"},"2021-09-24","الملعب الصغير"]
[null,null,"الملعب الوسط "]
[null,null,"الملعب الكبير"]
[{"$f":"IF(B537=\"\",\"\",TEXT(B537,\"ddd\"))","v":"السبت"},"2021-09-25","الملعب الصغير"]
[null,null,"الملعب الوسط "]
[null,null,"الملعب الكبير"]
[{"$f":"IF(B540=\"\",\"\",TEXT(B540,\"ddd\"))","v":"الأحد"},"2021-09-26","الملعب الصغير"]
[null,null,"الملعب الوسط "]
[null,null,"الملعب الكبير"]
[{"$f":"IF(B543=\"\",\"\",TEXT(B543,\"ddd\"))","v":"الإثنين"},"2021-09-27","الملعب الصغير"]
[null,null,"الملعب الوسط "]
[null,null,"الملعب الكبير"]
[{"$f":"IF(B546=\"\",\"\",TEXT(B546,\"ddd\"))","v":"الثلاثاء"},"2021-09-28","الملعب الصغير"]
[null,null,"الملعب الوسط "]
[null,null,"الملعب الكبير"]
["الأربعاء","2021-09-29","الملعب الصغير"]
[null,null,"الملعب الوسط "]
[null,null,"الملعب الكبير"]
["الخميس","2021-09-30","الملعب الصغير"]
[null,null,"الملعب الوسط "]
[null,null,"الملعب الكبير"]
["الجمعة","2021-10-01","الملعب الصغير"]
[null,null,"الملعب الوسط "]
[null,null,"الملعب الكبير"]
["السبت","2021-10-02","الملعب الصغير"]
[null,null,"الملعب الوسط "]
[null,null,"الملعب الكبير"]
["الأحد","2021-10-03","الملعب الصغير"]
[null,null,"الملعب الوسط "]
[null,null,"الملعب الكبير"]
[{"$f":"IF(B564=\"\",\"\",TEXT(B564,\"ddd\"))","v":"الإثنين"},"2021-10-04","الملعب الصغير"]
[null,null,"الملعب الوسط "]
[null,null,"الملعب الكبير"]
["الثلاثاء","2021-10-05","الملعب الصغير"]
[null,null,"الملعب الوسط "]
[null,null,"الملعب الكبير"]
["الأربعاء","2021-10-06","الملعب الصغير"]
[null,null,"الملعب الوسط "]
[null,null,"الملعب الكبير"]
["الخميس","2021-10-07","الملعب الصغير"]
[null,null,"الملعب الوسط "]
[null,null,"الملعب الكبير"]
["الجمعة","2021-10-08","الملعب الصغير"]
[null,null,"الملعب الوسط "]
[null,null,"الملعب الكبير"]
["السبت","2021-10-09","الملعب الصغير"]
[null,null,"الملعب الوسط "]
[null,null,"الملعب الكبير"]
[{"$f":"IF(B582=\"\",\"\",TEXT(B582,\"ddd\"))","v":"الأحد"},"2021-10-10","الملعب الصغير"]
[null,null,"الملعب الوسط "]
[null,null,"الملعب الكبير"]
["الإثنين","2021-10-11","الملعب الصغير"]
[null,null,"الملعب الوسط "]
[null,null,"الملعب الكبير"]
["الثلاثاء","2021-10-12","الملعب الصغير"]
[null,null,"الملعب الوسط "]
[null,null,"الملعب الكبير"]
["الأربعاء","2021-10-13","الملعب الصغير"]
[null,null,"الملعب الوسط "]
[null,null,"الملعب الكبير"]
["الخميس","2021-10-14","الملعب الصغير"]
[null,null,"الملعب الوسط "]
[null,null,"الملعب الكبير"]
["الجمعة","2021-10-15","الملعب الصغير"]
[null,null,"الملعب الوسط "]
[null,null,"الملعب الكبير"]
[{"$f":"IF(B600=\"\",\"\",TEXT(B600,\"ddd\"))","v":"السبت"},"2021-10-16","الملعب الصغير"]
[null,null,"الملعب الوسط "]
[null,null,"الملعب الكبير"]
[{"$f":"IF(B603=\"\",\"\",TEXT(B603,\"ddd\"))","v":"الأحد"},"2021-10-17","الملعب الصغير"]
[null,null,"الملعب الوسط "]
[null,null,"الملعب الكبير"]
[{"$f":"IF(B606=\"\",\"\",TEXT(B606,\"ddd\"))","v":"الإثنين"},"2021-10-18","الملعب الصغير"]
[null,null,"الملعب الوسط "]
[null,null,"الملعب الكبير"]
[{"$f":"IF(B609=\"\",\"\",TEXT(B609,\"ddd\"))","v":"الثلاثاء"},"2021-10-19","الملعب الصغير"]
[null,null,"الملعب الوسط "]
[null,null,"الملعب الكبير"]
[{"$f":"IF(B612=\"\",\"\",TEXT(B612,\"ddd\"))","v":"الأربعاء"},"2021-10-20","الملعب الصغير"]
[null,null,"الملعب الوسط "]
[null,null,"الملعب الكبير"]
[{"$f":"IF(B615=\"\",\"\",TEXT(B615,\"ddd\"))","v":"الخميس"},"2021-10-21","الملعب الصغير"]
[null,null,"الملعب الوسط "]
[null,null,"الملعب الكبير"]
[{"$f":"IF(B618=\"\",\"\",TEXT(B618,\"ddd\"))","v":"الجمعة"},"2021-10-22","الملعب الصغير"]
[null,null,"الملعب الوسط "]
[null,null,"الملعب الكبير"]
["السبت","2021-10-23","الملعب الصغير"]
[null,null,"الملعب الوسط "]
[null,null,"الملعب الكبير"]
["الأحد","2021-10-24","الملعب الصغير"]
[null,null,"الملعب الوسط "]
[null,null,"الملعب الكبير"]
["الإثنين","2021-10-25","الملعب الصغير"]
[null,null,"الملعب الوسط "]
[null,null,"الملعب الكبير"]
["الثلاثاء","2021-10-26","الملعب الصغير"]
[null,null,"الملعب الوسط "]
[null,null,"الملعب الكبير"]
["الأربعاء","2021-10-27","الملعب الصغير"]
[null,null,"الملعب الوسط "]
[null,null,"الملعب الكبير"]
[{"$f":"IF(B636=\"\",\"\",TEXT(B636,\"ddd\"))","v":"الخميس"},"2021-10-28","الملعب الصغير"]
[null,null,"الملعب الوسط "]
[null,null,"الملعب الكبير"]
["الجمعة","2021-10-29","الملعب الصغير"]
[null,null,"الملعب الوسط "]
[null,null,"الملعب الكبير"]
["السبت","2021-10-30","الملعب الصغير"]
[null,null,"الملعب الوسط "]
[null,null,"الملعب الكبير"]
["الأحد","2021-10-31","الملعب الصغير"]
[null,null,"الملعب الوسط "]
[null,null,"الملعب الكبير"]
["الإثنين","2021-11-01","الملعب الصغير"]
[null,null,"الملعب الوسط "]
[null,null,"الملعب الكبير"]
["الثلاثاء","2021-11-02","الملعب الصغير"]
[null,null,"الملعب الوسط "]
[null,null,"الملعب الكبير"]
[{"$f":"IF(B654=\"\",\"\",TEXT(B654,\"ddd\"))","v":"الأربعاء"},"2021-11-03","الملعب الصغير"]
[null,null,"الملعب الوسط "]
[null,null,"الملعب الكبير"]
["الخميس","2021-11-04","الملعب الصغير"]
[null,null,"الملعب الوسط "]
[null,null,"الملعب الكبير"]
["الجمعة","2021-11-05","الملعب الصغير"]
[null,null,"الملعب الوسط "]
[null,null,"الملعب الكبير"]
["السبت","2021-11-06","الملعب الصغير"]
[null,null,"الملعب الوسط "]
[null,null,"الملعب الكبير"]
["الأحد","2021-11-07","الملعب الصغير"]
[null,null,"الملعب الوسط "]
[null,null,"الملعب الكبير"]
["الإثنين","2021-11-08","الملعب الصغير"]
[null,null,"الملعب الوسط "]
[null,null,"الملعب الكبير"]
[{"$f":"IF(B672=\"\",\"\",TEXT(B672,\"ddd\"))","v":"الثلاثاء"},"2021-11-09","الملعب الصغير"]
[null,null,"الملعب الوسط "]
[null,null,"الملعب الكبير"]
[{"$f":"IF(B675=\"\",\"\",TEXT(B675,\"ddd\"))","v":"الأربعاء"},"2021-11-10","الملعب الصغير"]
[null,null,"الملعب الوسط "]
[null,null,"الملعب الكبير"]
[{"$f":"IF(B678=\"\",\"\",TEXT(B678,\"ddd\"))","v":"الخميس"},"2021-11-11","الملعب الصغير"]
[null,null,"الملعب الوسط "]
[null,null,"الملعب الكبير"]
[{"$f":"IF(B681=\"\",\"\",TEXT(B681,\"ddd\"))","v":"الجمعة"},"2021-11-12","الملعب الصغير"]
[null,null,"الملعب الوسط "]
[null,null,"الملعب الكبير"]
[{"$f":"IF(B684=\"\",\"\",TEXT(B684,\"ddd\"))","v":"السبت"},"2021-11-13","الملعب الصغير"]
[null,null,"الملعب الوسط "]
[null,null,"الملعب الكبير"]
[{"$f":"IF(B687=\"\",\"\",TEXT(B687,\"ddd\"))","v":"الأحد"},"2021-11-14","الملعب الصغير"]
[null,null,"الملعب الوسط "]
[null,null,"الملعب الكبير"]
[{"$f":"IF(B690=\"\",\"\",TEXT(B690,\"ddd\"))","v":"الإثنين"},"2021-11-15","الملعب الصغير"]
[null,null,"الملعب الوسط "]
[null,null,"الملعب الكبير"]
["الثلاثاء","2021-11-16","الملعب الصغير"]
[null,null,"الملعب الوسط "]
[null,null,"الملعب الكبير"]
["الأربعاء","2021-11-17","الملعب الصغير"]
[null,null,"الملعب الوسط "]
[null,null,"الملعب الكبير"]
["الخميس","2021-11-18","الملعب الصغير"]
[null,null,"الملعب الوسط "]
[null,null,"الملعب الكبير"]
["الجمعة","2021-11-19","الملعب الصغير"]
[null,null,"الملعب الوسط "]
[null,null,"الملعب الكبير"]
["السبت","2021-11-20","الملعب الصغير"]
[null,null,"الملعب الوسط "]
[null,null,"الملعب الكبير"]
[{"$f":"IF(B708=\"\",\"\",TEXT(B708,\"ddd\"))","v":"الأحد"},"2021-11-21","الملعب الصغير"]
[null,null,"الملعب الوسط "]
[null,null,"الملعب الكبير"]
["الإثنين","2021-11-22","الملعب الصغير"]
[null,null,"الملعب الوسط "]
[null,null,"الملعب الكبير"]
["الثلاثاء","2021-11-23","الملعب الصغير"]
[null,null,"الملعب الوسط "]
[null,null,"الملعب الكبير"]
["الأربعاء","2021-11-24","الملعب الصغير"]
[null,null,"الملعب الوسط "]
[null,null,"الملعب الكبير"]
["الخميس","2021-11-25","الملعب الصغير"]
[null,null,"الملعب الوسط "]
[null,null,"الملعب الكبير"]
["الجمعة","2021-11-26","الملعب الصغير"]
[null,null,"الملعب الوسط "]
[null,null,"الملعب الكبير"]
[{"$f":"IF(B726=\"\",\"\",TEXT(B726,\"ddd\"))","v":"السبت"},"2021-11-27","الملعب الصغير"]
[null,null,"الملعب الوسط "]
[null,null,"الملعب الكبير"]
["الأحد","2021-11-28","الملعب الصغير"]
[null,null,"الملعب الوسط "]
[null,null,"الملعب الكبير"]
["الإثنين","2021-11-29","الملعب الصغير"]
[null,null,"الملعب الوسط "]
[null,null,"الملعب الكبير"]
["الثلاثاء","2021-11-30","الملعب الصغير"]
[null,null,"الملعب الوسط "]
[null,null,"الملعب الكبير"]
["الأربعاء","2021-12-01","الملعب الصغير"]
[null,null,"الملعب الوسط "]
[null,null,"الملعب الكبير"]
["الخميس","2021-12-02","الملعب الصغير"]
[null,null,"الملعب الوسط "]
[null,null,"الملعب الكبير"]
[{"$f":"IF(B744=\"\",\"\",TEXT(B744,\"ddd\"))","v":"الجمعة"},"2021-12-03","الملعب الصغير"]
[null,null,"الملعب الوسط "]
[null,null,"الملعب الكبير"]
[{"$f":"IF(B747=\"\",\"\",TEXT(B747,\"ddd\"))","v":"السبت"},"2021-12-04","الملعب الصغير"]
[null,null,"الملعب الوسط "]
[null,null,"الملعب الكبير"]
[{"$f":"IF(B750=\"\",\"\",TEXT(B750,\"ddd\"))","v":"الأحد"},"2021-12-05","الملعب الصغير"]
[null,null,"الملعب الوسط "]
[null,null,"الملعب الكبير"]
[{"$f":"IF(B753=\"\",\"\",TEXT(B753,\"ddd\"))","v":"الإثنين"},"2021-12-06","الملعب الصغير"]
[null,null,"الملعب الوسط "]
[null,null,"الملعب الكبير"]
[{"$f":"IF(B756=\"\",\"\",TEXT(B756,\"ddd\"))","v":"الثلاثاء"},"2021-12-07","الملعب الصغير"]
[null,null,"الملعب الوسط "]
[null,null,"الملعب الكبير"]
[{"$f":"IF(B759=\"\",\"\",TEXT(B759,\"ddd\"))","v":"الأربعاء"},"2021-12-08","الملعب الصغير"]
[null,null,"الملعب الوسط "]
[null,null,"الملعب الكبير"]
[{"$f":"IF(B762=\"\",\"\",TEXT(B762,\"ddd\"))","v":"الخميس"},"2021-12-09","الملعب الصغير"]
[null,null,"الملعب الوسط "]
[null,null,"الملعب الكبير"]
["الجمعة","2021-12-10","الملعب الصغير"]
[null,null,"الملعب الوسط "]
[null,null,"الملعب الكبير"]
["السبت","2021-12-11","الملعب الصغير"]
[null,null,"الملعب الوسط "]
[null,null,"الملعب الكبير"]
["الأحد","2021-12-12","الملعب الصغير"]
[null,null,"الملعب الوسط "]
[null,null,"الملعب الكبير"]
["الإثنين","2021-12-13","الملعب الصغير"]
[null,null,"الملعب الوسط "]
[null,null,"الملعب الكبير"]
["الثلاثاء","2021-12-14","الملعب الصغير"]
[null,null,"الملعب الوسط "]
[null,null,"الملعب الكبير"]
[{"$f":"IF(B780=\"\",\"\",TEXT(B780,\"ddd\"))","v":"الأربعاء"},"2021-12-15","الملعب الصغير"]
[null,null,"الملعب الوسط "]
[null,null,"الملعب الكبير"]
["الخميس","2021-12-16","الملعب الصغير"]
[null,null,"الملعب الوسط "]
[null,null,"الملعب الكبير"]
["الجمعة","2021-12-17","الملعب الصغير"]
[null,null,"الملعب الوسط "]
[null,null,"الملعب الكبير"]
["السبت","2021-12-18","الملعب الصغير"]
[null,null,"الملعب الوسط "]
[null,null,"الملعب الكبير"]
["الأحد","2021-12-19","الملعب الصغير"]
[null,null,"الملعب الوسط "]
[null,null,"الملعب الكبير"]
["الإثنين","2021-12-20","الملعب الصغير"]
[null,null,"الملعب الوسط "]
[null,null,"الملعب الكبير"]
[{"$f":"IF(B798=\"\",\"\",TEXT(B798,\"ddd\"))","v":"الثلاثاء"},"2021-12-21","الملعب الصغير"]
[null,null,"الملعب الوسط "]
[null,null,"الملعب الكبير"]
["الأربعاء","2021-12-22","الملعب الصغير"]
[null,null,"الملعب الوسط "]
[null,null,"الملعب الكبير"]
["الخميس","2021-12-23","الملعب الصغير"]
[null,null,"الملعب الوسط "]
[null,null,"الملعب الكبير"]
["الجمعة","2021-12-24","الملعب الصغير"]
[null,null,"الملعب الوسط "]
[null,null,"الملعب الكبير"]
["السبت","2021-12-25","الملعب الصغير"]
[null,null,"الملعب الوسط "]
[null,null,"الملعب الكبير"]
["الأحد","2021-12-26","الملعب الصغير"]
[null,null,"الملعب الوسط "]
[null,null,"الملعب الكبير"]
[{"$f":"IF(B816=\"\",\"\",TEXT(B816,\"ddd\"))","v":"الإثنين"},"2021-12-27","الملعب الصغير"]
[null,null,"الملعب الوسط "]
[null,null,"الملعب الكبير"]
[{"$f":"IF(B819=\"\",\"\",TEXT(B819,\"ddd\"))","v":"الثلاثاء"},"2021-12-28","الملعب الصغير"]
[null,null,"الملعب الوسط "]
[null,null,"الملعب الكبير"]
[{"$f":"IF(B822=\"\",\"\",TEXT(B822,\"ddd\"))","v":"الأربعاء"},"2021-12-29","الملعب الصغير"]
[null,null,"الملعب الوسط "]
[null,null,"الملعب الكبير"]
[{"$f":"IF(B825=\"\",\"\",TEXT(B825,\"ddd\"))","v":"الخميس"},"2021-12-30","الملعب الصغير"]
[null,null,"الملعب الوسط "]
[null,null,"الملعب الكبير"]
[{"$f":"IF(B828=\"\",\"\",TEXT(B828,\"ddd\"))","v":"الجمعة"},"2021-12-31","الملعب الصغير"]
[null,null,"الملعب الوسط "]
[null,null,"الملعب الكبير"]
[{"$f":"IF(B831=\"\",\"\",TEXT(B831,\"ddd\"))","v":"السبت"},"2022-01-01","الملعب الصغير"]
[null,null,"الملعب الوسط "]
[null,null,"الملعب الكبير"]
[{"$f":"IF(B834=\"\",\"\",TEXT(B834,\"ddd\"))","v":"الأحد"},"2022-01-02","الملعب الصغير"]
[null,null,"الملعب الوسط "]
[null,null,"الملعب الكبير"]
["الإثنين","2022-01-03","الملعب الصغير"]
[null,null,"الملعب الوسط "]
[null,null,"الملعب الكبير"]
["الثلاثاء","2022-01-04","الملعب الصغير"]
[null,null,"الملعب الوسط "]
[null,null,"الملعب الكبير"]
["الأربعاء","2022-01-05","الملعب الصغير"]
[null,null,"الملعب الوسط "]
[null,null,"الملعب الكبير"]
["الخميس","2022-01-06","الملعب الصغير"]
[null,null,"الملعب الوسط "]
[null,null,"الملعب الكبير"]
["الجمعة","2022-01-07","الملعب الصغير"]
[null,null,"الملعب الوسط "]
[null,null,"الملعب الكبير"]
[{"$f":"IF(B852=\"\",\"\",TEXT(B852,\"ddd\"))","v":"السبت"},"2022-01-08","الملعب الصغير"]
[null,null,"الملعب الوسط "]
[null,null,"الملعب الكبير"]
["الأحد","2022-01-09","الملعب الصغير"]
[null,null,"الملعب الوسط "]
[null,null,"الملعب الكبير"]
["الإثنين","2022-01-10","الملعب الصغير"]
[null,null,"الملعب الوسط "]
[null,null,"الملعب الكبير"]
["الثلاثاء","2022-01-11","الملعب الصغير"]
[null,null,"الملعب الوسط "]
[null,null,"الملعب الكبير"]
["الأربعاء","2022-01-12","الملعب الصغير"]
[null,null,"الملعب الوسط "]
[null,null,"الملعب الكبير"]
["الخميس","2022-01-13","الملعب الصغير"]
[null,null,"الملعب الوسط "]
[null,null,"الملعب الكبير"]
[{"$f":"IF(B870=\"\",\"\",TEXT(B870,\"ddd\"))","v":"الجمعة"},"2022-01-14","الملعب الصغير"]
[null,null,"الملعب الوسط "]
[null,null,"الملعب الكبير"]
["السبت","2022-01-15","الملعب الصغير"]
[null,null,"الملعب الوسط "]
[null,null,"الملعب الكبير"]
["الأحد","2022-01-16","الملعب الصغير"]
[null,null,"الملعب الوسط "]
[null,null,"الملعب الكبير"]
["الإثنين","2022-01-17","الملعب الصغير"]
[null,null,"الملعب الوسط "]
[null,null,"الملعب الكبير"]
["الثلاثاء","2022-01-18","الملعب الصغير"]
[null,null,"الملعب الوسط "]
[null,null,"الملعب الكبير"]
["الأربعاء","2022-01-19","الملعب الصغير"]
[null,null,"الملعب الوسط "]
[null,null,"الملعب الكبير"]
[{"$f":"IF(B888=\"\",\"\",TEXT(B888,\"ddd\"))","v":"الخميس"},"2022-01-20","الملعب الصغير"]
[null,null,"الملعب الوسط "]
[null,null,"الملعب الكبير"]
[{"$f":"IF(B891=\"\",\"\",TEXT(B891,\"ddd\"))","v":"الجمعة"},"2022-01-21","الملعب الصغير"]
[null,null,"الملعب الوسط "]
[null,null,"الملعب الكبير"]
[{"$f":"IF(B894=\"\",\"\",TEXT(B894,\"ddd\"))","v":"السبت"},"2022-01-22","الملعب الصغير"]
[null,null,"الملعب الوسط "]
[null,null,"الملعب الكبير"]
[{"$f":"IF(B897=\"\",\"\",TEXT(B897,\"ddd\"))","v":"الأحد"},"2022-01-23","الملعب الصغير"]
[null,null,"الملعب الوسط "]
[null,null,"الملعب الكبير"]
[{"$f":"IF(B900=\"\",\"\",TEXT(B900,\"ddd\"))","v":"الإثنين"},"2022-01-24","الملعب الصغير"]
[null,null,"الملعب الوسط "]
[null,null,"الملعب الكبير"]
[{"$f":"IF(B903=\"\",\"\",TEXT(B903,\"ddd\"))","v":"الثلاثاء"},"2022-01-25","الملعب الصغير"]
[null,null,"الملعب الوسط "]
[null,null,"الملعب الكبير"]
[{"$f":"IF(B906=\"\",\"\",TEXT(B906,\"ddd\"))","v":"الأربعاء"},"2022-01-26","الملعب الصغير"]
[null,null,"الملعب الوسط "]
[null,null,"الملعب الكبير"]
["الخميس","2022-01-27","الملعب الصغير"]
[null,null,"الملعب الوسط "]
[null,null,"الملعب الكبير"]
["الجمعة","2022-01-28","الملعب الصغير"]
[null,null,"الملعب الوسط "]
[null,null,"الملعب الكبير"]
["السبت","2022-01-29","الملعب الصغير"]
[null,null,"الملعب الوسط "]
[null,null,"الملعب الكبير"]
["الأحد","2022-01-30","الملعب الصغير"]
[null,null,"الملعب الوسط "]
[null,null,"الملعب الكبير"]
["الإثنين","2022-01-31","الملعب الصغير"]
[null,null,"الملعب الوسط "]
[null,null,"الملعب الكبير"]
[{"$f":"IF(B924=\"\",\"\",TEXT(B924,\"ddd\"))","v":"الثلاثاء"},"2022-02-01","الملعب الصغير"]
[null,null,"الملعب الوسط "]
[null,null,"الملعب الكبير"]
["الأربعاء","2022-02-02","الملعب الصغير"]
[null,null,"الملعب الوسط "]
[null,null,"الملعب الكبير"]
["الخميس","2022-02-03","الملعب الصغير"]
[null,null,"الملعب الوسط "]
[null,null,"الملعب الكبير"]
["الجمعة","2022-02-04","الملعب الصغير"]
[null,null,"الملعب الوسط "]
[null,null,"الملعب الكبير"]
["السبت","2022-02-05","الملعب الصغير"]
[null,null,"الملعب الوسط "]
[null,null,"الملعب الكبير"]
["الأحد","2022-02-06","الملعب الصغير"]
[null,null,"الملعب الوسط "]
[null,null,"الملعب الكبير"]
[{"$f":"IF(B942=\"\",\"\",TEXT(B942,\"ddd\"))","v":"الإثنين"},"2022-02-07","الملعب الصغير"]
[null,null,"الملعب الوسط "]
[null,null,"الملعب الكبير"]
["الثلاثاء","2022-02-08","الملعب الصغير"]
[null,null,"الملعب الوسط "]
[null,null,"الملعب الكبير"]
["الأربعاء","2022-02-09","الملعب الصغير"]
[null,null,"الملعب الوسط "]
[null,null,"الملعب الكبير"]
["الخميس","2022-02-10","الملعب الصغير"]
[null,null,"الملعب الوسط "]
[null,null,"الملعب الكبير"]
["الجمعة","2022-02-11","الملعب الصغير"]
[null,null,"الملعب الوسط "]
[null,null,"الملعب الكبير"]
["السبت","2022-02-12","الملعب الصغير"]
[null,null,"الملعب الوسط "]
[null,null,"الملعب الكبير"]
[{"$f":"IF(B960=\"\",\"\",TEXT(B960,\"ddd\"))","v":"الأحد"},"2022-02-13","الملعب الصغير"]
[null,null,"الملعب الوسط "]
[null,null,"الملعب الكبير"]
[{"$f":"IF(B963=\"\",\"\",TEXT(B963,\"ddd\"))","v":"الإثنين"},"2022-02-14","الملعب الصغير"]
[null,null,"الملعب الوسط "]
[null,null,"الملعب الكبير"]
[{"$f":"IF(B966=\"\",\"\",TEXT(B966,\"ddd\"))","v":"الثلاثاء"},"2022-02-15","الملعب الصغير"]
[null,null,"الملعب الوسط "]
[null,null,"الملعب الكبير"]
[{"$f":"IF(B969=\"\",\"\",TEXT(B969,\"ddd\"))","v":"الأربعاء"},"2022-02-16","الملعب الصغير"]
[null,null,"الملعب الوسط "]
[null,null,"الملعب الكبير"]
[{"$f":"IF(B972=\"\",\"\",TEXT(B972,\"ddd\"))","v":"الخميس"},"2022-02-17","الملعب الصغير"]
[null,null,"الملعب الوسط "]
[null,null,"الملعب الكبير"]
[{"$f":"IF(B975=\"\",\"\",TEXT(B975,\"ddd\"))","v":"الجمعة"},"2022-02-18","الملعب الصغير"]
[null,null,"الملعب الوسط "]
[null,null,"الملعب الكبير"]
[{"$f":"IF(B978=\"\",\"\",TEXT(B978,\"ddd\"))","v":"السبت"},"2022-02-19","الملعب الصغير"]
[null,null,"الملعب الوسط "]
[null,null,"الملعب الكبير"]
["الأحد","2022-02-20","الملعب الصغير"]
[null,null,"الملعب الوسط "]
[null,null,"الملعب الكبير"]
["الإثنين","2022-02-21","الملعب الصغير"]
[null,null,"الملعب الوسط "]
[null,null,"الملعب الكبير"]
["الثلاثاء","2022-02-22","الملعب الصغير"]
[null,null,"الملعب الوسط "]
[null,null,"الملعب الكبير"]
["الأربعاء","2022-02-23","الملعب الصغير"]
[null,null,"الملعب الوسط "]
[null,null,"الملعب الكبير"]
["الخميس","2022-02-24","الملعب الصغير"]
[null,null,"الملعب الوسط "]
[null,null,"الملعب الكبير"]
[{"$f":"IF(B996=\"\",\"\",TEXT(B996,\"ddd\"))","v":"الجمعة"},"2022-02-25","الملعب الصغير"]
[null,null,"الملعب الوسط "]
[null,null,"الملعب الكبير"]
["السبت","2022-02-26","الملعب الصغير"]
[null,null,"الملعب الوسط "]
[null,null,"الملعب الكبير"]
["الأحد","2022-02-27","الملعب الصغير"]
[null,null,"الملعب الوسط "]
[null,null,"الملعب الكبير"]
["الإثنين","2022-02-28","الملعب الصغير"]
[null,null,"الملعب الوسط "]
[null,null,"الملعب الكبير"]
["الثلاثاء","2022-03-01","الملعب الصغير"]
[null,null,"الملعب الوسط "]
[null,null,"الملعب الكبير"]
["الأربعاء","2022-03-02","الملعب الصغير"]
[null,null,"الملعب الوسط "]
[null,null,"الملعب الكبير"]
[{"$f":"IF(B1014=\"\",\"\",TEXT(B1014,\"ddd\"))","v":"الخميس"},"2022-03-03","الملعب الصغير"]
[null,null,"الملعب الوسط "]
[null,null,"الملعب الكبير"]
["الجمعة","2022-03-04","الملعب الصغير"]
[null,null,"الملعب الوسط "]
[null,null,"الملعب الكبير"]
["السبت","2022-03-05","الملعب الصغير"]
[null,null,"الملعب الوسط "]
[null,null,"الملعب الكبير"]
["الأحد","2022-03-06","الملعب الصغير"]
[null,null,"الملعب الوسط "]
[null,null,"الملعب الكبير"]
["الإثنين","2022-03-07","الملعب الصغير"]
[null,null,"الملعب الوسط "]
[null,null,"الملعب الكبير"]
["الثلاثاء","2022-03-08","الملعب الصغير"]
[null,null,"الملعب الوسط "]
[null,null,"الملعب الكبير"]
[{"$f":"IF(B1032=\"\",\"\",TEXT(B1032,\"ddd\"))","v":"الأربعاء"},"2022-03-09","الملعب الصغير"]
[null,null,"الملعب الوسط "]
[null,null,"الملعب الكبير"]
[{"$f":"IF(B1035=\"\",\"\",TEXT(B1035,\"ddd\"))","v":"الخميس"},"2022-03-10","الملعب الصغير"]
[null,null,"الملعب الوسط "]
[null,null,"الملعب الكبير"]
[{"$f":"IF(B1038=\"\",\"\",TEXT(B1038,\"ddd\"))","v":"الجمعة"},"2022-03-11","الملعب الصغير"]
[null,null,"الملعب الوسط "]
[null,null,"الملعب الكبير"]
[{"$f":"IF(B1041=\"\",\"\",TEXT(B1041,\"ddd\"))","v":"السبت"},"2022-03-12","الملعب الصغير"]
[null,null,"الملعب الوسط "]
[null,null,"الملعب الكبير"]
[{"$f":"IF(B1044=\"\",\"\",TEXT(B1044,\"ddd\"))","v":"الأحد"},"2022-03-13","الملعب الصغير"]
[null,null,"الملعب الوسط "]
[null,null,"الملعب الكبير"]
[{"$f":"IF(B1047=\"\",\"\",TEXT(B1047,\"ddd\"))","v":"الإثنين"},"2022-03-14","الملعب الصغير"]
[null,null,"الملعب الوسط "]
[null,null,"الملعب الكبير"]
[{"$f":"IF(B1050=\"\",\"\",TEXT(B1050,\"ddd\"))","v":"الثلاثاء"},"2022-03-15","الملعب الصغير"]
[null,null,"الملعب الوسط "]
[null,null,"الملعب الكبير"]
["الأربعاء","2022-03-16","الملعب الصغير"]
[null,null,"الملعب الوسط "]
[null,null,"الملعب الكبير"]
["الخميس","2022-03-17","الملعب الصغير"]
[null,null,"الملعب الوسط "]
[null,null,"الملعب الكبير"]
["الجمعة","2022-03-18","الملعب الصغير"]
[null,null,"الملعب الوسط "]
[null,null,"الملعب الكبير"]
["السبت","2022-03-19","الملعب الصغير"]
[null,null,"الملعب الوسط "]
[null,null,"الملعب الكبير"]
["الأحد","2022-03-20","الملعب الصغير"]
[null,null,"الملعب الوسط "]
[null,null,"الملعب الكبير"]
[{"$f":"IF(B1068=\"\",\"\",TEXT(B1068,\"ddd\"))","v":"الإثنين"},"2022-03-21","الملعب الصغير"]
[null,null,"الملعب الوسط "]
[null,null,"الملعب الكبير"]
["الثلاثاء","2022-03-22","الملعب الصغير"]
[null,null,"الملعب الوسط "]
[null,null,"الملعب الكبير"]
["الأربعاء","2022-03-23","الملعب الصغير"]
[null,null,"الملعب الوسط "]
[null,null,"الملعب الكبير"]
["الخميس","2022-03-24","الملعب الصغير"]
[null,null,"الملعب الوسط "]
[null,null,"الملعب الكبير"]
["الجمعة","2022-03-25","الملعب الصغير"]
[null,null,"الملعب الوسط "]
[null,null,"الملعب الكبير"]
["السبت","2022-03-26","الملعب الصغير"]
[null,null,"الملعب الوسط "]
[null,null,"الملعب الكبير"]
[{"$f":"IF(B1086=\"\",\"\",TEXT(B1086,\"ddd\"))","v":"الأحد"},"2022-03-27","الملعب الصغير"]
[null,null,"الملعب الوسط "]
[null,null,"الملعب الكبير"]
["الإثنين","2022-03-28","الملعب الصغير"]
[null,null,"الملعب الوسط "]
[null,null,"الملعب الكبير"]
["الثلاثاء","2022-03-29","الملعب الصغير"]
[null,null,"الملعب الوسط "]
[null,null,"الملعب الكبير"]
["الأربعاء","2022-03-30","الملعب الصغير"]
[null,null,"الملعب الوسط "]
[null,null,"الملعب الكبير"]
["الخميس","2022-03-31","الملعب الصغير"]
[null,null,"الملعب الوسط "]
[null,null,"الملعب الكبير"]
["الجمعة","2022-04-01","الملعب الصغير"]
[null,null,"الملعب الوسط "]
[null,null,"الملعب الكبير"]
[{"$f":"IF(B1104=\"\",\"\",TEXT(B1104,\"ddd\"))","v":"السبت"},"2022-04-02","الملعب الصغير"]
[null,null,"الملعب الوسط "]
[null,null,"الملعب الكبير"]
[{"$f":"IF(B1107=\"\",\"\",TEXT(B1107,\"ddd\"))","v":"الأحد"},"2022-04-03","الملعب الصغير"]
[null,null,"الملعب الوسط "]
[null,null,"الملعب الكبير"]
[{"$f":"IF(B1110=\"\",\"\",TEXT(B1110,\"ddd\"))","v":"الإثنين"},"2022-04-04","الملعب الصغير"]
[null,null,"الملعب الوسط "]
[null,null,"الملعب الكبير"]
[{"$f":"IF(B1113=\"\",\"\",TEXT(B1113,\"ddd\"))","v":"الثلاثاء"},"2022-04-05","الملعب الصغير"]
[null,null,"الملعب الوسط "]
[null,null,"الملعب الكبير"]
[{"$f":"IF(B1116=\"\",\"\",TEXT(B1116,\"ddd\"))","v":"الأربعاء"},"2022-04-06","الملعب الصغير"]
[null,null,"الملعب الوسط "]
[null,null,"الملعب الكبير"]
[{"$f":"IF(B1119=\"\",\"\",TEXT(B1119,\"ddd\"))","v":"الخميس"},"2022-04-07","الملعب الصغير"]
[null,null,"الملعب الوسط "]
[null,null,"الملعب الكبير"]
[{"$f":"IF(B1122=\"\",\"\",TEXT(B1122,\"ddd\"))","v":"الجمعة"},"2022-04-08","الملعب الصغير"]
[null,null,"الملعب الوسط "]
[null,null,"الملعب الكبير"]
["السبت","2022-04-09","الملعب الصغير"]
[null,null,"الملعب الوسط "]
[null,null,"الملعب الكبير"]
["الأحد","2022-04-10","الملعب الصغير"]
[null,null,"الملعب الوسط "]
[null,null,"الملعب الكبير"]
["الإثنين","2022-04-11","الملعب الصغير"]
[null,null,"الملعب الوسط "]
[null,null,"الملعب الكبير"]
["الثلاثاء","2022-04-12","الملعب الصغير"]
[null,null,"الملعب الوسط "]
[null,null,"الملعب الكبير"]
["الأربعاء","2022-04-13","الملعب الصغير"]
[null,null,"الملعب الوسط "]
[null,null,"الملعب الكبير"]
[{"$f":"IF(B1140=\"\",\"\",TEXT(B1140,\"ddd\"))","v":"الخميس"},"2022-04-14","الملعب الصغير"]
[null,null,"الملعب الوسط "]
[null,null,"الملعب الكبير"]
["الجمعة","2022-04-15","الملعب الصغير"]
[null,null,"الملعب الوسط "]
[null,null,"الملعب الكبير"]
["السبت","2022-04-16","الملعب الصغير"]
[null,null,"الملعب الوسط "]
[null,null,"الملعب الكبير"]
["الأحد","2022-04-17","الملعب الصغير"]
[null,null,"الملعب الوسط "]
[null,null,"الملعب الكبير"]
["الإثنين","2022-04-18","الملعب الصغير"]
[null,null,"الملعب الوسط "]
[null,null,"الملعب الكبير"]
["الثلاثاء","2022-04-19","الملعب الصغير"]
[null,null,"الملعب الوسط "]
[null,null,"الملعب الكبير"]
[{"$f":"IF(B1158=\"\",\"\",TEXT(B1158,\"ddd\"))","v":"الأربعاء"},"2022-04-20","الملعب الصغير"]
[null,null,"الملعب الوسط "]
[null,null,"الملعب الكبير"]
["الخميس","2022-04-21","الملعب الصغير"]
[null,null,"الملعب الوسط "]
[null,null,"الملعب الكبير"]
["الجمعة","2022-04-22","الملعب الصغير"]
[null,null,"الملعب الوسط "]
[null,null,"الملعب الكبير"]
["السبت","2022-04-23","الملعب الصغير"]
[null,null,"الملعب الوسط "]
[null,null,"الملعب الكبير"]
["الأحد","2022-04-24","الملعب الصغير"]
[null,null,"الملعب الوسط "]
[null,null,"الملعب الكبير"]
["الإثنين","2022-04-25","الملعب الصغير"]
[null,null,"الملعب الوسط "]
[null,null,"الملعب الكبير"]
[{"$f":"IF(B1176=\"\",\"\",TEXT(B1176,\"ddd\"))","v":"الثلاثاء"},"2022-04-26","الملعب الصغير"]
[null,null,"الملعب الوسط "]
[null,null,"الملعب الكبير"]
[{"$f":"IF(B1179=\"\",\"\",TEXT(B1179,\"ddd\"))","v":"الأربعاء"},"2022-04-27","الملعب الصغير"]
[null,null,"الملعب الوسط "]
[null,null,"الملعب الكبير"]
[{"$f":"IF(B1182=\"\",\"\",TEXT(B1182,\"ddd\"))","v":"الخميس"},"2022-04-28","الملعب الصغير"]
[null,null,"الملعب الوسط "]
[null,null,"الملعب الكبير"]
[{"$f":"IF(B1185=\"\",\"\",TEXT(B1185,\"ddd\"))","v":"الجمعة"},"2022-04-29","الملعب الصغير"]
[null,null,"الملعب الوسط "]
[null,null,"الملعب الكبير"]
[{"$f":"IF(B1188=\"\",\"\",TEXT(B1188,\"ddd\"))","v":"السبت"},"2022-04-30","الملعب الصغير"]
[null,null,"الملعب الوسط "]
[null,null,"الملعب الكبير"]
[{"$f":"IF(B1191=\"\",\"\",TEXT(B1191,\"ddd\"))","v":"الأحد"},"2022-05-01","الملعب الصغير"]
[null,null,"الملعب الوسط "]
[null,null,"الملعب الكبير"]
[{"$f":"IF(B1194=\"\",\"\",TEXT(B1194,\"ddd\"))","v":"الإثنين"},"2022-05-02","الملعب الصغير"]
[null,null,"الملعب الوسط "]
[null,null,"الملعب الكبير"]
["الثلاثاء","2022-05-03","الملعب الصغير"]
[null,null,"الملعب الوسط "]
[null,null,"الملعب الكبير"]
["الأربعاء","2022-05-04","الملعب الصغير"]
[null,null,"الملعب الوسط "]
[null,null,"الملعب الكبير"]
["الخميس","2022-05-05","الملعب الصغير"]
[null,null,"الملعب الوسط "]
[null,null,"الملعب الكبير"]
["الجمعة","2022-05-06","الملعب الصغير"]
[null,null,"الملعب الوسط "]
[null,null,"الملعب الكبير"]
["السبت","2022-05-07","الملعب الصغير"]
[null,null,"الملعب الوسط "]
[null,null,"الملعب الكبير"]
[{"$f":"IF(B1212=\"\",\"\",TEXT(B1212,\"ddd\"))","v":"الأحد"},"2022-05-08","الملعب الصغير"]
[null,null,"الملعب الوسط "]
[null,null,"الملعب الكبير"]
["الإثنين","2022-05-09","الملعب الصغير"]
[null,null,"الملعب الوسط "]
[null,null,"الملعب الكبير"]

{"sheet":"طباعة الحجز","index":2,"n_rows":6,"n_cols":10,"rows_kept":6,"cut":false,"hidden":false,"merged":[[25,13,25,14],[3,7,3,8],[25,5,25,6],[25,7,25,8],[25,9,25,10],[25,11,25,12]]}
[]
[]
[]
[null,null,null,null,null,null,"اسم المشترك"]
[]
[null,null,null,null,null,"نوع الإشتراك","الملعب ","تاريخ الحجز","يوم الحجز","وقت الحجز"]

{"sheet":"سجل الفواتير","index":3,"n_rows":2463,"n_cols":19,"rows_kept":2463,"cut":false,"hidden":false,"merged":[[1,3,2,10],[3,13,3,14]]}
[]
[null,null,null,"سجـــــــل الفــــــواتير"]
[]
[null,null,null,null,null,null,null,null,null,null,null,null,null,"خاص بالحجوزات الشهرية"]
[null,"رقم الفاتورة ","اسم المشترك ","الإشتراك","قيمة الإشتراك","الملعب","عدد التمارين","الخصم","المبلغ بعد الخصم","المدفوع","المتبقي","تاريخ الإشتراك","وقت الحجز ","اخر موعد للسداد","التنبيه"]
[null,1,null,null,null,null,null,null,{"$f":"E6-(E6*H6)","v":0},null,{"$f":"I6-J6","v":0},null,null,{"$f":"IF(L6=\"\",\"\",IF(D6=\"إشتراك يومي\",\"\",L6+$S$6))","v":""},{"$f":"IF(AND($S$7>N6,K6>0),\"مطلوب السداد\",\"\")","v":""},null,null,"مهلة السداد",25]
[null,2,null,null,null,null,null,null,{"$f":"E7-(E7*H7)","v":0},null,{"$f":"I7-J7","v":0},null,null,{"$f":"IF(L7=\"\",\"\",IF(D7=\"إشتراك يومي\",\"\",L7+$S$6))","v":""},{"$f":"IF(AND($S$7>N7,K7>0),\"مطلوب السداد\",\"\")","v":""},null,null,"تاريخ اليوم",{"$f":"TODAY()","v":"2021-03-29"}]
[null,3,null,null,null,null,null,null,0,null,0,null,null,{"$f":"IF(L8=\"\",\"\",IF(D8=\"إشتراك يومي\",\"\",L8+$S$6))","v":""},{"$f":"IF(AND($S$7>N8,K8>0),\"مطلوب السداد\",\"\")","v":""}]
[null,4,null,null,null,null,null,null,{"$f":"E9-(E9*H9)","v":0},null,0,null,null,"",""]
[null,5,null,null,null,null,null,null,0,null,0,null,null,"",""]
[null,6,null,null,null,null,null,null,0,null,0,null,null,"",""]
[null,7,null,null,null,null,null,null,0,null,0,null,null,"",""]
[null,8,null,null,null,null,null,null,0,null,0,null,null,"",""]
[null,9,null,null,null,null,null,null,0,null,0,null,null,"",""]
[null,10,null,null,null,null,null,null,0,null,0,null,null,"",""]
[null,11,null,null,null,null,null,null,0,null,0,null,null,"",""]
[null,12,null,null,null,null,null,null,0,null,0,null,null,"",""]
[null,13,null,null,null,null,null,null,{"$f":"E18-(E18*H18)","v":0},null,0,null,null,"",""]
[null,14,null,null,null,null,null,null,0,null,0,null,null,"",""]
[null,15,null,null,null,null,null,null,0,null,0,null,null,"",""]
[null,16,null,null,null,null,null,null,{"$f":"E21-(E21*H21)","v":0},null,{"$f":"I21-J21","v":0},null,null,"",""]
[null,17,null,null,null,null,null,null,0,null,0,null,null,"",""]
[null,18,null,null,null,null,null,null,0,null,0,null,null,"",""]
[null,19,null,null,null,null,null,null,0,null,0,null,null,"",""]
[null,20,null,null,null,null,null,null,0,null,0,null,null,"",""]
[null,21,null,null,null,null,null,null,0,null,0,null,null,"",""]
[null,22,null,null,null,null,null,null,0,null,0,null,null,"",""]
[null,23,null,null,null,null,null,null,0,null,0,null,null,"",""]
[null,24,null,null,null,null,null,null,0,null,0,null,null,"",""]
[null,25,null,null,null,null,null,null,0,null,0,null,null,"",""]
[null,26,null,null,null,null,null,null,0,null,0,null,null,"",""]
[null,27,null,null,null,null,null,null,0,null,0,null,null,"",""]
[null,28,null,null,null,null,null,null,0,null,0,null,null,"",""]
[null,29,null,null,null,null,null,null,0,null,0,null,null,"",""]
[null,30,null,null,null,null,null,null,0,null,0,null,null,"",""]
[null,31,null,null,null,null,null,null,0,null,0,null,null,"",""]
[null,32,null,null,null,null,null,null,0,null,0,null,null,"",""]
[null,33,null,null,null,null,null,null,0,null,0,null,null,"",""]
[null,34,null,null,null,null,null,null,0,null,0,null,null,"",""]
[null,35,null,null,null,null,null,null,0,null,0,null,null,"",""]
[null,36,null,null,null,null,null,null,0,null,0,null,null,"",""]
[null,37,null,null,null,null,null,null,0,null,0,null,null,"",""]
[null,38,null,null,null,null,null,null,0,null,0,null,null,"",""]
[null,39,null,null,null,null,null,null,0,null,0,null,null,"",""]
[null,40,null,null,null,null,null,null,0,null,0,null,null,"",""]
[null,41,null,null,null,null,null,null,0,null,0,null,null,"",""]
[null,42,null,null,null,null,null,null,0,null,0,null,null,"",""]
[null,43,null,null,null,null,null,null,0,null,0,null,null,"",""]
[null,44,null,null,null,null,null,null,0,null,0,null,null,"",""]
[null,45,null,null,null,null,null,null,0,null,0,null,null,"",""]
[null,46,null,null,null,null,null,null,0,null,0,null,null,"",""]
[null,47,null,null,null,null,null,null,0,null,0,null,null,"",""]
[null,48,null,null,null,null,null,null,0,null,0,null,null,"",""]
[null,49,null,null,null,null,null,null,0,null,0,null,null,"",""]
[null,50,null,null,null,null,null,null,0,null,0,null,null,"",""]
[null,51,null,null,null,null,null,null,0,null,0,null,null,"",""]
[null,52,null,null,null,null,null,null,0,null,0,null,null,"",""]
[null,53,null,null,null,null,null,null,0,null,0,null,null,"",""]
[null,54,null,null,null,null,null,null,0,null,0,null,null,"",""]
[null,55,null,null,null,null,null,null,0,null,0,null,null,"",""]
[null,56,null,null,null,null,null,null,0,null,0,null,null,"",""]
[null,57,null,null,null,null,null,null,0,null,0,null,null,"",""]
[null,58,null,null,null,null,null,null,0,null,0,null,null,"",""]
[null,59,null,null,null,null,null,null,0,null,0,null,null,"",""]
[null,60,null,null,null,null,null,null,0,null,0,null,null,"",""]
[null,61,null,null,null,null,null,null,0,null,0,null,null,"",""]
[null,62,null,null,null,null,null,null,0,null,0,null,null,"",""]
[null,63,null,null,null,null,null,null,0,null,0,null,null,"",""]
[null,64,null,null,null,null,null,null,0,null,0,null,null,"",""]
[null,65,null,null,null,null,null,null,0,null,0,null,null,"",""]
[null,66,null,null,null,null,null,null,{"$f":"E71-(E71*H71)","v":0},null,{"$f":"I71-J71","v":0},null,null,"",""]
[null,67,null,null,null,null,null,null,0,null,0,null,null,{"$f":"IF(L72=\"\",\"\",IF(D72=\"إشتراك يومي\",\"\",L72+$S$6))","v":""},{"$f":"IF(AND($S$7>N72,K72>0),\"مطلوب السداد\",\"\")","v":""}]
[null,68,null,null,null,null,null,null,0,null,0,null,null,"",""]
[null,69,null,null,null,null,null,null,0,null,0,null,null,"",""]
[null,70,null,null,null,null,null,null,0,null,0,null,null,"",""]
[null,71,null,null,null,null,null,null,0,null,0,null,null,"",""]
[null,72,null,null,null,null,null,null,0,null,0,null,null,"",""]
[null,73,null,null,null,null,null,null,0,null,0,null,null,"",""]
[null,74,null,null,null,null,null,null,0,null,0,null,null,"",""]
[null,75,null,null,null,null,null,null,0,null,0,null,null,"",""]
[null,76,null,null,null,null,null,null,0,null,0,null,null,"",""]
[null,77,null,null,null,null,null,null,0,null,0,null,null,"",""]
[null,78,null,null,null,null,null,null,0,null,0,null,null,"",""]
[null,79,null,null,null,null,null,null,0,null,0,null,null,"",""]
[null,80,null,null,null,null,null,null,0,null,0,null,null,"",""]
[null,81,null,null,null,null,null,null,0,null,0,null,null,"",""]
[null,82,null,null,null,null,null,null,0,null,0,null,null,"",""]
[null,83,null,null,null,null,null,null,0,null,0,null,null,"",""]
[null,84,null,null,null,null,null,null,0,null,0,null,null,"",""]
[null,85,null,null,null,null,null,null,0,null,0,null,null,"",""]
[null,86,null,null,null,null,null,null,0,null,0,null,null,"",""]
[null,87,null,null,null,null,null,null,0,null,0,null,null,"",""]
[null,88,null,null,null,null,null,null,0,null,0,null,null,"",""]
[null,89,null,null,null,null,null,null,0,null,0,null,null,"",""]
[null,90,null,null,null,null,null,null,0,null,0,null,null,"",""]
[null,91,null,null,null,null,null,null,0,null,0,null,null,"",""]
[null,92,null,null,null,null,null,null,0,null,0,null,null,"",""]
[null,93,null,null,null,null,null,null,0,null,0,null,null,"",""]
[null,94,null,null,null,null,null,null,0,null,0,null,null,"",""]
[null,95,null,null,null,null,null,null,0,null,0,null,null,"",""]
[null,96,null,null,null,null,null,null,0,null,0,null,null,"",""]
[null,97,null,null,null,null,null,null,0,null,0,null,null,"",""]
[null,98,null,null,null,null,null,null,0,null,0,null,null,"",""]
[null,99,null,null,null,null,null,null,0,null,0,null,null,"",""]
[null,100,null,null,null,null,null,null,0,null,0,null,null,"",""]
[null,101,null,null,null,null,null,null,0,null,0,null,null,"",""]
[null,102,null,null,null,null,null,null,0,null,0,null,null,"",""]
[null,103,null,null,null,null,null,null,0,null,0,null,null,"",""]
[null,104,null,null,null,null,null,null,0,null,0,null,null,"",""]
[null,105,null,null,null,null,null,null,0,null,0,null,null,"",""]
[null,106,null,null,null,null,null,null,0,null,0,null,null,"",""]
[null,107,null,null,null,null,null,null,0,null,0,null,null,"",""]
[null,108,null,null,null,null,null,null,0,null,0,null,null,"",""]
[null,109,null,null,null,null,null,null,0,null,0,null,null,"",""]
[null,110,null,null,null,null,null,null,0,null,0,null,null,"",""]
[null,111,null,null,null,null,null,null,0,null,0,null,null,"",""]
[null,112,null,null,null,null,null,null,0,null,0,null,null,"",""]
[null,113,null,null,null,null,null,null,0,null,0,null,null,"",""]
[null,114,null,null,null,null,null,null,0,null,0,null,null,"",""]
[null,115,null,null,null,null,null,null,0,null,0,null,null,"",""]
[null,116,null,null,null,null,null,null,0,null,0,null,null,"",""]
[null,117,null,null,null,null,null,null,0,null,0,null,null,"",""]
[null,118,null,null,null,null,null,null,0,null,0,null,null,"",""]
[null,119,null,null,null,null,null,null,0,null,0,null,null,"",""]
[null,120,null,null,null,null,null,null,0,null,0,null,null,"",""]
[null,121,null,null,null,null,null,null,0,null,0,null,null,"",""]
[null,122,null,null,null,null,null,null,0,null,0,null,null,"",""]
[null,123,null,null,null,null,null,null,0,null,0,null,null,"",""]
[null,124,null,null,null,null,null,null,0,null,0,null,null,"",""]
[null,125,null,null,null,null,null,null,0,null,0,null,null,"",""]
[null,126,null,null,null,null,null,null,0,null,0,null,null,"",""]
[null,127,null,null,null,null,null,null,0,null,0,null,null,"",""]
[null,128,null,null,null,null,null,null,0,null,0,null,null,"",""]
[null,129,null,null,null,null,null,null,0,null,0,null,null,"",""]
[null,130,null,null,null,null,null,null,{"$f":"E135-(E135*H135)","v":0},null,{"$f":"I135-J135","v":0},null,null,"",""]
[null,131,null,null,null,null,null,null,0,null,0,null,null,{"$f":"IF(L136=\"\",\"\",IF(D136=\"إشتراك يومي\",\"\",L136+$S$6))","v":""},{"$f":"IF(AND($S$7>N136,K136>0),\"مطلوب السداد\",\"\")","v":""}]
[null,132,null,null,null,null,null,null,0,null,0,null,null,"",""]
[null,133,null,null,null,null,null,null,0,null,0,null,null,"",""]
[null,134,null,null,null,null,null,null,0,null,0,null,null,"",""]
[null,135,null,null,null,null,null,null,0,null,0,null,null,"",""]
[null,136,null,null,null,null,null,null,0,null,0,null,null,"",""]
[null,137,null,null,null,null,null,null,0,null,0,null,null,"",""]
[null,138,null,null,null,null,null,null,0,null,0,null,null,"",""]
[null,139,null,null,null,null,null,null,0,null,0,null,null,"",""]
[null,140,null,null,null,null,null,null,0,null,0,null,null,"",""]
[null,141,null,null,null,null,null,null,0,null,0,null,null,"",""]
[null,142,null,null,null,null,null,null,0,null,0,null,null,"",""]
[null,143,null,null,null,null,null,null,0,null,0,null,null,"",""]
[null,144,null,null,null,null,null,null,0,null,0,null,null,"",""]
[null,145,null,null,null,null,null,null,0,null,0,null,null,"",""]
[null,146,null,null,null,null,null,null,0,null,0,null,null,"",""]
[null,147,null,null,null,null,null,null,0,null,0,null,null,"",""]
[null,148,null,null,null,null,null,null,0,null,0,null,null,"",""]
[null,149,null,null,null,null,null,null,0,null,0,null,null,"",""]
[null,150,null,null,null,null,null,null,0,null,0,null,null,"",""]
[null,151,null,null,null,null,null,null,0,null,0,null,null,"",""]
[null,152,null,null,null,null,null,null,0,null,0,null,null,"",""]
[null,153,null,null,null,null,null,null,0,null,0,null,null,"",""]
[null,154,null,null,null,null,null,null,0,null,0,null,null,"",""]
[null,155,null,null,null,null,null,null,0,null,0,null,null,"",""]
[null,156,null,null,null,null,null,null,0,null,0,null,null,"",""]
[null,157,null,null,null,null,null,null,0,null,0,null,null,"",""]
[null,158,null,null,null,null,null,null,0,null,0,null,null,"",""]
[null,159,null,null,null,null,null,null,0,null,0,null,null,"",""]
[null,160,null,null,null,null,null,null,0,null,0,null,null,"",""]
[null,161,null,null,null,null,null,null,0,null,0,null,null,"",""]
[null,162,null,null,null,null,null,null,0,null,0,null,null,"",""]
[null,163,null,null,null,null,null,null,0,null,0,null,null,"",""]
[null,164,null,null,null,null,null,null,0,null,0,null,null,"",""]
[null,165,null,null,null,null,null,null,0,null,0,null,null,"",""]
[null,166,null,null,null,null,null,null,0,null,0,null,null,"",""]
[null,167,null,null,null,null,null,null,0,null,0,null,null,"",""]
[null,168,null,null,null,null,null,null,0,null,0,null,null,"",""]
[null,169,null,null,null,null,null,null,0,null,0,null,null,"",""]
[null,170,null,null,null,null,null,null,0,null,0,null,null,"",""]
[null,171,null,null,null,null,null,null,0,null,0,null,null,"",""]
[null,172,null,null,null,null,null,null,0,null,0,null,null,"",""]
[null,173,null,null,null,null,null,null,0,null,0,null,null,"",""]
[null,174,null,null,null,null,null,null,0,null,0,null,null,"",""]
[null,175,null,null,null,null,null,null,0,null,0,null,null,"",""]
[null,176,null,null,null,null,null,null,0,null,0,null,null,"",""]
[null,177,null,null,null,null,null,null,0,null,0,null,null,"",""]
[null,178,null,null,null,null,null,null,0,null,0,null,null,"",""]
[null,179,null,null,null,null,null,null,0,null,0,null,null,"",""]
[null,180,null,null,null,null,null,null,0,null,0,null,null,"",""]
[null,181,null,null,null,null,null,null,0,null,0,null,null,"",""]
[null,182,null,null,null,null,null,null,0,null,0,null,null,"",""]
[null,183,null,null,null,null,null,null,0,null,0,null,null,"",""]
[null,184,null,null,null,null,null,null,0,null,0,null,null,"",""]
[null,185,null,null,null,null,null,null,0,null,0,null,null,"",""]
[null,186,null,null,null,null,null,null,0,null,0,null,null,"",""]
[null,187,null,null,null,null,null,null,0,null,0,null,null,"",""]
[null,188,null,null,null,null,null,null,0,null,0,null,null,"",""]
[null,189,null,null,null,null,null,null,0,null,0,null,null,"",""]
[null,190,null,null,null,null,null,null,0,null,0,null,null,"",""]
[null,191,null,null,null,null,null,null,0,null,0,null,null,"",""]
[null,192,null,null,null,null,null,null,0,null,0,null,null,"",""]
[null,193,null,null,null,null,null,null,0,null,0,null,null,"",""]
[null,194,null,null,null,null,null,null,{"$f":"E199-(E199*H199)","v":0},null,{"$f":"I199-J199","v":0},null,null,"",""]
[null,195,null,null,null,null,null,null,0,null,0,null,null,{"$f":"IF(L200=\"\",\"\",IF(D200=\"إشتراك يومي\",\"\",L200+$S$6))","v":""},{"$f":"IF(AND($S$7>N200,K200>0),\"مطلوب السداد\",\"\")","v":""}]
[null,196,null,null,null,null,null,null,0,null,0,null,null,"",""]
[null,197,null,null,null,null,null,null,0,null,0,null,null,"",""]
[null,198,null,null,null,null,null,null,0,null,0,null,null,"",""]
[null,199,null,null,null,null,null,null,0,null,0,null,null,"",""]
[null,200,null,null,null,null,null,null,0,null,0,null,null,"",""]
[null,201,null,null,null,null,null,null,0,null,0,null,null,"",""]
[null,202,null,null,null,null,null,null,0,null,0,null,null,"",""]
[null,203,null,null,null,null,null,null,0,null,0,null,null,"",""]
[null,204,null,null,null,null,null,null,0,null,0,null,null,"",""]
[null,205,null,null,null,null,null,null,0,null,0,null,null,"",""]
[null,206,null,null,null,null,null,null,0,null,0,null,null,"",""]
[null,207,null,null,null,null,null,null,0,null,0,null,null,"",""]
[null,208,null,null,null,null,null,null,0,null,0,null,null,"",""]
[null,209,null,null,null,null,null,null,0,null,0,null,null,"",""]
[null,210,null,null,null,null,null,null,0,null,0,null,null,"",""]
[null,211,null,null,null,null,null,null,0,null,0,null,null,"",""]
[null,212,null,null,null,null,null,null,0,null,0,null,null,"",""]
[null,213,null,null,null,null,null,null,0,null,0,null,null,"",""]
[null,214,null,null,null,null,null,null,0,null,0,null,null,"",""]
[null,215,null,null,null,null,null,null,0,null,0,null,null,"",""]
[null,216,null,null,null,null,null,null,0,null,0,null,null,"",""]
[null,217,null,null,null,null,null,null,0,null,0,null,null,"",""]
[null,218,null,null,null,null,null,null,0,null,0,null,null,"",""]
[null,219,null,null,null,null,null,null,0,null,0,null,null,"",""]
[null,220,null,null,null,null,null,null,0,null,0,null,null,"",""]
[null,221,null,null,null,null,null,null,0,null,0,null,null,"",""]
[null,222,null,null,null,null,null,null,0,null,0,null,null,"",""]
[null,223,null,null,null,null,null,null,0,null,0,null,null,"",""]
[null,224,null,null,null,null,null,null,0,null,0,null,null,"",""]
[null,225,null,null,null,null,null,null,0,null,0,null,null,"",""]
[null,226,null,null,null,null,null,null,0,null,0,null,null,"",""]
[null,227,null,null,null,null,null,null,0,null,0,null,null,"",""]
[null,228,null,null,null,null,null,null,0,null,0,null,null,"",""]
[null,229,null,null,null,null,null,null,0,null,0,null,null,"",""]
[null,230,null,null,null,null,null,null,0,null,0,null,null,"",""]
[null,231,null,null,null,null,null,null,0,null,0,null,null,"",""]
[null,232,null,null,null,null,null,null,0,null,0,null,null,"",""]
[null,233,null,null,null,null,null,null,0,null,0,null,null,"",""]
[null,234,null,null,null,null,null,null,0,null,0,null,null,"",""]
[null,235,null,null,null,null,null,null,0,null,0,null,null,"",""]
[null,236,null,null,null,null,null,null,0,null,0,null,null,"",""]
[null,237,null,null,null,null,null,null,0,null,0,null,null,"",""]
[null,238,null,null,null,null,null,null,0,null,0,null,null,"",""]
[null,239,null,null,null,null,null,null,0,null,0,null,null,"",""]
[null,240,null,null,null,null,null,null,0,null,0,null,null,"",""]
[null,241,null,null,null,null,null,null,0,null,0,null,null,"",""]
[null,242,null,null,null,null,null,null,0,null,0,null,null,"",""]
[null,243,null,null,null,null,null,null,0,null,0,null,null,"",""]
[null,244,null,null,null,null,null,null,0,null,0,null,null,"",""]
[null,245,null,null,null,null,null,null,0,null,0,null,null,"",""]
[null,246,null,null,null,null,null,null,0,null,0,null,null,"",""]
[null,247,null,null,null,null,null,null,0,null,0,null,null,"",""]
[null,248,null,null,null,null,null,null,0,null,0,null,null,"",""]
[null,249,null,null,null,null,null,null,0,null,0,null,null,"",""]
[null,250,null,null,null,null,null,null,0,null,0,null,null,"",""]
[null,251,null,null,null,null,null,null,0,null,0,null,null,"",""]
[null,252,null,null,null,null,null,null,0,null,0,null,null,"",""]
[null,253,null,null,null,null,null,null,0,null,0,null,null,"",""]
[null,254,null,null,null,null,null,null,0,null,0,null,null,"",""]
[null,255,null,null,null,null,null,null,0,null,0,null,null,"",""]
[null,256,null,null,null,null,null,null,0,null,0,null,null,"",""]
[null,257,null,null,null,null,null,null,0,null,0,null,null,"",""]
[null,258,null,null,null,null,null,null,{"$f":"E263-(E263*H263)","v":0},null,{"$f":"I263-J263","v":0},null,null,"",""]
[null,259,null,null,null,null,null,null,0,null,0,null,null,{"$f":"IF(L264=\"\",\"\",IF(D264=\"إشتراك يومي\",\"\",L264+$S$6))","v":""},{"$f":"IF(AND($S$7>N264,K264>0),\"مطلوب السداد\",\"\")","v":""}]
[null,260,null,null,null,null,null,null,0,null,0,null,null,"",""]
[null,261,null,null,null,null,null,null,0,null,0,null,null,"",""]
[null,262,null,null,null,null,null,null,0,null,0,null,null,"",""]
[null,263,null,null,null,null,null,null,0,null,0,null,null,"",""]
[null,264,null,null,null,null,null,null,0,null,0,null,null,"",""]
[null,265,null,null,null,null,null,null,0,null,0,null,null,"",""]
[null,266,null,null,null,null,null,null,0,null,0,null,null,"",""]
[null,267,null,null,null,null,null,null,0,null,0,null,null,"",""]
[null,268,null,null,null,null,null,null,0,null,0,null,null,"",""]
[null,269,null,null,null,null,null,null,0,null,0,null,null,"",""]
[null,270,null,null,null,null,null,null,0,null,0,null,null,"",""]
[null,271,null,null,null,null,null,null,0,null,0,null,null,"",""]
[null,272,null,null,null,null,null,null,0,null,0,null,null,"",""]
[null,273,null,null,null,null,null,null,0,null,0,null,null,"",""]
[null,274,null,null,null,null,null,null,0,null,0,null,null,"",""]
[null,275,null,null,null,null,null,null,0,null,0,null,null,"",""]
[null,276,null,null,null,null,null,null,0,null,0,null,null,"",""]
[null,277,null,null,null,null,null,null,0,null,0,null,null,"",""]
[null,278,null,null,null,null,null,null,0,null,0,null,null,"",""]
[null,279,null,null,null,null,null,null,0,null,0,null,null,"",""]
[null,280,null,null,null,null,null,null,0,null,0,null,null,"",""]
[null,281,null,null,null,null,null,null,0,null,0,null,null,"",""]
[null,282,null,null,null,null,null,null,0,null,0,null,null,"",""]
[null,283,null,null,null,null,null,null,0,null,0,null,null,"",""]
[null,284,null,null,null,null,null,null,0,null,0,null,null,"",""]
[null,285,null,null,null,null,null,null,0,null,0,null,null,"",""]
[null,286,null,null,null,null,null,null,0,null,0,null,null,"",""]
[null,287,null,null,null,null,null,null,0,null,0,null,null,"",""]
[null,288,null,null,null,null,null,null,0,null,0,null,null,"",""]
[null,289,null,null,null,null,null,null,0,null,0,null,null,"",""]
[null,290,null,null,null,null,null,null,0,null,0,null,null,"",""]
[null,291,null,null,null,null,null,null,0,null,0,null,null,"",""]
[null,292,null,null,null,null,null,null,0,null,0,null,null,"",""]
[null,293,null,null,null,null,null,null,0,null,0,null,null,"",""]
[null,294,null,null,null,null,null,null,0,null,0,null,null,"",""]
[null,295,null,null,null,null,null,null,0,null,0,null,null,"",""]
[null,296,null,null,null,null,null,null,0,null,0,null,null,"",""]
[null,297,null,null,null,null,null,null,0,null,0,null,null,"",""]
[null,298,null,null,null,null,null,null,0,null,0,null,null,"",""]
[null,299,null,null,null,null,null,null,0,null,0,null,null,"",""]
[null,300,null,null,null,null,null,null,0,null,0,null,null,"",""]
[null,301,null,null,null,null,null,null,0,null,0,null,null,"",""]
[null,302,null,null,null,null,null,null,0,null,0,null,null,"",""]
[null,303,null,null,null,null,null,null,0,null,0,null,null,"",""]
[null,304,null,null,null,null,null,null,0,null,0,null,null,"",""]
[null,305,null,null,null,null,null,null,0,null,0,null,null,"",""]
[null,306,null,null,null,null,null,null,0,null,0,null,null,"",""]
[null,307,null,null,null,null,null,null,0,null,0,null,null,"",""]
[null,308,null,null,null,null,null,null,0,null,0,null,null,"",""]
[null,309,null,null,null,null,null,null,0,null,0,null,null,"",""]
[null,310,null,null,null,null,null,null,0,null,0,null,null,"",""]
[null,311,null,null,null,null,null,null,0,null,0,null,null,"",""]
[null,312,null,null,null,null,null,null,0,null,0,null,null,"",""]
[null,313,null,null,null,null,null,null,0,null,0,null,null,"",""]
[null,314,null,null,null,null,null,null,0,null,0,null,null,"",""]
[null,315,null,null,null,null,null,null,0,null,0,null,null,"",""]
[null,316,null,null,null,null,null,null,0,null,0,null,null,"",""]
[null,317,null,null,null,null,null,null,0,null,0,null,null,"",""]
[null,318,null,null,null,null,null,null,0,null,0,null,null,"",""]
[null,319,null,null,null,null,null,null,0,null,0,null,null,"",""]
[null,320,null,null,null,null,null,null,0,null,0,null,null,"",""]
[null,321,null,null,null,null,null,null,0,null,0,null,null,"",""]
[null,322,null,null,null,null,null,null,{"$f":"E327-(E327*H327)","v":0},null,{"$f":"I327-J327","v":0},null,null,"",""]
[null,323,null,null,null,null,null,null,0,null,0,null,null,{"$f":"IF(L328=\"\",\"\",IF(D328=\"إشتراك يومي\",\"\",L328+$S$6))","v":""},{"$f":"IF(AND($S$7>N328,K328>0),\"مطلوب السداد\",\"\")","v":""}]
[null,324,null,null,null,null,null,null,0,null,0,null,null,"",""]
[null,325,null,null,null,null,null,null,0,null,0,null,null,"",""]
[null,326,null,null,null,null,null,null,0,null,0,null,null,"",""]
[null,327,null,null,null,null,null,null,0,null,0,null,null,"",""]
[null,328,null,null,null,null,null,null,0,null,0,null,null,"",""]
[null,329,null,null,null,null,null,null,0,null,0,null,null,"",""]
[null,330,null,null,null,null,null,null,0,null,0,null,null,"",""]
[null,331,null,null,null,null,null,null,0,null,0,null,null,"",""]
[null,332,null,null,null,null,null,null,0,null,0,null,null,"",""]
[null,333,null,null,null,null,null,null,0,null,0,null,null,"",""]
[null,334,null,null,null,null,null,null,0,null,0,null,null,"",""]
[null,335,null,null,null,null,null,null,0,null,0,null,null,"",""]
[null,336,null,null,null,null,null,null,0,null,0,null,null,"",""]
[null,337,null,null,null,null,null,null,0,null,0,null,null,"",""]
[null,338,null,null,null,null,null,null,0,null,0,null,null,"",""]
[null,339,null,null,null,null,null,null,0,null,0,null,null,"",""]
[null,340,null,null,null,null,null,null,0,null,0,null,null,"",""]
[null,341,null,null,null,null,null,null,0,null,0,null,null,"",""]
[null,342,null,null,null,null,null,null,0,null,0,null,null,"",""]
[null,343,null,null,null,null,null,null,0,null,0,null,null,"",""]
[null,344,null,null,null,null,null,null,0,null,0,null,null,"",""]
[null,345,null,null,null,null,null,null,0,null,0,null,null,"",""]
[null,346,null,null,null,null,null,null,0,null,0,null,null,"",""]
[null,347,null,null,null,null,null,null,0,null,0,null,null,"",""]
[null,348,null,null,null,null,null,null,0,null,0,null,null,"",""]
[null,349,null,null,null,null,null,null,0,null,0,null,null,"",""]
[null,350,null,null,null,null,null,null,0,null,0,null,null,"",""]
[null,351,null,null,null,null,null,null,0,null,0,null,null,"",""]
[null,352,null,null,null,null,null,null,0,null,0,null,null,"",""]
[null,353,null,null,null,null,null,null,0,null,0,null,null,"",""]
[null,354,null,null,null,null,null,null,0,null,0,null,null,"",""]
[null,355,null,null,null,null,null,null,0,null,0,null,null,"",""]
[null,356,null,null,null,null,null,null,0,null,0,null,null,"",""]
[null,357,null,null,null,null,null,null,0,null,0,null,null,"",""]
[null,358,null,null,null,null,null,null,0,null,0,null,null,"",""]
[null,359,null,null,null,null,null,null,0,null,0,null,null,"",""]
[null,360,null,null,null,null,null,null,0,null,0,null,null,"",""]
[null,361,null,null,null,null,null,null,0,null,0,null,null,"",""]
[null,362,null,null,null,null,null,null,0,null,0,null,null,"",""]
[null,363,null,null,null,null,null,null,0,null,0,null,null,"",""]
[null,364,null,null,null,null,null,null,0,null,0,null,null,"",""]
[null,365,null,null,null,null,null,null,0,null,0,null,null,"",""]
[null,366,null,null,null,null,null,null,0,null,0,null,null,"",""]
[null,367,null,null,null,null,null,null,0,null,0,null,null,"",""]
[null,368,null,null,null,null,null,null,0,null,0,null,null,"",""]
[null,369,null,null,null,null,null,null,0,null,0,null,null,"",""]
[null,370,null,null,null,null,null,null,0,null,0,null,null,"",""]
[null,371,null,null,null,null,null,null,0,null,0,null,null,"",""]
[null,372,null,null,null,null,null,null,0,null,0,null,null,"",""]
[null,373,null,null,null,null,null,null,0,null,0,null,null,"",""]
[null,374,null,null,null,null,null,null,0,null,0,null,null,"",""]
[null,375,null,null,null,null,null,null,0,null,0,null,null,"",""]
[null,376,null,null,null,null,null,null,0,null,0,null,null,"",""]
[null,377,null,null,null,null,null,null,0,null,0,null,null,"",""]
[null,378,null,null,null,null,null,null,0,null,0,null,null,"",""]
[null,379,null,null,null,null,null,null,0,null,0,null,null,"",""]
[null,380,null,null,null,null,null,null,0,null,0,null,null,"",""]
[null,381,null,null,null,null,null,null,0,null,0,null,null,"",""]
[null,382,null,null,null,null,null,null,0,null,0,null,null,"",""]
[null,383,null,null,null,null,null,null,0,null,0,null,null,"",""]
[null,384,null,null,null,null,null,null,0,null,0,null,null,"",""]
[null,385,null,null,null,null,null,null,0,null,0,null,null,"",""]
[null,386,null,null,null,null,null,null,{"$f":"E391-(E391*H391)","v":0},null,{"$f":"I391-J391","v":0},null,null,"",""]
[null,387,null,null,null,null,null,null,0,null,0,null,null,{"$f":"IF(L392=\"\",\"\",IF(D392=\"إشتراك يومي\",\"\",L392+$S$6))","v":""},{"$f":"IF(AND($S$7>N392,K392>0),\"مطلوب السداد\",\"\")","v":""}]
[null,388,null,null,null,null,null,null,0,null,0,null,null,"",""]
[null,389,null,null,null,null,null,null,0,null,0,null,null,"",""]
[null,390,null,null,null,null,null,null,0,null,0,null,null,"",""]
[null,391,null,null,null,null,null,null,0,null,0,null,null,"",""]
[null,392,null,null,null,null,null,null,0,null,0,null,null,"",""]
[null,393,null,null,null,null,null,null,0,null,0,null,null,"",""]
[null,394,null,null,null,null,null,null,0,null,0,null,null,"",""]
[null,395,null,null,null,null,null,null,0,null,0,null,null,"",""]
[null,396,null,null,null,null,null,null,0,null,0,null,null,"",""]
[null,397,null,null,null,null,null,null,0,null,0,null,null,"",""]
[null,398,null,null,null,null,null,null,0,null,0,null,null,"",""]
[null,399,null,null,null,null,null,null,0,null,0,null,null,"",""]
[null,400,null,null,null,null,null,null,0,null,0,null,null,"",""]
[null,401,null,null,null,null,null,null,0,null,0,null,null,"",""]
[null,402,null,null,null,null,null,null,0,null,0,null,null,"",""]
[null,403,null,null,null,null,null,null,0,null,0,null,null,"",""]
[null,404,null,null,null,null,null,null,0,null,0,null,null,"",""]
[null,405,null,null,null,null,null,null,0,null,0,null,null,"",""]
[null,406,null,null,null,null,null,null,0,null,0,null,null,"",""]
[null,407,null,null,null,null,null,null,0,null,0,null,null,"",""]
[null,408,null,null,null,null,null,null,0,null,0,null,null,"",""]
[null,409,null,null,null,null,null,null,0,null,0,null,null,"",""]
[null,410,null,null,null,null,null,null,0,null,0,null,null,"",""]
[null,411,null,null,null,null,null,null,0,null,0,null,null,"",""]
[null,412,null,null,null,null,null,null,0,null,0,null,null,"",""]
[null,413,null,null,null,null,null,null,0,null,0,null,null,"",""]
[null,414,null,null,null,null,null,null,0,null,0,null,null,"",""]
[null,415,null,null,null,null,null,null,0,null,0,null,null,"",""]
[null,416,null,null,null,null,null,null,0,null,0,null,null,"",""]
[null,417,null,null,null,null,null,null,0,null,0,null,null,"",""]
[null,418,null,null,null,null,null,null,0,null,0,null,null,"",""]
[null,419,null,null,null,null,null,null,0,null,0,null,null,"",""]
[null,420,null,null,null,null,null,null,0,null,0,null,null,"",""]
[null,421,null,null,null,null,null,null,0,null,0,null,null,"",""]
[null,422,null,null,null,null,null,null,0,null,0,null,null,"",""]
[null,423,null,null,null,null,null,null,0,null,0,null,null,"",""]
[null,424,null,null,null,null,null,null,0,null,0,null,null,"",""]
[null,425,null,null,null,null,null,null,0,null,0,null,null,"",""]
[null,426,null,null,null,null,null,null,0,null,0,null,null,"",""]
[null,427,null,null,null,null,null,null,0,null,0,null,null,"",""]
[null,428,null,null,null,null,null,null,0,null,0,null,null,"",""]
[null,429,null,null,null,null,null,null,0,null,0,null,null,"",""]
[null,430,null,null,null,null,null,null,0,null,0,null,null,"",""]
[null,431,null,null,null,null,null,null,0,null,0,null,null,"",""]
[null,432,null,null,null,null,null,null,0,null,0,null,null,"",""]
[null,433,null,null,null,null,null,null,0,null,0,null,null,"",""]
[null,434,null,null,null,null,null,null,0,null,0,null,null,"",""]
[null,435,null,null,null,null,null,null,0,null,0,null,null,"",""]
[null,436,null,null,null,null,null,null,0,null,0,null,null,"",""]
[null,437,null,null,null,null,null,null,0,null,0,null,null,"",""]
[null,438,null,null,null,null,null,null,0,null,0,null,null,"",""]
[null,439,null,null,null,null,null,null,0,null,0,null,null,"",""]
[null,440,null,null,null,null,null,null,0,null,0,null,null,"",""]
[null,441,null,null,null,null,null,null,0,null,0,null,null,"",""]
[null,442,null,null,null,null,null,null,0,null,0,null,null,"",""]
[null,443,null,null,null,null,null,null,0,null,0,null,null,"",""]
[null,444,null,null,null,null,null,null,0,null,0,null,null,"",""]
[null,445,null,null,null,null,null,null,0,null,0,null,null,"",""]
[null,446,null,null,null,null,null,null,0,null,0,null,null,"",""]
[null,447,null,null,null,null,null,null,0,null,0,null,null,"",""]
[null,448,null,null,null,null,null,null,0,null,0,null,null,"",""]
[null,449,null,null,null,null,null,null,0,null,0,null,null,"",""]
[null,450,null,null,null,null,null,null,{"$f":"E455-(E455*H455)","v":0},null,{"$f":"I455-J455","v":0},null,null,"",""]
[null,451,null,null,null,null,null,null,0,null,0,null,null,{"$f":"IF(L456=\"\",\"\",IF(D456=\"إشتراك يومي\",\"\",L456+$S$6))","v":""},{"$f":"IF(AND($S$7>N456,K456>0),\"مطلوب السداد\",\"\")","v":""}]
[null,452,null,null,null,null,null,null,0,null,0,null,null,"",""]
[null,453,null,null,null,null,null,null,0,null,0,null,null,"",""]
[null,454,null,null,null,null,null,null,0,null,0,null,null,"",""]
[null,455,null,null,null,null,null,null,0,null,0,null,null,"",""]
[null,456,null,null,null,null,null,null,0,null,0,null,null,"",""]
[null,457,null,null,null,null,null,null,0,null,0,null,null,"",""]
[null,458,null,null,null,null,null,null,0,null,0,null,null,"",""]
[null,459,null,null,null,null,null,null,0,null,0,null,null,"",""]
[null,460,null,null,null,null,null,null,0,null,0,null,null,"",""]
[null,461,null,null,null,null,null,null,0,null,0,null,null,"",""]
[null,462,null,null,null,null,null,null,0,null,0,null,null,"",""]
[null,463,null,null,null,null,null,null,0,null,0,null,null,"",""]
[null,464,null,null,null,null,null,null,0,null,0,null,null,"",""]
[null,465,null,null,null,null,null,null,0,null,0,null,null,"",""]
[null,466,null,null,null,null,null,null,0,null,0,null,null,"",""]
[null,467,null,null,null,null,null,null,0,null,0,null,null,"",""]
[null,468,null,null,null,null,null,null,0,null,0,null,null,"",""]
[null,469,null,null,null,null,null,null,0,null,0,null,null,"",""]
[null,470,null,null,null,null,null,null,0,null,0,null,null,"",""]
[null,471,null,null,null,null,null,null,0,null,0,null,null,"",""]
[null,472,null,null,null,null,null,null,0,null,0,null,null,"",""]
[null,473,null,null,null,null,null,null,0,null,0,null,null,"",""]
[null,474,null,null,null,null,null,null,0,null,0,null,null,"",""]
[null,475,null,null,null,null,null,null,0,null,0,null,null,"",""]
[null,476,null,null,null,null,null,null,0,null,0,null,null,"",""]
[null,477,null,null,null,null,null,null,0,null,0,null,null,"",""]
[null,478,null,null,null,null,null,null,0,null,0,null,null,"",""]
[null,479,null,null,null,null,null,null,0,null,0,null,null,"",""]
[null,480,null,null,null,null,null,null,0,null,0,null,null,"",""]
[null,481,null,null,null,null,null,null,0,null,0,null,null,"",""]
[null,482,null,null,null,null,null,null,0,null,0,null,null,"",""]
[null,483,null,null,null,null,null,null,0,null,0,null,null,"",""]
[null,484,null,null,null,null,null,null,0,null,0,null,null,"",""]
[null,485,null,null,null,null,null,null,0,null,0,null,null,"",""]
[null,486,null,null,null,null,null,null,0,null,0,null,null,"",""]
[null,487,null,null,null,null,null,null,0,null,0,null,null,"",""]
[null,488,null,null,null,null,null,null,0,null,0,null,null,"",""]
[null,489,null,null,null,null,null,null,0,null,0,null,null,"",""]
[null,490,null,null,null,null,null,null,0,null,0,null,null,"",""]
[null,491,null,null,null,null,null,null,0,null,0,null,null,"",""]
[null,492,null,null,null,null,null,null,0,null,0,null,null,"",""]
[null,493,null,null,null,null,null,null,0,null,0,null,null,"",""]
[null,494,null,null,null,null,null,null,0,null,0,null,null,"",""]
[null,495,null,null,null,null,null,null,0,null,0,null,null,"",""]
[null,496,null,null,null,null,null,null,0,null,0,null,null,"",""]
[null,497,null,null,null,null,null,null,0,null,0,null,null,"",""]
[null,498,null,null,null,null,null,null,0,null,0,null,null,"",""]
[null,499,null,null,null,null,null,null,0,null,0,null,null,"",""]
[null,500,null,null,null,null,null,null,0,null,0,null,null,"",""]
[null,501,null,null,null,null,null,null,0,null,0,null,null,"",""]
[null,502,null,null,null,null,null,null,0,null,0,null,null,"",""]
[null,503,null,null,null,null,null,null,0,null,0,null,null,"",""]
[null,504,null,null,null,null,null,null,0,null,0,null,null,"",""]
[null,505,null,null,null,null,null,null,0,null,0,null,null,"",""]
[null,506,null,null,null,null,null,null,0,null,0,null,null,"",""]
[null,507,null,null,null,null,null,null,0,null,0,null,null,"",""]
[null,508,null,null,null,null,null,null,0,null,0,null,null,"",""]
[null,509,null,null,null,null,null,null,0,null,0,null,null,"",""]
[null,510,null,null,null,null,null,null,0,null,0,null,null,"",""]
[null,511,null,null,null,null,null,null,0,null,0,null,null,"",""]
[null,512,null,null,null,null,null,null,0,null,0,null,null,"",""]
[null,513,null,null,null,null,null,null,0,null,0,null,null,"",""]
[null,514,null,null,null,null,null,null,{"$f":"E519-(E519*H519)","v":0},null,{"$f":"I519-J519","v":0},null,null,"",""]
[null,515,null,null,null,null,null,null,0,null,0,null,null,{"$f":"IF(L520=\"\",\"\",IF(D520=\"إشتراك يومي\",\"\",L520+$S$6))","v":""},{"$f":"IF(AND($S$7>N520,K520>0),\"مطلوب السداد\",\"\")","v":""}]
[null,516,null,null,null,null,null,null,0,null,0,null,null,"",""]
[null,517,null,null,null,null,null,null,0,null,0,null,null,"",""]
[null,518,null,null,null,null,null,null,0,null,0,null,null,"",""]
[null,519,null,null,null,null,null,null,0,null,0,null,null,"",""]
[null,520,null,null,null,null,null,null,0,null,0,null,null,"",""]
[null,521,null,null,null,null,null,null,0,null,0,null,null,"",""]
[null,522,null,null,null,null,null,null,0,null,0,null,null,"",""]
[null,523,null,null,null,null,null,null,0,null,0,null,null,"",""]
[null,524,null,null,null,null,null,null,0,null,0,null,null,"",""]
[null,525,null,null,null,null,null,null,0,null,0,null,null,"",""]
[null,526,null,null,null,null,null,null,0,null,0,null,null,"",""]
[null,527,null,null,null,null,null,null,0,null,0,null,null,"",""]
[null,528,null,null,null,null,null,null,0,null,0,null,null,"",""]
[null,529,null,null,null,null,null,null,0,null,0,null,null,"",""]
[null,530,null,null,null,null,null,null,0,null,0,null,null,"",""]
[null,531,null,null,null,null,null,null,0,null,0,null,null,"",""]
[null,532,null,null,null,null,null,null,0,null,0,null,null,"",""]
[null,533,null,null,null,null,null,null,0,null,0,null,null,"",""]
[null,534,null,null,null,null,null,null,0,null,0,null,null,"",""]
[null,535,null,null,null,null,null,null,0,null,0,null,null,"",""]
[null,536,null,null,null,null,null,null,0,null,0,null,null,"",""]
[null,537,null,null,null,null,null,null,0,null,0,null,null,"",""]
[null,538,null,null,null,null,null,null,0,null,0,null,null,"",""]
[null,539,null,null,null,null,null,null,0,null,0,null,null,"",""]
[null,540,null,null,null,null,null,null,0,null,0,null,null,"",""]
[null,541,null,null,null,null,null,null,0,null,0,null,null,"",""]
[null,542,null,null,null,null,null,null,0,null,0,null,null,"",""]
[null,543,null,null,null,null,null,null,0,null,0,null,null,"",""]
[null,544,null,null,null,null,null,null,0,null,0,null,null,"",""]
[null,545,null,null,null,null,null,null,0,null,0,null,null,"",""]
[null,546,null,null,null,null,null,null,0,null,0,null,null,"",""]
[null,547,null,null,null,null,null,null,0,null,0,null,null,"",""]
[null,548,null,null,null,null,null,null,0,null,0,null,null,"",""]
[null,549,null,null,null,null,null,null,0,null,0,null,null,"",""]
[null,550,null,null,null,null,null,null,0,null,0,null,null,"",""]
[null,551,null,null,null,null,null,null,0,null,0,null,null,"",""]
[null,552,null,null,null,null,null,null,0,null,0,null,null,"",""]
[null,553,null,null,null,null,null,null,0,null,0,null,null,"",""]
[null,554,null,null,null,null,null,null,0,null,0,null,null,"",""]
[null,555,null,null,null,null,null,null,0,null,0,null,null,"",""]
[null,556,null,null,null,null,null,null,0,null,0,null,null,"",""]
[null,557,null,null,null,null,null,null,0,null,0,null,null,"",""]
[null,558,null,null,null,null,null,null,0,null,0,null,null,"",""]
[null,559,null,null,null,null,null,null,0,null,0,null,null,"",""]
[null,560,null,null,null,null,null,null,0,null,0,null,null,"",""]
[null,561,null,null,null,null,null,null,0,null,0,null,null,"",""]
[null,562,null,null,null,null,null,null,0,null,0,null,null,"",""]
[null,563,null,null,null,null,null,null,0,null,0,null,null,"",""]
[null,564,null,null,null,null,null,null,0,null,0,null,null,"",""]
[null,565,null,null,null,null,null,null,0,null,0,null,null,"",""]
[null,566,null,null,null,null,null,null,0,null,0,null,null,"",""]
[null,567,null,null,null,null,null,null,0,null,0,null,null,"",""]
[null,568,null,null,null,null,null,null,0,null,0,null,null,"",""]
[null,569,null,null,null,null,null,null,0,null,0,null,null,"",""]
[null,570,null,null,null,null,null,null,0,null,0,null,null,"",""]
[null,571,null,null,null,null,null,null,0,null,0,null,null,"",""]
[null,572,null,null,null,null,null,null,0,null,0,null,null,"",""]
[null,573,null,null,null,null,null,null,0,null,0,null,null,"",""]
[null,574,null,null,null,null,null,null,0,null,0,null,null,"",""]
[null,575,null,null,null,null,null,null,0,null,0,null,null,"",""]
[null,576,null,null,null,null,null,null,0,null,0,null,null,"",""]
[null,577,null,null,null,null,null,null,0,null,0,null,null,"",""]
[null,578,null,null,null,null,null,null,{"$f":"E583-(E583*H583)","v":0},null,{"$f":"I583-J583","v":0},null,null,"",""]
[null,579,null,null,null,null,null,null,0,null,0,null,null,{"$f":"IF(L584=\"\",\"\",IF(D584=\"إشتراك يومي\",\"\",L584+$S$6))","v":""},{"$f":"IF(AND($S$7>N584,K584>0),\"مطلوب السداد\",\"\")","v":""}]
[null,580,null,null,null,null,null,null,0,null,0,null,null,"",""]
[null,581,null,null,null,null,null,null,0,null,0,null,null,"",""]
[null,582,null,null,null,null,null,null,0,null,0,null,null,"",""]
[null,583,null,null,null,null,null,null,0,null,0,null,null,"",""]
[null,584,null,null,null,null,null,null,0,null,0,null,null,"",""]
[null,585,null,null,null,null,null,null,0,null,0,null,null,"",""]
[null,586,null,null,null,null,null,null,0,null,0,null,null,"",""]
[null,587,null,null,null,null,null,null,0,null,0,null,null,"",""]
[null,588,null,null,null,null,null,null,0,null,0,null,null,"",""]
[null,589,null,null,null,null,null,null,0,null,0,null,null,"",""]
[null,590,null,null,null,null,null,null,0,null,0,null,null,"",""]
[null,591,null,null,null,null,null,null,0,null,0,null,null,"",""]
[null,592,null,null,null,null,null,null,0,null,0,null,null,"",""]
[null,593,null,null,null,null,null,null,0,null,0,null,null,"",""]
[null,594,null,null,null,null,null,null,0,null,0,null,null,"",""]
[null,595,null,null,null,null,null,null,0,null,0,null,null,"",""]
[null,596,null,null,null,null,null,null,0,null,0,null,null,"",""]
[null,597,null,null,null,null,null,null,0,null,0,null,null,"",""]
[null,598,null,null,null,null,null,null,0,null,0,null,null,"",""]
[null,599,null,null,null,null,null,null,0,null,0,null,null,"",""]
[null,600,null,null,null,null,null,null,0,null,0,null,null,"",""]
[null,601,null,null,null,null,null,null,0,null,0,null,null,"",""]
[null,602,null,null,null,null,null,null,0,null,0,null,null,"",""]
[null,603,null,null,null,null,null,null,0,null,0,null,null,"",""]
[null,604,null,null,null,null,null,null,0,null,0,null,null,"",""]
[null,605,null,null,null,null,null,null,0,null,0,null,null,"",""]
[null,606,null,null,null,null,null,null,0,null,0,null,null,"",""]
[null,607,null,null,null,null,null,null,0,null,0,null,null,"",""]
[null,608,null,null,null,null,null,null,0,null,0,null,null,"",""]
[null,609,null,null,null,null,null,null,0,null,0,null,null,"",""]
[null,610,null,null,null,null,null,null,0,null,0,null,null,"",""]
[null,611,null,null,null,null,null,null,0,null,0,null,null,"",""]
[null,612,null,null,null,null,null,null,0,null,0,null,null,"",""]
[null,613,null,null,null,null,null,null,0,null,0,null,null,"",""]
[null,614,null,null,null,null,null,null,0,null,0,null,null,"",""]
[null,615,null,null,null,null,null,null,0,null,0,null,null,"",""]
[null,616,null,null,null,null,null,null,0,null,0,null,null,"",""]
[null,617,null,null,null,null,null,null,0,null,0,null,null,"",""]
[null,618,null,null,null,null,null,null,0,null,0,null,null,"",""]
[null,619,null,null,null,null,null,null,0,null,0,null,null,"",""]
[null,620,null,null,null,null,null,null,0,null,0,null,null,"",""]
[null,621,null,null,null,null,null,null,0,null,0,null,null,"",""]
[null,622,null,null,null,null,null,null,0,null,0,null,null,"",""]
[null,623,null,null,null,null,null,null,0,null,0,null,null,"",""]
[null,624,null,null,null,null,null,null,0,null,0,null,null,"",""]
[null,625,null,null,null,null,null,null,0,null,0,null,null,"",""]
[null,626,null,null,null,null,null,null,0,null,0,null,null,"",""]
[null,627,null,null,null,null,null,null,0,null,0,null,null,"",""]
[null,628,null,null,null,null,null,null,0,null,0,null,null,"",""]
[null,629,null,null,null,null,null,null,0,null,0,null,null,"",""]
[null,630,null,null,null,null,null,null,0,null,0,null,null,"",""]
[null,631,null,null,null,null,null,null,0,null,0,null,null,"",""]
[null,632,null,null,null,null,null,null,0,null,0,null,null,"",""]
[null,633,null,null,null,null,null,null,0,null,0,null,null,"",""]
[null,634,null,null,null,null,null,null,0,null,0,null,null,"",""]
[null,635,null,null,null,null,null,null,0,null,0,null,null,"",""]
[null,636,null,null,null,null,null,null,0,null,0,null,null,"",""]
[null,637,null,null,null,null,null,null,0,null,0,null,null,"",""]
[null,638,null,null,null,null,null,null,0,null,0,null,null,"",""]
[null,639,null,null,null,null,null,null,0,null,0,null,null,"",""]
[null,640,null,null,null,null,null,null,0,null,0,null,null,"",""]
[null,641,null,null,null,null,null,null,0,null,0,null,null,"",""]
[null,642,null,null,null,null,null,null,{"$f":"E647-(E647*H647)","v":0},null,{"$f":"I647-J647","v":0},null,null,"",""]
[null,643,null,null,null,null,null,null,0,null,0,null,null,{"$f":"IF(L648=\"\",\"\",IF(D648=\"إشتراك يومي\",\"\",L648+$S$6))","v":""},{"$f":"IF(AND($S$7>N648,K648>0),\"مطلوب السداد\",\"\")","v":""}]
[null,644,null,null,null,null,null,null,0,null,0,null,null,"",""]
[null,645,null,null,null,null,null,null,0,null,0,null,null,"",""]
[null,646,null,null,null,null,null,null,0,null,0,null,null,"",""]
[null,647,null,null,null,null,null,null,0,null,0,null,null,"",""]
[null,648,null,null,null,null,null,null,0,null,0,null,null,"",""]
[null,649,null,null,null,null,null,null,0,null,0,null,null,"",""]
[null,650,null,null,null,null,null,null,0,null,0,null,null,"",""]
[null,651,null,null,null,null,null,null,0,null,0,null,null,"",""]
[null,652,null,null,null,null,null,null,0,null,0,null,null,"",""]
[null,653,null,null,null,null,null,null,0,null,0,null,null,"",""]
[null,654,null,null,null,null,null,null,0,null,0,null,null,"",""]
[null,655,null,null,null,null,null,null,0,null,0,null,null,"",""]
[null,656,null,null,null,null,null,null,0,null,0,null,null,"",""]
[null,657,null,null,null,null,null,null,0,null,0,null,null,"",""]
[null,658,null,null,null,null,null,null,0,null,0,null,null,"",""]
[null,659,null,null,null,null,null,null,0,null,0,null,null,"",""]
[null,660,null,null,null,null,null,null,0,null,0,null,null,"",""]
[null,661,null,null,null,null,null,null,0,null,0,null,null,"",""]
[null,662,null,null,null,null,null,null,0,null,0,null,null,"",""]
[null,663,null,null,null,null,null,null,0,null,0,null,null,"",""]
[null,664,null,null,null,null,null,null,0,null,0,null,null,"",""]
[null,665,null,null,null,null,null,null,0,null,0,null,null,"",""]
[null,666,null,null,null,null,null,null,0,null,0,null,null,"",""]
[null,667,null,null,null,null,null,null,0,null,0,null,null,"",""]
[null,668,null,null,null,null,null,null,0,null,0,null,null,"",""]
[null,669,null,null,null,null,null,null,0,null,0,null,null,"",""]
[null,670,null,null,null,null,null,null,0,null,0,null,null,"",""]
[null,671,null,null,null,null,null,null,0,null,0,null,null,"",""]
[null,672,null,null,null,null,null,null,0,null,0,null,null,"",""]
[null,673,null,null,null,null,null,null,0,null,0,null,null,"",""]
[null,674,null,null,null,null,null,null,0,null,0,null,null,"",""]
[null,675,null,null,null,null,null,null,0,null,0,null,null,"",""]
[null,676,null,null,null,null,null,null,0,null,0,null,null,"",""]
[null,677,null,null,null,null,null,null,0,null,0,null,null,"",""]
[null,678,null,null,null,null,null,null,0,null,0,null,null,"",""]
[null,679,null,null,null,null,null,null,0,null,0,null,null,"",""]
[null,680,null,null,null,null,null,null,0,null,0,null,null,"",""]
[null,681,null,null,null,null,null,null,0,null,0,null,null,"",""]
[null,682,null,null,null,null,null,null,0,null,0,null,null,"",""]
[null,683,null,null,null,null,null,null,0,null,0,null,null,"",""]
[null,684,null,null,null,null,null,null,0,null,0,null,null,"",""]
[null,685,null,null,null,null,null,null,0,null,0,null,null,"",""]
[null,686,null,null,null,null,null,null,0,null,0,null,null,"",""]
[null,687,null,null,null,null,null,null,0,null,0,null,null,"",""]
[null,688,null,null,null,null,null,null,0,null,0,null,null,"",""]
[null,689,null,null,null,null,null,null,0,null,0,null,null,"",""]
[null,690,null,null,null,null,null,null,0,null,0,null,null,"",""]
[null,691,null,null,null,null,null,null,0,null,0,null,null,"",""]
[null,692,null,null,null,null,null,null,0,null,0,null,null,"",""]
[null,693,null,null,null,null,null,null,0,null,0,null,null,"",""]
[null,694,null,null,null,null,null,null,0,null,0,null,null,"",""]
[null,695,null,null,null,null,null,null,0,null,0,null,null,"",""]
[null,696,null,null,null,null,null,null,0,null,0,null,null,"",""]
[null,697,null,null,null,null,null,null,0,null,0,null,null,"",""]
[null,698,null,null,null,null,null,null,0,null,0,null,null,"",""]
[null,699,null,null,null,null,null,null,0,null,0,null,null,"",""]
[null,700,null,null,null,null,null,null,0,null,0,null,null,"",""]
[null,701,null,null,null,null,null,null,0,null,0,null,null,"",""]
[null,702,null,null,null,null,null,null,0,null,0,null,null,"",""]
[null,703,null,null,null,null,null,null,0,null,0,null,null,"",""]
[null,704,null,null,null,null,null,null,0,null,0,null,null,"",""]
[null,705,null,null,null,null,null,null,0,null,0,null,null,"",""]
[null,706,null,null,null,null,null,null,{"$f":"E711-(E711*H711)","v":0},null,{"$f":"I711-J711","v":0},null,null,"",""]
[null,707,null,null,null,null,null,null,0,null,0,null,null,{"$f":"IF(L712=\"\",\"\",IF(D712=\"إشتراك يومي\",\"\",L712+$S$6))","v":""},{"$f":"IF(AND($S$7>N712,K712>0),\"مطلوب السداد\",\"\")","v":""}]
[null,708,null,null,null,null,null,null,0,null,0,null,null,"",""]
[null,709,null,null,null,null,null,null,0,null,0,null,null,"",""]
[null,710,null,null,null,null,null,null,0,null,0,null,null,"",""]
[null,711,null,null,null,null,null,null,0,null,0,null,null,"",""]
[null,712,null,null,null,null,null,null,0,null,0,null,null,"",""]
[null,713,null,null,null,null,null,null,0,null,0,null,null,"",""]
[null,714,null,null,null,null,null,null,0,null,0,null,null,"",""]
[null,715,null,null,null,null,null,null,0,null,0,null,null,"",""]
[null,716,null,null,null,null,null,null,0,null,0,null,null,"",""]
[null,717,null,null,null,null,null,null,0,null,0,null,null,"",""]
[null,718,null,null,null,null,null,null,0,null,0,null,null,"",""]
[null,719,null,null,null,null,null,null,0,null,0,null,null,"",""]
[null,720,null,null,null,null,null,null,0,null,0,null,null,"",""]
[null,721,null,null,null,null,null,null,0,null,0,null,null,"",""]
[null,722,null,null,null,null,null,null,0,null,0,null,null,"",""]
[null,723,null,null,null,null,null,null,{"$f":"E728-(E728*H728)","v":0},null,{"$f":"I728-J728","v":0},null,null,{"$f":"IF(L728=\"\",\"\",IF(D728=\"إشتراك يومي\",\"\",L728+$S$6))","v":""},{"$f":"IF(AND($S$7>N728,K728>0),\"مطلوب السداد\",\"\")","v":""}]
[null,724,null,null,null,null,null,null,0,null,0,null,null,"",""]
[null,725,null,null,null,null,null,null,0,null,0,null,null,"",""]
[null,726,null,null,null,null,null,null,0,null,0,null,null,"",""]
[null,727,null,null,null,null,null,null,0,null,0,null,null,"",""]
[null,728,null,null,null,null,null,null,0,null,0,null,null,"",""]
[null,729,null,null,null,null,null,null,0,null,0,null,null,"",""]
[null,730,null,null,null,null,null,null,0,null,0,null,null,"",""]
[null,731,null,null,null,null,null,null,0,null,0,null,null,"",""]
[null,732,null,null,null,null,null,null,0,null,0,null,null,"",""]
[null,733,null,null,null,null,null,null,0,null,0,null,null,"",""]
[null,734,null,null,null,null,null,null,0,null,0,null,null,"",""]
[null,735,null,null,null,null,null,null,0,null,0,null,null,"",""]
[null,736,null,null,null,null,null,null,0,null,0,null,null,"",""]
[null,737,null,null,null,null,null,null,0,null,0,null,null,"",""]
[null,738,null,null,null,null,null,null,0,null,0,null,null,"",""]
[null,739,null,null,null,null,null,null,0,null,0,null,null,"",""]
[null,740,null,null,null,null,null,null,0,null,0,null,null,"",""]
[null,741,null,null,null,null,null,null,0,null,0,null,null,"",""]
[null,742,null,null,null,null,null,null,0,null,0,null,null,"",""]
[null,743,null,null,null,null,null,null,0,null,0,null,null,"",""]
[null,744,null,null,null,null,null,null,0,null,0,null,null,"",""]
[null,745,null,null,null,null,null,null,0,null,0,null,null,"",""]
[null,746,null,null,null,null,null,null,0,null,0,null,null,"",""]
[null,747,null,null,null,null,null,null,0,null,0,null,null,"",""]
[null,748,null,null,null,null,null,null,0,null,0,null,null,"",""]
[null,749,null,null,null,null,null,null,0,null,0,null,null,"",""]
[null,750,null,null,null,null,null,null,0,null,0,null,null,"",""]
[null,751,null,null,null,null,null,null,0,null,0,null,null,"",""]
[null,752,null,null,null,null,null,null,0,null,0,null,null,"",""]
[null,753,null,null,null,null,null,null,0,null,0,null,null,"",""]
[null,754,null,null,null,null,null,null,0,null,0,null,null,"",""]
[null,755,null,null,null,null,null,null,0,null,0,null,null,"",""]
[null,756,null,null,null,null,null,null,0,null,0,null,null,"",""]
[null,757,null,null,null,null,null,null,0,null,0,null,null,"",""]
[null,758,null,null,null,null,null,null,0,null,0,null,null,"",""]
[null,759,null,null,null,null,null,null,0,null,0,null,null,"",""]
[null,760,null,null,null,null,null,null,0,null,0,null,null,"",""]
[null,761,null,null,null,null,null,null,0,null,0,null,null,"",""]
[null,762,null,null,null,null,null,null,0,null,0,null,null,"",""]
[null,763,null,null,null,null,null,null,0,null,0,null,null,"",""]
[null,764,null,null,null,null,null,null,0,null,0,null,null,"",""]
[null,765,null,null,null,null,null,null,0,null,0,null,null,"",""]
[null,766,null,null,null,null,null,null,0,null,0,null,null,"",""]
[null,767,null,null,null,null,null,null,0,null,0,null,null,"",""]
[null,768,null,null,null,null,null,null,0,null,0,null,null,"",""]
[null,769,null,null,null,null,null,null,0,null,0,null,null,"",""]
[null,770,null,null,null,null,null,null,0,null,0,null,null,"",""]
[null,771,null,null,null,null,null,null,0,null,0,null,null,"",""]
[null,772,null,null,null,null,null,null,0,null,0,null,null,"",""]
[null,773,null,null,null,null,null,null,0,null,0,null,null,"",""]
[null,774,null,null,null,null,null,null,0,null,0,null,null,"",""]
[null,775,null,null,null,null,null,null,0,null,0,null,null,"",""]
[null,776,null,null,null,null,null,null,0,null,0,null,null,"",""]
[null,777,null,null,null,null,null,null,0,null,0,null,null,"",""]
[null,778,null,null,null,null,null,null,0,null,0,null,null,"",""]
[null,779,null,null,null,null,null,null,0,null,0,null,null,"",""]
[null,780,null,null,null,null,null,null,0,null,0,null,null,"",""]
[null,781,null,null,null,null,null,null,0,null,0,null,null,"",""]
[null,782,null,null,null,null,null,null,0,null,0,null,null,"",""]
[null,783,null,null,null,null,null,null,0,null,0,null,null,"",""]
[null,784,null,null,null,null,null,null,0,null,0,null,null,"",""]
[null,785,null,null,null,null,null,null,0,null,0,null,null,"",""]
[null,786,null,null,null,null,null,null,0,null,0,null,null,"",""]
[null,787,null,null,null,null,null,null,{"$f":"E792-(E792*H792)","v":0},null,{"$f":"I792-J792","v":0},null,null,{"$f":"IF(L792=\"\",\"\",IF(D792=\"إشتراك يومي\",\"\",L792+$S$6))","v":""},{"$f":"IF(AND($S$7>N792,K792>0),\"مطلوب السداد\",\"\")","v":""}]
[null,788,null,null,null,null,null,null,0,null,0,null,null,"",""]
[null,789,null,null,null,null,null,null,0,null,0,null,null,"",""]
[null,790,null,null,null,null,null,null,0,null,0,null,null,"",""]
[null,791,null,null,null,null,null,null,0,null,0,null,null,"",""]
[null,792,null,null,null,null,null,null,0,null,0,null,null,"",""]
[null,793,null,null,null,null,null,null,0,null,0,null,null,"",""]
[null,794,null,null,null,null,null,null,0,null,0,null,null,"",""]
[null,795,null,null,null,null,null,null,0,null,0,null,null,"",""]
[null,796,null,null,null,null,null,null,0,null,0,null,null,"",""]
[null,797,null,null,null,null,null,null,0,null,0,null,null,"",""]
[null,798,null,null,null,null,null,null,0,null,0,null,null,"",""]
[null,799,null,null,null,null,null,null,0,null,0,null,null,"",""]
[null,800,null,null,null,null,null,null,0,null,0,null,null,"",""]
[null,801,null,null,null,null,null,null,0,null,0,null,null,"",""]
[null,802,null,null,null,null,null,null,0,null,0,null,null,"",""]
[null,803,null,null,null,null,null,null,0,null,0,null,null,"",""]
[null,804,null,null,null,null,null,null,0,null,0,null,null,"",""]
[null,805,null,null,null,null,null,null,0,null,0,null,null,"",""]
[null,806,null,null,null,null,null,null,0,null,0,null,null,"",""]
[null,807,null,null,null,null,null,null,0,null,0,null,null,"",""]
[null,808,null,null,null,null,null,null,0,null,0,null,null,"",""]
[null,809,null,null,null,null,null,null,0,null,0,null,null,"",""]
[null,810,null,null,null,null,null,null,0,null,0,null,null,"",""]
[null,811,null,null,null,null,null,null,0,null,0,null,null,"",""]
[null,812,null,null,null,null,null,null,0,null,0,null,null,"",""]
[null,813,null,null,null,null,null,null,0,null,0,null,null,"",""]
[null,814,null,null,null,null,null,null,0,null,0,null,null,"",""]
[null,815,null,null,null,null,null,null,0,null,0,null,null,"",""]
[null,816,null,null,null,null,null,null,0,null,0,null,null,"",""]
[null,817,null,null,null,null,null,null,0,null,0,null,null,"",""]
[null,818,null,null,null,null,null,null,0,null,0,null,null,"",""]
[null,819,null,null,null,null,null,null,0,null,0,null,null,"",""]
[null,820,null,null,null,null,null,null,0,null,0,null,null,"",""]
[null,821,null,null,null,null,null,null,0,null,0,null,null,"",""]
[null,822,null,null,null,null,null,null,0,null,0,null,null,"",""]
[null,823,null,null,null,null,null,null,0,null,0,null,null,"",""]
[null,824,null,null,null,null,null,null,0,null,0,null,null,"",""]
[null,825,null,null,null,null,null,null,0,null,0,null,null,"",""]
[null,826,null,null,null,null,null,null,0,null,0,null,null,"",""]
[null,827,null,null,null,null,null,null,0,null,0,null,null,"",""]
[null,828,null,null,null,null,null,null,0,null,0,null,null,"",""]
[null,829,null,null,null,null,null,null,0,null,0,null,null,"",""]
[null,830,null,null,null,null,null,null,0,null,0,null,null,"",""]
[null,831,null,null,null,null,null,null,0,null,0,null,null,"",""]
[null,832,null,null,null,null,null,null,0,null,0,null,null,"",""]
[null,833,null,null,null,null,null,null,0,null,0,null,null,"",""]
[null,834,null,null,null,null,null,null,0,null,0,null,null,"",""]
[null,835,null,null,null,null,null,null,0,null,0,null,null,"",""]
[null,836,null,null,null,null,null,null,0,null,0,null,null,"",""]
[null,837,null,null,null,null,null,null,0,null,0,null,null,"",""]
[null,838,null,null,null,null,null,null,0,null,0,null,null,"",""]
[null,839,null,null,null,null,null,null,0,null,0,null,null,"",""]
[null,840,null,null,null,null,null,null,0,null,0,null,null,"",""]
[null,841,null,null,null,null,null,null,0,null,0,null,null,"",""]
[null,842,null,null,null,null,null,null,0,null,0,null,null,"",""]
[null,843,null,null,null,null,null,null,0,null,0,null,null,"",""]
[null,844,null,null,null,null,null,null,0,null,0,null,null,"",""]
[null,845,null,null,null,null,null,null,0,null,0,null,null,"",""]
[null,846,null,null,null,null,null,null,0,null,0,null,null,"",""]
[null,847,null,null,null,null,null,null,0,null,0,null,null,"",""]
[null,848,null,null,null,null,null,null,0,null,0,null,null,"",""]
[null,849,null,null,null,null,null,null,0,null,0,null,null,"",""]
[null,850,null,null,null,null,null,null,0,null,0,null,null,"",""]
[null,851,null,null,null,null,null,null,{"$f":"E856-(E856*H856)","v":0},null,{"$f":"I856-J856","v":0},null,null,{"$f":"IF(L856=\"\",\"\",IF(D856=\"إشتراك يومي\",\"\",L856+$S$6))","v":""},{"$f":"IF(AND($S$7>N856,K856>0),\"مطلوب السداد\",\"\")","v":""}]
[null,852,null,null,null,null,null,null,0,null,0,null,null,"",""]
[null,853,null,null,null,null,null,null,0,null,0,null,null,"",""]
[null,854,null,null,null,null,null,null,0,null,0,null,null,"",""]
[null,855,null,null,null,null,null,null,0,null,0,null,null,"",""]
[null,856,null,null,null,null,null,null,0,null,0,null,null,"",""]
[null,857,null,null,null,null,null,null,0,null,0,null,null,"",""]
[null,858,null,null,null,null,null,null,0,null,0,null,null,"",""]
[null,859,null,null,null,null,null,null,0,null,0,null,null,"",""]
[null,860,null,null,null,null,null,null,0,null,0,null,null,"",""]
[null,861,null,null,null,null,null,null,0,null,0,null,null,"",""]
[null,862,null,null,null,null,null,null,0,null,0,null,null,"",""]
[null,863,null,null,null,null,null,null,0,null,0,null,null,"",""]
[null,864,null,null,null,null,null,null,0,null,0,null,null,"",""]
[null,865,null,null,null,null,null,null,0,null,0,null,null,"",""]
[null,866,null,null,null,null,null,null,0,null,0,null,null,"",""]
[null,867,null,null,null,null,null,null,0,null,0,null,null,"",""]
[null,868,null,null,null,null,null,null,0,null,0,null,null,"",""]
[null,869,null,null,null,null,null,null,0,null,0,null,null,"",""]
[null,870,null,null,null,null,null,null,0,null,0,null,null,"",""]
[null,871,null,null,null,null,null,null,0,null,0,null,null,"",""]
[null,872,null,null,null,null,null,null,0,null,0,null,null,"",""]
[null,873,null,null,null,null,null,null,0,null,0,null,null,"",""]
[null,874,null,null,null,null,null,null,0,null,0,null,null,"",""]
[null,875,null,null,null,null,null,null,0,null,0,null,null,"",""]
[null,876,null,null,null,null,null,null,0,null,0,null,null,"",""]
[null,877,null,null,null,null,null,null,0,null,0,null,null,"",""]
[null,878,null,null,null,null,null,null,0,null,0,null,null,"",""]
[null,879,null,null,null,null,null,null,0,null,0,null,null,"",""]
[null,880,null,null,null,null,null,null,0,null,0,null,null,"",""]
[null,881,null,null,null,null,null,null,0,null,0,null,null,"",""]
[null,882,null,null,null,null,null,null,0,null,0,null,null,"",""]
[null,883,null,null,null,null,null,null,0,null,0,null,null,"",""]
[null,884,null,null,null,null,null,null,0,null,0,null,null,"",""]
[null,885,null,null,null,null,null,null,0,null,0,null,null,"",""]
[null,886,null,null,null,null,null,null,0,null,0,null,null,"",""]
[null,887,null,null,null,null,null,null,0,null,0,null,null,"",""]
[null,888,null,null,null,null,null,null,0,null,0,null,null,"",""]
[null,889,null,null,null,null,null,null,0,null,0,null,null,"",""]
[null,890,null,null,null,null,null,null,0,null,0,null,null,"",""]
[null,891,null,null,null,null,null,null,0,null,0,null,null,"",""]
[null,892,null,null,null,null,null,null,0,null,0,null,null,"",""]
[null,893,null,null,null,null,null,null,0,null,0,null,null,"",""]
[null,894,null,null,null,null,null,null,0,null,0,null,null,"",""]
[null,895,null,null,null,null,null,null,0,null,0,null,null,"",""]
[null,896,null,null,null,null,null,null,0,null,0,null,null,"",""]
[null,897,null,null,null,null,null,null,0,null,0,null,null,"",""]
[null,898,null,null,null,null,null,null,0,null,0,null,null,"",""]
[null,899,null,null,null,null,null,null,0,null,0,null,null,"",""]
[null,900,null,null,null,null,null,null,0,null,0,null,null,"",""]
[null,901,null,null,null,null,null,null,0,null,0,null,null,"",""]
[null,902,null,null,null,null,null,null,0,null,0,null,null,"",""]
[null,903,null,null,null,null,null,null,0,null,0,null,null,"",""]
[null,904,null,null,null,null,null,null,0,null,0,null,null,"",""]
[null,905,null,null,null,null,null,null,0,null,0,null,null,"",""]
[null,906,null,null,null,null,null,null,0,null,0,null,null,"",""]
[null,907,null,null,null,null,null,null,0,null,0,null,null,"",""]
[null,908,null,null,null,null,null,null,0,null,0,null,null,"",""]
[null,909,null,null,null,null,null,null,0,null,0,null,null,"",""]
[null,910,null,null,null,null,null,null,0,null,0,null,null,"",""]
[null,911,null,null,null,null,null,null,0,null,0,null,null,"",""]
[null,912,null,null,null,null,null,null,0,null,0,null,null,"",""]
[null,913,null,null,null,null,null,null,0,null,0,null,null,"",""]
[null,914,null,null,null,null,null,null,0,null,0,null,null,"",""]
[null,915,null,null,null,null,null,null,{"$f":"E920-(E920*H920)","v":0},null,{"$f":"I920-J920","v":0},null,null,{"$f":"IF(L920=\"\",\"\",IF(D920=\"إشتراك يومي\",\"\",L920+$S$6))","v":""},{"$f":"IF(AND($S$7>N920,K920>0),\"مطلوب السداد\",\"\")","v":""}]
[null,916,null,null,null,null,null,null,0,null,0,null,null,"",""]
[null,917,null,null,null,null,null,null,0,null,0,null,null,"",""]
[null,918,null,null,null,null,null,null,0,null,0,null,null,"",""]
[null,919,null,null,null,null,null,null,0,null,0,null,null,"",""]
[null,920,null,null,null,null,null,null,0,null,0,null,null,"",""]
[null,921,null,null,null,null,null,null,0,null,0,null,null,"",""]
[null,922,null,null,null,null,null,null,0,null,0,null,null,"",""]
[null,923,null,null,null,null,null,null,0,null,0,null,null,"",""]
[null,924,null,null,null,null,null,null,0,null,0,null,null,"",""]
[null,925,null,null,null,null,null,null,0,null,0,null,null,"",""]
[null,926,null,null,null,null,null,null,0,null,0,null,null,"",""]
[null,927,null,null,null,null,null,null,0,null,0,null,null,"",""]
[null,928,null,null,null,null,null,null,0,null,0,null,null,"",""]
[null,929,null,null,null,null,null,null,0,null,0,null,null,"",""]
[null,930,null,null,null,null,null,null,0,null,0,null,null,"",""]
[null,931,null,null,null,null,null,null,0,null,0,null,null,"",""]
[null,932,null,null,null,null,null,null,0,null,0,null,null,"",""]
[null,933,null,null,null,null,null,null,0,null,0,null,null,"",""]
[null,934,null,null,null,null,null,null,0,null,0,null,null,"",""]
[null,935,null,null,null,null,null,null,0,null,0,null,null,"",""]
[null,936,null,null,null,null,null,null,0,null,0,null,null,"",""]
[null,937,null,null,null,null,null,null,0,null,0,null,null,"",""]
[null,938,null,null,null,null,null,null,0,null,0,null,null,"",""]
[null,939,null,null,null,null,null,null,0,null,0,null,null,"",""]
[null,940,null,null,null,null,null,null,0,null,0,null,null,"",""]
[null,941,null,null,null,null,null,null,0,null,0,null,null,"",""]
[null,942,null,null,null,null,null,null,0,null,0,null,null,"",""]
[null,943,null,null,null,null,null,null,0,null,0,null,null,"",""]
[null,944,null,null,null,null,null,null,0,null,0,null,null,"",""]
[null,945,null,null,null,null,null,null,0,null,0,null,null,"",""]
[null,946,null,null,null,null,null,null,0,null,0,null,null,"",""]
[null,947,null,null,null,null,null,null,0,null,0,null,null,"",""]
[null,948,null,null,null,null,null,null,0,null,0,null,null,"",""]
[null,949,null,null,null,null,null,null,0,null,0,null,null,"",""]
[null,950,null,null,null,null,null,null,0,null,0,null,null,"",""]
[null,951,null,null,null,null,null,null,0,null,0,null,null,"",""]
[null,952,null,null,null,null,null,null,0,null,0,null,null,"",""]
[null,953,null,null,null,null,null,null,0,null,0,null,null,"",""]
[null,954,null,null,null,null,null,null,0,null,0,null,null,"",""]
[null,955,null,null,null,null,null,null,0,null,0,null,null,"",""]
[null,956,null,null,null,null,null,null,0,null,0,null,null,"",""]
[null,957,null,null,null,null,null,null,0,null,0,null,null,"",""]
[null,958,null,null,null,null,null,null,0,null,0,null,null,"",""]
[null,959,null,null,null,null,null,null,0,null,0,null,null,"",""]
[null,960,null,null,null,null,null,null,0,null,0,null,null,"",""]
[null,961,null,null,null,null,null,null,0,null,0,null,null,"",""]
[null,962,null,null,null,null,null,null,0,null,0,null,null,"",""]
[null,963,null,null,null,null,null,null,0,null,0,null,null,"",""]
[null,964,null,null,null,null,null,null,0,null,0,null,null,"",""]
[null,965,null,null,null,null,null,null,0,null,0,null,null,"",""]
[null,966,null,null,null,null,null,null,0,null,0,null,null,"",""]
[null,967,null,null,null,null,null,null,0,null,0,null,null,"",""]
[null,968,null,null,null,null,null,null,0,null,0,null,null,"",""]
[null,969,null,null,null,null,null,null,0,null,0,null,null,"",""]
[null,970,null,null,null,null,null,null,0,null,0,null,null,"",""]
[null,971,null,null,null,null,null,null,0,null,0,null,null,"",""]
[null,972,null,null,null,null,null,null,0,null,0,null,null,"",""]
[null,973,null,null,null,null,null,null,0,null,0,null,null,"",""]
[null,974,null,null,null,null,null,null,0,null,0,null,null,"",""]
[null,975,null,null,null,null,null,null,0,null,0,null,null,"",""]
[null,976,null,null,null,null,null,null,0,null,0,null,null,"",""]
[null,977,null,null,null,null,null,null,0,null,0,null,null,"",""]
[null,978,null,null,null,null,null,null,0,null,0,null,null,"",""]
[null,979,null,null,null,null,null,null,{"$f":"E984-(E984*H984)","v":0},null,{"$f":"I984-J984","v":0},null,null,{"$f":"IF(L984=\"\",\"\",IF(D984=\"إشتراك يومي\",\"\",L984+$S$6))","v":""},{"$f":"IF(AND($S$7>N984,K984>0),\"مطلوب السداد\",\"\")","v":""}]
[null,980,null,null,null,null,null,null,0,null,0,null,null,"",""]
[null,981,null,null,null,null,null,null,0,null,0,null,null,"",""]
[null,982,null,null,null,null,null,null,0,null,0,null,null,"",""]
[null,983,null,null,null,null,null,null,0,null,0,null,null,"",""]
[null,984,null,null,null,null,null,null,0,null,0,null,null,"",""]
[null,985,null,null,null,null,null,null,0,null,0,null,null,"",""]
[null,986,null,null,null,null,null,null,0,null,0,null,null,"",""]
[null,987,null,null,null,null,null,null,0,null,0,null,null,"",""]
[null,988,null,null,null,null,null,null,0,null,0,null,null,"",""]
[null,989,null,null,null,null,null,null,0,null,0,null,null,"",""]
[null,990,null,null,null,null,null,null,0,null,0,null,null,"",""]
[null,991,null,null,null,null,null,null,0,null,0,null,null,"",""]
[null,992,null,null,null,null,null,null,0,null,0,null,null,"",""]
[null,993,null,null,null,null,null,null,0,null,0,null,null,"",""]
[null,994,null,null,null,null,null,null,0,null,0,null,null,"",""]
[null,995,null,null,null,null,null,null,0,null,0,null,null,"",""]
[null,996,null,null,null,null,null,null,0,null,0,null,null,"",""]
[null,997,null,null,null,null,null,null,0,null,0,null,null,"",""]
[null,998,null,null,null,null,null,null,0,null,0,null,null,"",""]
[null,999,null,null,null,null,null,null,0,null,0,null,null,"",""]
[null,1000,null,null,null,null,null,null,0,null,0,null,null,"",""]
[null,1001,null,null,null,null,null,null,0,null,0,null,null,"",""]
[null,1002,null,null,null,null,null,null,0,null,0,null,null,"",""]
[null,1003,null,null,null,null,null,null,0,null,0,null,null,"",""]
[null,1004,null,null,null,null,null,null,0,null,0,null,null,"",""]
[null,1005,null,null,null,null,null,null,0,null,0,null,null,"",""]
[null,1006,null,null,null,null,null,null,0,null,0,null,null,"",""]
[null,1007,null,null,null,null,null,null,0,null,0,null,null,"",""]
[null,1008,null,null,null,null,null,null,0,null,0,null,null,"",""]
[null,1009,null,null,null,null,null,null,0,null,0,null,null,"",""]
[null,1010,null,null,null,null,null,null,0,null,0,null,null,"",""]
[null,1011,null,null,null,null,null,null,0,null,0,null,null,"",""]
[null,1012,null,null,null,null,null,null,0,null,0,null,null,"",""]
[null,1013,null,null,null,null,null,null,0,null,0,null,null,"",""]
[null,1014,null,null,null,null,null,null,0,null,0,null,null,"",""]
[null,1015,null,null,null,null,null,null,0,null,0,null,null,"",""]
[null,1016,null,null,null,null,null,null,0,null,0,null,null,"",""]
[null,1017,null,null,null,null,null,null,0,null,0,null,null,"",""]
[null,1018,null,null,null,null,null,null,0,null,0,null,null,"",""]
[null,1019,null,null,null,null,null,null,0,null,0,null,null,"",""]
[null,1020,null,null,null,null,null,null,0,null,0,null,null,"",""]
[null,1021,null,null,null,null,null,null,0,null,0,null,null,"",""]
[null,1022,null,null,null,null,null,null,0,null,0,null,null,"",""]
[null,1023,null,null,null,null,null,null,0,null,0,null,null,"",""]
[null,1024,null,null,null,null,null,null,0,null,0,null,null,"",""]
[null,1025,null,null,null,null,null,null,0,null,0,null,null,"",""]
[null,1026,null,null,null,null,null,null,0,null,0,null,null,"",""]
[null,1027,null,null,null,null,null,null,0,null,0,null,null,"",""]
[null,1028,null,null,null,null,null,null,0,null,0,null,null,"",""]
[null,1029,null,null,null,null,null,null,0,null,0,null,null,"",""]
[null,1030,null,null,null,null,null,null,0,null,0,null,null,"",""]
[null,1031,null,null,null,null,null,null,0,null,0,null,null,"",""]
[null,1032,null,null,null,null,null,null,0,null,0,null,null,"",""]
[null,1033,null,null,null,null,null,null,0,null,0,null,null,"",""]
[null,1034,null,null,null,null,null,null,0,null,0,null,null,"",""]
[null,1035,null,null,null,null,null,null,0,null,0,null,null,"",""]
[null,1036,null,null,null,null,null,null,0,null,0,null,null,"",""]
[null,1037,null,null,null,null,null,null,0,null,0,null,null,"",""]
[null,1038,null,null,null,null,null,null,0,null,0,null,null,"",""]
[null,1039,null,null,null,null,null,null,0,null,0,null,null,"",""]
[null,1040,null,null,null,null,null,null,0,null,0,null,null,"",""]
[null,1041,null,null,null,null,null,null,0,null,0,null,null,"",""]
[null,1042,null,null,null,null,null,null,0,null,0,null,null,"",""]
[null,1043,null,null,null,null,null,null,{"$f":"E1048-(E1048*H1048)","v":0},null,{"$f":"I1048-J1048","v":0},null,null,{"$f":"IF(L1048=\"\",\"\",IF(D1048=\"إشتراك يومي\",\"\",L1048+$S$6))","v":""},{"$f":"IF(AND($S$7>N1048,K1048>0),\"مطلوب السداد\",\"\")","v":""}]
[null,1044,null,null,null,null,null,null,0,null,0,null,null,"",""]
[null,1045,null,null,null,null,null,null,0,null,0,null,null,"",""]
[null,1046,null,null,null,null,null,null,0,null,0,null,null,"",""]
[null,1047,null,null,null,null,null,null,0,null,0,null,null,"",""]
[null,1048,null,null,null,null,null,null,0,null,0,null,null,"",""]
[null,1049,null,null,null,null,null,null,0,null,0,null,null,"",""]
[null,1050,null,null,null,null,null,null,0,null,0,null,null,"",""]
[null,1051,null,null,null,null,null,null,0,null,0,null,null,"",""]
[null,1052,null,null,null,null,null,null,0,null,0,null,null,"",""]
[null,1053,null,null,null,null,null,null,0,null,0,null,null,"",""]
[null,1054,null,null,null,null,null,null,0,null,0,null,null,"",""]
[null,1055,null,null,null,null,null,null,0,null,0,null,null,"",""]
[null,1056,null,null,null,null,null,null,0,null,0,null,null,"",""]
[null,1057,null,null,null,null,null,null,0,null,0,null,null,"",""]
[null,1058,null,null,null,null,null,null,0,null,0,null,null,"",""]
[null,1059,null,null,null,null,null,null,0,null,0,null,null,"",""]
[null,1060,null,null,null,null,null,null,0,null,0,null,null,"",""]
[null,1061,null,null,null,null,null,null,0,null,0,null,null,"",""]
[null,1062,null,null,null,null,null,null,0,null,0,null,null,"",""]
[null,1063,null,null,null,null,null,null,0,null,0,null,null,"",""]
[null,1064,null,null,null,null,null,null,0,null,0,null,null,"",""]
[null,1065,null,null,null,null,null,null,0,null,0,null,null,"",""]
[null,1066,null,null,null,null,null,null,0,null,0,null,null,"",""]
[null,1067,null,null,null,null,null,null,0,null,0,null,null,"",""]
[null,1068,null,null,null,null,null,null,0,null,0,null,null,"",""]
[null,1069,null,null,null,null,null,null,0,null,0,null,null,"",""]
[null,1070,null,null,null,null,null,null,0,null,0,null,null,"",""]
[null,1071,null,null,null,null,null,null,0,null,0,null,null,"",""]
[null,1072,null,null,null,null,null,null,0,null,0,null,null,"",""]
[null,1073,null,null,null,null,null,null,0,null,0,null,null,"",""]
[null,1074,null,null,null,null,null,null,0,null,0,null,null,"",""]
[null,1075,null,null,null,null,null,null,0,null,0,null,null,"",""]
[null,1076,null,null,null,null,null,null,0,null,0,null,null,"",""]
[null,1077,null,null,null,null,null,null,0,null,0,null,null,"",""]
[null,1078,null,null,null,null,null,null,0,null,0,null,null,"",""]
[null,1079,null,null,null,null,null,null,0,null,0,null,null,"",""]
[null,1080,null,null,null,null,null,null,0,null,0,null,null,"",""]
[null,1081,null,null,null,null,null,null,0,null,0,null,null,"",""]
[null,1082,null,null,null,null,null,null,0,null,0,null,null,"",""]
[null,1083,null,null,null,null,null,null,0,null,0,null,null,"",""]
[null,1084,null,null,null,null,null,null,0,null,0,null,null,"",""]
[null,1085,null,null,null,null,null,null,0,null,0,null,null,"",""]
[null,1086,null,null,null,null,null,null,0,null,0,null,null,"",""]
[null,1087,null,null,null,null,null,null,0,null,0,null,null,"",""]
[null,1088,null,null,null,null,null,null,0,null,0,null,null,"",""]
[null,1089,null,null,null,null,null,null,0,null,0,null,null,"",""]
[null,1090,null,null,null,null,null,null,0,null,0,null,null,"",""]
[null,1091,null,null,null,null,null,null,0,null,0,null,null,"",""]
[null,1092,null,null,null,null,null,null,0,null,0,null,null,"",""]
[null,1093,null,null,null,null,null,null,0,null,0,null,null,"",""]
[null,1094,null,null,null,null,null,null,0,null,0,null,null,"",""]
[null,1095,null,null,null,null,null,null,0,null,0,null,null,"",""]
[null,1096,null,null,null,null,null,null,0,null,0,null,null,"",""]
[null,1097,null,null,null,null,null,null,0,null,0,null,null,"",""]
[null,1098,null,null,null,null,null,null,0,null,0,null,null,"",""]
[null,1099,null,null,null,null,null,null,0,null,0,null,null,"",""]
[null,1100,null,null,null,null,null,null,0,null,0,null,null,"",""]
[null,1101,null,null,null,null,null,null,0,null,0,null,null,"",""]
[null,1102,null,null,null,null,null,null,0,null,0,null,null,"",""]
[null,1103,null,null,null,null,null,null,0,null,0,null,null,"",""]
[null,1104,null,null,null,null,null,null,0,null,0,null,null,"",""]
[null,1105,null,null,null,null,null,null,0,null,0,null,null,"",""]
[null,1106,null,null,null,null,null,null,0,null,0,null,null,"",""]
[null,1107,null,null,null,null,null,null,{"$f":"E1112-(E1112*H1112)","v":0},null,{"$f":"I1112-J1112","v":0},null,null,{"$f":"IF(L1112=\"\",\"\",IF(D1112=\"إشتراك يومي\",\"\",L1112+$S$6))","v":""},{"$f":"IF(AND($S$7>N1112,K1112>0),\"مطلوب السداد\",\"\")","v":""}]
[null,1108,null,null,null,null,null,null,0,null,0,null,null,"",""]
[null,1109,null,null,null,null,null,null,0,null,0,null,null,"",""]
[null,1110,null,null,null,null,null,null,0,null,0,null,null,"",""]
[null,1111,null,null,null,null,null,null,0,null,0,null,null,"",""]
[null,1112,null,null,null,null,null,null,0,null,0,null,null,"",""]
[null,1113,null,null,null,null,null,null,0,null,0,null,null,"",""]
[null,1114,null,null,null,null,null,null,0,null,0,null,null,"",""]
[null,1115,null,null,null,null,null,null,0,null,0,null,null,"",""]
[null,1116,null,null,null,null,null,null,0,null,0,null,null,"",""]
[null,1117,null,null,null,null,null,null,0,null,0,null,null,"",""]
[null,1118,null,null,null,null,null,null,0,null,0,null,null,"",""]
[null,1119,null,null,null,null,null,null,0,null,0,null,null,"",""]
[null,1120,null,null,null,null,null,null,0,null,0,null,null,"",""]
[null,1121,null,null,null,null,null,null,0,null,0,null,null,"",""]
[null,1122,null,null,null,null,null,null,0,null,0,null,null,"",""]
[null,1123,null,null,null,null,null,null,0,null,0,null,null,"",""]
[null,1124,null,null,null,null,null,null,0,null,0,null,null,"",""]
[null,1125,null,null,null,null,null,null,0,null,0,null,null,"",""]
[null,1126,null,null,null,null,null,null,0,null,0,null,null,"",""]
[null,1127,null,null,null,null,null,null,0,null,0,null,null,"",""]
[null,1128,null,null,null,null,null,null,0,null,0,null,null,"",""]
[null,1129,null,null,null,null,null,null,0,null,0,null,null,"",""]
[null,1130,null,null,null,null,null,null,0,null,0,null,null,"",""]
[null,1131,null,null,null,null,null,null,0,null,0,null,null,"",""]
[null,1132,null,null,null,null,null,null,0,null,0,null,null,"",""]
[null,1133,null,null,null,null,null,null,0,null,0,null,null,"",""]
[null,1134,null,null,null,null,null,null,0,null,0,null,null,"",""]
[null,1135,null,null,null,null,null,null,0,null,0,null,null,"",""]
[null,1136,null,null,null,null,null,null,0,null,0,null,null,"",""]
[null,1137,null,null,null,null,null,null,0,null,0,null,null,"",""]
[null,1138,null,null,null,null,null,null,0,null,0,null,null,"",""]
[null,1139,null,null,null,null,null,null,0,null,0,null,null,"",""]
[null,1140,null,null,null,null,null,null,0,null,0,null,null,"",""]
[null,1141,null,null,null,null,null,null,0,null,0,null,null,"",""]
[null,1142,null,null,null,null,null,null,0,null,0,null,null,"",""]
[null,1143,null,null,null,null,null,null,0,null,0,null,null,"",""]
[null,1144,null,null,null,null,null,null,0,null,0,null,null,"",""]
[null,1145,null,null,null,null,null,null,0,null,0,null,null,"",""]
[null,1146,null,null,null,null,null,null,0,null,0,null,null,"",""]
[null,1147,null,null,null,null,null,null,0,null,0,null,null,"",""]
[null,1148,null,null,null,null,null,null,0,null,0,null,null,"",""]
[null,1149,null,null,null,null,null,null,0,null,0,null,null,"",""]
[null,1150,null,null,null,null,null,null,0,null,0,null,null,"",""]
[null,1151,null,null,null,null,null,null,0,null,0,null,null,"",""]
[null,1152,null,null,null,null,null,null,0,null,0,null,null,"",""]
[null,1153,null,null,null,null,null,null,0,null,0,null,null,"",""]
[null,1154,null,null,null,null,null,null,0,null,0,null,null,"",""]
[null,1155,null,null,null,null,null,null,0,null,0,null,null,"",""]
[null,1156,null,null,null,null,null,null,0,null,0,null,null,"",""]
[null,1157,null,null,null,null,null,null,0,null,0,null,null,"",""]
[null,1158,null,null,null,null,null,null,0,null,0,null,null,"",""]
[null,1159,null,null,null,null,null,null,0,null,0,null,null,"",""]
[null,1160,null,null,null,null,null,null,0,null,0,null,null,"",""]
[null,1161,null,null,null,null,null,null,0,null,0,null,null,"",""]
[null,1162,null,null,null,null,null,null,0,null,0,null,null,"",""]
[null,1163,null,null,null,null,null,null,0,null,0,null,null,"",""]
[null,1164,null,null,null,null,null,null,0,null,0,null,null,"",""]
[null,1165,null,null,null,null,null,null,0,null,0,null,null,"",""]
[null,1166,null,null,null,null,null,null,0,null,0,null,null,"",""]
[null,1167,null,null,null,null,null,null,0,null,0,null,null,"",""]
[null,1168,null,null,null,null,null,null,0,null,0,null,null,"",""]
[null,1169,null,null,null,null,null,null,0,null,0,null,null,"",""]
[null,1170,null,null,null,null,null,null,0,null,0,null,null,"",""]
[null,1171,null,null,null,null,null,null,{"$f":"E1176-(E1176*H1176)","v":0},null,{"$f":"I1176-J1176","v":0},null,null,{"$f":"IF(L1176=\"\",\"\",IF(D1176=\"إشتراك يومي\",\"\",L1176+$S$6))","v":""},{"$f":"IF(AND($S$7>N1176,K1176>0),\"مطلوب السداد\",\"\")","v":""}]
[null,1172,null,null,null,null,null,null,0,null,0,null,null,"",""]
[null,1173,null,null,null,null,null,null,0,null,0,null,null,"",""]
[null,1174,null,null,null,null,null,null,0,null,0,null,null,"",""]
[null,1175,null,null,null,null,null,null,0,null,0,null,null,"",""]
[null,1176,null,null,null,null,null,null,0,null,0,null,null,"",""]
[null,1177,null,null,null,null,null,null,0,null,0,null,null,"",""]
[null,1178,null,null,null,null,null,null,0,null,0,null,null,"",""]
[null,1179,null,null,null,null,null,null,0,null,0,null,null,"",""]
[null,1180,null,null,null,null,null,null,0,null,0,null,null,"",""]
[null,1181,null,null,null,null,null,null,0,null,0,null,null,"",""]
[null,1182,null,null,null,null,null,null,0,null,0,null,null,"",""]
[null,1183,null,null,null,null,null,null,0,null,0,null,null,"",""]
[null,1184,null,null,null,null,null,null,0,null,0,null,null,"",""]
[null,1185,null,null,null,null,null,null,0,null,0,null,null,"",""]
[null,1186,null,null,null,null,null,null,0,null,0,null,null,"",""]
[null,1187,null,null,null,null,null,null,0,null,0,null,null,"",""]
[null,1188,null,null,null,null,null,null,0,null,0,null,null,"",""]
[null,1189,null,null,null,null,null,null,0,null,0,null,null,"",""]
[null,1190,null,null,null,null,null,null,0,null,0,null,null,"",""]
[null,1191,null,null,null,null,null,null,0,null,0,null,null,"",""]
[null,1192,null,null,null,null,null,null,0,null,0,null,null,"",""]
[null,1193,null,null,null,null,null,null,0,null,0,null,null,"",""]
[null,1194,null,null,null,null,null,null,0,null,0,null,null,"",""]
[null,1195,null,null,null,null,null,null,0,null,0,null,null,"",""]
[null,1196,null,null,null,null,null,null,0,null,0,null,null,"",""]
[null,1197,null,null,null,null,null,null,0,null,0,null,null,"",""]
[null,1198,null,null,null,null,null,null,0,null,0,null,null,"",""]
[null,1199,null,null,null,null,null,null,0,null,0,null,null,"",""]
[null,1200,null,null,null,null,null,null,0,null,0,null,null,"",""]
[null,1201,null,null,null,null,null,null,0,null,0,null,null,"",""]
[null,1202,null,null,null,null,null,null,0,null,0,null,null,"",""]
[null,1203,null,null,null,null,null,null,0,null,0,null,null,"",""]
[null,1204,null,null,null,null,null,null,0,null,0,null,null,"",""]
[null,1205,null,null,null,null,null,null,0,null,0,null,null,"",""]
[null,1206,null,null,null,null,null,null,0,null,0,null,null,"",""]
[null,1207,null,null,null,null,null,null,0,null,0,null,null,"",""]
[null,1208,null,null,null,null,null,null,0,null,0,null,null,"",""]
[null,1209,null,null,null,null,null,null,0,null,0,null,null,"",""]
[null,1210,null,null,null,null,null,null,0,null,0,null,null,"",""]
[null,1211,null,null,null,null,null,null,0,null,0,null,null,"",""]
[null,1212,null,null,null,null,null,null,0,null,0,null,null,"",""]
[null,1213,null,null,null,null,null,null,0,null,0,null,null,"",""]
[null,1214,null,null,null,null,null,null,0,null,0,null,null,"",""]
[null,1215,null,null,null,null,null,null,0,null,0,null,null,"",""]
[null,1216,null,null,null,null,null,null,0,null,0,null,null,"",""]
[null,1217,null,null,null,null,null,null,0,null,0,null,null,"",""]
[null,1218,null,null,null,null,null,null,0,null,0,null,null,"",""]
[null,1219,null,null,null,null,null,null,0,null,0,null,null,"",""]
[null,1220,null,null,null,null,null,null,0,null,0,null,null,"",""]
[null,1221,null,null,null,null,null,null,0,null,0,null,null,"",""]
[null,1222,null,null,null,null,null,null,0,null,0,null,null,"",""]
[null,1223,null,null,null,null,null,null,0,null,0,null,null,"",""]
[null,1224,null,null,null,null,null,null,0,null,0,null,null,"",""]
[null,1225,null,null,null,null,null,null,0,null,0,null,null,"",""]
[null,1226,null,null,null,null,null,null,0,null,0,null,null,"",""]
[null,1227,null,null,null,null,null,null,0,null,0,null,null,"",""]
[null,1228,null,null,null,null,null,null,0,null,0,null,null,"",""]
[null,1229,null,null,null,null,null,null,0,null,0,null,null,"",""]
[null,1230,null,null,null,null,null,null,0,null,0,null,null,"",""]
[null,1231,null,null,null,null,null,null,0,null,0,null,null,"",""]
[null,1232,null,null,null,null,null,null,0,null,0,null,null,"",""]
[null,1233,null,null,null,null,null,null,0,null,0,null,null,"",""]
[null,1234,null,null,null,null,null,null,0,null,0,null,null,"",""]
[null,1235,null,null,null,null,null,null,{"$f":"E1240-(E1240*H1240)","v":0},null,{"$f":"I1240-J1240","v":0},null,null,{"$f":"IF(L1240=\"\",\"\",IF(D1240=\"إشتراك يومي\",\"\",L1240+$S$6))","v":""},{"$f":"IF(AND($S$7>N1240,K1240>0),\"مطلوب السداد\",\"\")","v":""}]
[null,1236,null,null,null,null,null,null,0,null,0,null,null,"",""]
[null,1237,null,null,null,null,null,null,0,null,0,null,null,"",""]
[null,1238,null,null,null,null,null,null,0,null,0,null,null,"",""]
[null,1239,null,null,null,null,null,null,0,null,0,null,null,"",""]
[null,1240,null,null,null,null,null,null,0,null,0,null,null,"",""]
[null,1241,null,null,null,null,null,null,0,null,0,null,null,"",""]
[null,1242,null,null,null,null,null,null,0,null,0,null,null,"",""]
[null,1243,null,null,null,null,null,null,0,null,0,null,null,"",""]
[null,1244,null,null,null,null,null,null,0,null,0,null,null,"",""]
[null,1245,null,null,null,null,null,null,0,null,0,null,null,"",""]
[null,1246,null,null,null,null,null,null,0,null,0,null,null,"",""]
[null,1247,null,null,null,null,null,null,0,null,0,null,null,"",""]
[null,1248,null,null,null,null,null,null,0,null,0,null,null,"",""]
[null,1249,null,null,null,null,null,null,0,null,0,null,null,"",""]
[null,1250,null,null,null,null,null,null,0,null,0,null,null,"",""]
[null,1251,null,null,null,null,null,null,0,null,0,null,null,"",""]
[null,1252,null,null,null,null,null,null,0,null,0,null,null,"",""]
[null,1253,null,null,null,null,null,null,0,null,0,null,null,"",""]
[null,1254,null,null,null,null,null,null,0,null,0,null,null,"",""]
[null,1255,null,null,null,null,null,null,0,null,0,null,null,"",""]
[null,1256,null,null,null,null,null,null,0,null,0,null,null,"",""]
[null,1257,null,null,null,null,null,null,0,null,0,null,null,"",""]
[null,1258,null,null,null,null,null,null,0,null,0,null,null,"",""]
[null,1259,null,null,null,null,null,null,0,null,0,null,null,"",""]
[null,1260,null,null,null,null,null,null,0,null,0,null,null,"",""]
[null,1261,null,null,null,null,null,null,0,null,0,null,null,"",""]
[null,1262,null,null,null,null,null,null,0,null,0,null,null,"",""]
[null,1263,null,null,null,null,null,null,0,null,0,null,null,"",""]
[null,1264,null,null,null,null,null,null,0,null,0,null,null,"",""]
[null,1265,null,null,null,null,null,null,0,null,0,null,null,"",""]
[null,1266,null,null,null,null,null,null,0,null,0,null,null,"",""]
[null,1267,null,null,null,null,null,null,0,null,0,null,null,"",""]
[null,1268,null,null,null,null,null,null,0,null,0,null,null,"",""]
[null,1269,null,null,null,null,null,null,0,null,0,null,null,"",""]
[null,1270,null,null,null,null,null,null,0,null,0,null,null,"",""]
[null,1271,null,null,null,null,null,null,0,null,0,null,null,"",""]
[null,1272,null,null,null,null,null,null,0,null,0,null,null,"",""]
[null,1273,null,null,null,null,null,null,0,null,0,null,null,"",""]
[null,1274,null,null,null,null,null,null,0,null,0,null,null,"",""]
[null,1275,null,null,null,null,null,null,0,null,0,null,null,"",""]
[null,1276,null,null,null,null,null,null,0,null,0,null,null,"",""]
[null,1277,null,null,null,null,null,null,0,null,0,null,null,"",""]
[null,1278,null,null,null,null,null,null,0,null,0,null,null,"",""]
[null,1279,null,null,null,null,null,null,0,null,0,null,null,"",""]
[null,1280,null,null,null,null,null,null,0,null,0,null,null,"",""]
[null,1281,null,null,null,null,null,null,0,null,0,null,null,"",""]
[null,1282,null,null,null,null,null,null,0,null,0,null,null,"",""]
[null,1283,null,null,null,null,null,null,0,null,0,null,null,"",""]
[null,1284,null,null,null,null,null,null,0,null,0,null,null,"",""]
[null,1285,null,null,null,null,null,null,0,null,0,null,null,"",""]
[null,1286,null,null,null,null,null,null,0,null,0,null,null,"",""]
[null,1287,null,null,null,null,null,null,0,null,0,null,null,"",""]
[null,1288,null,null,null,null,null,null,0,null,0,null,null,"",""]
[null,1289,null,null,null,null,null,null,0,null,0,null,null,"",""]
[null,1290,null,null,null,null,null,null,0,null,0,null,null,"",""]
[null,1291,null,null,null,null,null,null,0,null,0,null,null,"",""]
[null,1292,null,null,null,null,null,null,0,null,0,null,null,"",""]
[null,1293,null,null,null,null,null,null,0,null,0,null,null,"",""]
[null,1294,null,null,null,null,null,null,0,null,0,null,null,"",""]
[null,1295,null,null,null,null,null,null,0,null,0,null,null,"",""]
[null,1296,null,null,null,null,null,null,0,null,0,null,null,"",""]
[null,1297,null,null,null,null,null,null,0,null,0,null,null,"",""]
[null,1298,null,null,null,null,null,null,0,null,0,null,null,"",""]
[null,1299,null,null,null,null,null,null,{"$f":"E1304-(E1304*H1304)","v":0},null,{"$f":"I1304-J1304","v":0},null,null,{"$f":"IF(L1304=\"\",\"\",IF(D1304=\"إشتراك يومي\",\"\",L1304+$S$6))","v":""},{"$f":"IF(AND($S$7>N1304,K1304>0),\"مطلوب السداد\",\"\")","v":""}]
[null,1300,null,null,null,null,null,null,0,null,0,null,null,"",""]
[null,1301,null,null,null,null,null,null,0,null,0,null,null,"",""]
[null,1302,null,null,null,null,null,null,0,null,0,null,null,"",""]
[null,1303,null,null,null,null,null,null,0,null,0,null,null,"",""]
[null,1304,null,null,null,null,null,null,0,null,0,null,null,"",""]
[null,1305,null,null,null,null,null,null,0,null,0,null,null,"",""]
[null,1306,null,null,null,null,null,null,0,null,0,null,null,"",""]
[null,1307,null,null,null,null,null,null,0,null,0,null,null,"",""]
[null,1308,null,null,null,null,null,null,0,null,0,null,null,"",""]
[null,1309,null,null,null,null,null,null,0,null,0,null,null,"",""]
[null,1310,null,null,null,null,null,null,0,null,0,null,null,"",""]
[null,1311,null,null,null,null,null,null,0,null,0,null,null,"",""]
[null,1312,null,null,null,null,null,null,0,null,0,null,null,"",""]
[null,1313,null,null,null,null,null,null,0,null,0,null,null,"",""]
[null,1314,null,null,null,null,null,null,0,null,0,null,null,"",""]
[null,1315,null,null,null,null,null,null,0,null,0,null,null,"",""]
[null,1316,null,null,null,null,null,null,0,null,0,null,null,"",""]
[null,1317,null,null,null,null,null,null,0,null,0,null,null,"",""]
[null,1318,null,null,null,null,null,null,0,null,0,null,null,"",""]
[null,1319,null,null,null,null,null,null,0,null,0,null,null,"",""]
[null,1320,null,null,null,null,null,null,0,null,0,null,null,"",""]
[null,1321,null,null,null,null,null,null,0,null,0,null,null,"",""]
[null,1322,null,null,null,null,null,null,0,null,0,null,null,"",""]
[null,1323,null,null,null,null,null,null,0,null,0,null,null,"",""]
[null,1324,null,null,null,null,null,null,0,null,0,null,null,"",""]
[null,1325,null,null,null,null,null,null,0,null,0,null,null,"",""]
[null,1326,null,null,null,null,null,null,0,null,0,null,null,"",""]
[null,1327,null,null,null,null,null,null,0,null,0,null,null,"",""]
[null,1328,null,null,null,null,null,null,0,null,0,null,null,"",""]
[null,1329,null,null,null,null,null,null,0,null,0,null,null,"",""]
[null,1330,null,null,null,null,null,null,0,null,0,null,null,"",""]
[null,1331,null,null,null,null,null,null,0,null,0,null,null,"",""]
[null,1332,null,null,null,null,null,null,0,null,0,null,null,"",""]
[null,1333,null,null,null,null,null,null,0,null,0,null,null,"",""]
[null,1334,null,null,null,null,null,null,0,null,0,null,null,"",""]
[null,1335,null,null,null,null,null,null,0,null,0,null,null,"",""]
[null,1336,null,null,null,null,null,null,0,null,0,null,null,"",""]
[null,1337,null,null,null,null,null,null,0,null,0,null,null,"",""]
[null,1338,null,null,null,null,null,null,0,null,0,null,null,"",""]
[null,1339,null,null,null,null,null,null,0,null,0,null,null,"",""]
[null,1340,null,null,null,null,null,null,0,null,0,null,null,"",""]
[null,1341,null,null,null,null,null,null,0,null,0,null,null,"",""]
[null,1342,null,null,null,null,null,null,0,null,0,null,null,"",""]
[null,1343,null,null,null,null,null,null,0,null,0,null,null,"",""]
[null,1344,null,null,null,null,null,null,0,null,0,null,null,"",""]
[null,1345,null,null,null,null,null,null,0,null,0,null,null,"",""]
[null,1346,null,null,null,null,null,null,0,null,0,null,null,"",""]
[null,1347,null,null,null,null,null,null,0,null,0,null,null,"",""]
[null,1348,null,null,null,null,null,null,0,null,0,null,null,"",""]
[null,1349,null,null,null,null,null,null,0,null,0,null,null,"",""]
[null,1350,null,null,null,null,null,null,0,null,0,null,null,"",""]
[null,1351,null,null,null,null,null,null,0,null,0,null,null,"",""]
[null,1352,null,null,null,null,null,null,0,null,0,null,null,"",""]
[null,1353,null,null,null,null,null,null,0,null,0,null,null,"",""]
[null,1354,null,null,null,null,null,null,0,null,0,null,null,"",""]
[null,1355,null,null,null,null,null,null,0,null,0,null,null,"",""]
[null,1356,null,null,null,null,null,null,0,null,0,null,null,"",""]
[null,1357,null,null,null,null,null,null,0,null,0,null,null,"",""]
[null,1358,null,null,null,null,null,null,0,null,0,null,null,"",""]
[null,1359,null,null,null,null,null,null,0,null,0,null,null,"",""]
[null,1360,null,null,null,null,null,null,0,null,0,null,null,"",""]
[null,1361,null,null,null,null,null,null,0,null,0,null,null,"",""]
[null,1362,null,null,null,null,null,null,0,null,0,null,null,"",""]
[null,1363,null,null,null,null,null,null,{"$f":"E1368-(E1368*H1368)","v":0},null,{"$f":"I1368-J1368","v":0},null,null,{"$f":"IF(L1368=\"\",\"\",IF(D1368=\"إشتراك يومي\",\"\",L1368+$S$6))","v":""},{"$f":"IF(AND($S$7>N1368,K1368>0),\"مطلوب السداد\",\"\")","v":""}]
[null,1364,null,null,null,null,null,null,0,null,0,null,null,"",""]
[null,1365,null,null,null,null,null,null,0,null,0,null,null,"",""]
[null,1366,null,null,null,null,null,null,0,null,0,null,null,"",""]
[null,1367,null,null,null,null,null,null,0,null,0,null,null,"",""]
[null,1368,null,null,null,null,null,null,0,null,0,null,null,"",""]
[null,1369,null,null,null,null,null,null,0,null,0,null,null,"",""]
[null,1370,null,null,null,null,null,null,0,null,0,null,null,"",""]
[null,1371,null,null,null,null,null,null,0,null,0,null,null,"",""]
[null,1372,null,null,null,null,null,null,0,null,0,null,null,"",""]
[null,1373,null,null,null,null,null,null,0,null,0,null,null,"",""]
[null,1374,null,null,null,null,null,null,0,null,0,null,null,"",""]
[null,1375,null,null,null,null,null,null,0,null,0,null,null,"",""]
[null,1376,null,null,null,null,null,null,0,null,0,null,null,"",""]
[null,1377,null,null,null,null,null,null,0,null,0,null,null,"",""]
[null,1378,null,null,null,null,null,null,0,null,0,null,null,"",""]
[null,1379,null,null,null,null,null,null,0,null,0,null,null,"",""]
[null,1380,null,null,null,null,null,null,0,null,0,null,null,"",""]
[null,1381,null,null,null,null,null,null,0,null,0,null,null,"",""]
[null,1382,null,null,null,null,null,null,0,null,0,null,null,"",""]
[null,1383,null,null,null,null,null,null,0,null,0,null,null,"",""]
[null,1384,null,null,null,null,null,null,0,null,0,null,null,"",""]
[null,1385,null,null,null,null,null,null,0,null,0,null,null,"",""]
[null,1386,null,null,null,null,null,null,0,null,0,null,null,"",""]
[null,1387,null,null,null,null,null,null,0,null,0,null,null,"",""]
[null,1388,null,null,null,null,null,null,0,null,0,null,null,"",""]
[null,1389,null,null,null,null,null,null,0,null,0,null,null,"",""]
[null,1390,null,null,null,null,null,null,0,null,0,null,null,"",""]
[null,1391,null,null,null,null,null,null,0,null,0,null,null,"",""]
[null,1392,null,null,null,null,null,null,0,null,0,null,null,"",""]
[null,1393,null,null,null,null,null,null,0,null,0,null,null,"",""]
[null,1394,null,null,null,null,null,null,0,null,0,null,null,"",""]
[null,1395,null,null,null,null,null,null,0,null,0,null,null,"",""]
[null,1396,null,null,null,null,null,null,0,null,0,null,null,"",""]
[null,1397,null,null,null,null,null,null,0,null,0,null,null,"",""]
[null,1398,null,null,null,null,null,null,0,null,0,null,null,"",""]
[null,1399,null,null,null,null,null,null,0,null,0,null,null,"",""]
[null,1400,null,null,null,null,null,null,0,null,0,null,null,"",""]
[null,1401,null,null,null,null,null,null,0,null,0,null,null,"",""]
[null,1402,null,null,null,null,null,null,0,null,0,null,null,"",""]
[null,1403,null,null,null,null,null,null,0,null,0,null,null,"",""]
[null,1404,null,null,null,null,null,null,0,null,0,null,null,"",""]
[null,1405,null,null,null,null,null,null,0,null,0,null,null,"",""]
[null,1406,null,null,null,null,null,null,0,null,0,null,null,"",""]
[null,1407,null,null,null,null,null,null,0,null,0,null,null,"",""]
[null,1408,null,null,null,null,null,null,0,null,0,null,null,"",""]
[null,1409,null,null,null,null,null,null,0,null,0,null,null,"",""]
[null,1410,null,null,null,null,null,null,0,null,0,null,null,"",""]
[null,1411,null,null,null,null,null,null,0,null,0,null,null,"",""]
[null,1412,null,null,null,null,null,null,0,null,0,null,null,"",""]
[null,1413,null,null,null,null,null,null,0,null,0,null,null,"",""]
[null,1414,null,null,null,null,null,null,0,null,0,null,null,"",""]
[null,1415,null,null,null,null,null,null,0,null,0,null,null,"",""]
[null,1416,null,null,null,null,null,null,0,null,0,null,null,"",""]
[null,1417,null,null,null,null,null,null,0,null,0,null,null,"",""]
[null,1418,null,null,null,null,null,null,0,null,0,null,null,"",""]
[null,1419,null,null,null,null,null,null,0,null,0,null,null,"",""]
[null,1420,null,null,null,null,null,null,0,null,0,null,null,"",""]
[null,1421,null,null,null,null,null,null,0,null,0,null,null,"",""]
[null,1422,null,null,null,null,null,null,0,null,0,null,null,"",""]
[null,1423,null,null,null,null,null,null,0,null,0,null,null,"",""]
[null,1424,null,null,null,null,null,null,0,null,0,null,null,"",""]
[null,1425,null,null,null,null,null,null,0,null,0,null,null,"",""]
[null,1426,null,null,null,null,null,null,0,null,0,null,null,"",""]
[null,1427,null,null,null,null,null,null,{"$f":"E1432-(E1432*H1432)","v":0},null,{"$f":"I1432-J1432","v":0},null,null,{"$f":"IF(L1432=\"\",\"\",IF(D1432=\"إشتراك يومي\",\"\",L1432+$S$6))","v":""},{"$f":"IF(AND($S$7>N1432,K1432>0),\"مطلوب السداد\",\"\")","v":""}]
[null,1428,null,null,null,null,null,null,0,null,0,null,null,"",""]
[null,1429,null,null,null,null,null,null,0,null,0,null,null,"",""]
[null,1430,null,null,null,null,null,null,0,null,0,null,null,"",""]
[null,1431,null,null,null,null,null,null,0,null,0,null,null,"",""]
[null,1432,null,null,null,null,null,null,0,null,0,null,null,"",""]
[null,1433,null,null,null,null,null,null,0,null,0,null,null,"",""]
[null,1434,null,null,null,null,null,null,0,null,0,null,null,"",""]
[null,1435,null,null,null,null,null,null,0,null,0,null,null,"",""]
[null,1436,null,null,null,null,null,null,0,null,0,null,null,"",""]
[null,1437,null,null,null,null,null,null,0,null,0,null,null,"",""]
[null,1438,null,null,null,null,null,null,0,null,0,null,null,"",""]
[null,1439,null,null,null,null,null,null,0,null,0,null,null,"",""]
[null,1440,null,null,null,null,null,null,0,null,0,null,null,"",""]
[null,1441,null,null,null,null,null,null,0,null,0,null,null,"",""]
[null,1442,null,null,null,null,null,null,0,null,0,null,null,"",""]
[null,1443,null,null,null,null,null,null,0,null,0,null,null,"",""]
[null,1444,null,null,null,null,null,null,0,null,0,null,null,"",""]
[null,1445,null,null,null,null,null,null,0,null,0,null,null,"",""]
[null,1446,null,null,null,null,null,null,0,null,0,null,null,"",""]
[null,1447,null,null,null,null,null,null,0,null,0,null,null,"",""]
[null,1448,null,null,null,null,null,null,0,null,0,null,null,"",""]
[null,1449,null,null,null,null,null,null,0,null,0,null,null,"",""]
[null,1450,null,null,null,null,null,null,0,null,0,null,null,"",""]
[null,1451,null,null,null,null,null,null,0,null,0,null,null,"",""]
[null,1452,null,null,null,null,null,null,0,null,0,null,null,"",""]
[null,1453,null,null,null,null,null,null,0,null,0,null,null,"",""]
[null,1454,null,null,null,null,null,null,0,null,0,null,null,"",""]
[null,1455,null,null,null,null,null,null,0,null,0,null,null,"",""]
[null,1456,null,null,null,null,null,null,0,null,0,null,null,"",""]
[null,1457,null,null,null,null,null,null,0,null,0,null,null,"",""]
[null,1458,null,null,null,null,null,null,0,null,0,null,null,"",""]
[null,1459,null,null,null,null,null,null,0,null,0,null,null,"",""]
[null,1460,null,null,null,null,null,null,0,null,0,null,null,"",""]
[null,1461,null,null,null,null,null,null,0,null,0,null,null,"",""]
[null,1462,null,null,null,null,null,null,0,null,0,null,null,"",""]
[null,1463,null,null,null,null,null,null,0,null,0,null,null,"",""]
[null,1464,null,null,null,null,null,null,0,null,0,null,null,"",""]
[null,1465,null,null,null,null,null,null,0,null,0,null,null,"",""]
[null,1466,null,null,null,null,null,null,0,null,0,null,null,"",""]
[null,1467,null,null,null,null,null,null,0,null,0,null,null,"",""]
[null,1468,null,null,null,null,null,null,0,null,0,null,null,"",""]
[null,1469,null,null,null,null,null,null,0,null,0,null,null,"",""]
[null,1470,null,null,null,null,null,null,0,null,0,null,null,"",""]
[null,1471,null,null,null,null,null,null,0,null,0,null,null,"",""]
[null,1472,null,null,null,null,null,null,0,null,0,null,null,"",""]
[null,1473,null,null,null,null,null,null,0,null,0,null,null,"",""]
[null,1474,null,null,null,null,null,null,0,null,0,null,null,"",""]
[null,1475,null,null,null,null,null,null,0,null,0,null,null,"",""]
[null,1476,null,null,null,null,null,null,0,null,0,null,null,"",""]
[null,1477,null,null,null,null,null,null,0,null,0,null,null,"",""]
[null,1478,null,null,null,null,null,null,0,null,0,null,null,"",""]
[null,1479,null,null,null,null,null,null,0,null,0,null,null,"",""]
[null,1480,null,null,null,null,null,null,0,null,0,null,null,"",""]
[null,1481,null,null,null,null,null,null,0,null,0,null,null,"",""]
[null,1482,null,null,null,null,null,null,0,null,0,null,null,"",""]
[null,1483,null,null,null,null,null,null,0,null,0,null,null,"",""]
[null,1484,null,null,null,null,null,null,0,null,0,null,null,"",""]
[null,1485,null,null,null,null,null,null,0,null,0,null,null,"",""]
[null,1486,null,null,null,null,null,null,0,null,0,null,null,"",""]
[null,1487,null,null,null,null,null,null,0,null,0,null,null,"",""]
[null,1488,null,null,null,null,null,null,0,null,0,null,null,"",""]
[null,1489,null,null,null,null,null,null,0,null,0,null,null,"",""]
[null,1490,null,null,null,null,null,null,0,null,0,null,null,"",""]
[null,1491,null,null,null,null,null,null,{"$f":"E1496-(E1496*H1496)","v":0},null,{"$f":"I1496-J1496","v":0},null,null,{"$f":"IF(L1496=\"\",\"\",IF(D1496=\"إشتراك يومي\",\"\",L1496+$S$6))","v":""},{"$f":"IF(AND($S$7>N1496,K1496>0),\"مطلوب السداد\",\"\")","v":""}]
[null,1492,null,null,null,null,null,null,0,null,0,null,null,"",""]
[null,1493,null,null,null,null,null,null,0,null,0,null,null,"",""]
[null,1494,null,null,null,null,null,null,0,null,0,null,null,"",""]
[null,1495,null,null,null,null,null,null,0,null,0,null,null,"",""]
[null,1496,null,null,null,null,null,null,0,null,0,null,null,"",""]
[null,1497,null,null,null,null,null,null,0,null,0,null,null,"",""]
[null,1498,null,null,null,null,null,null,0,null,0,null,null,"",""]
[null,1499,null,null,null,null,null,null,0,null,0,null,null,"",""]
[null,1500,null,null,null,null,null,null,0,null,0,null,null,"",""]
[null,1501,null,null,null,null,null,null,0,null,0,null,null,"",""]
[null,1502,null,null,null,null,null,null,0,null,0,null,null,"",""]
[null,1503,null,null,null,null,null,null,0,null,0,null,null,"",""]
[null,1504,null,null,null,null,null,null,0,null,0,null,null,"",""]
[null,1505,null,null,null,null,null,null,0,null,0,null,null,"",""]
[null,1506,null,null,null,null,null,null,0,null,0,null,null,"",""]
[null,1507,null,null,null,null,null,null,0,null,0,null,null,"",""]
[null,1508,null,null,null,null,null,null,0,null,0,null,null,"",""]
[null,1509,null,null,null,null,null,null,0,null,0,null,null,"",""]
[null,1510,null,null,null,null,null,null,0,null,0,null,null,"",""]
[null,1511,null,null,null,null,null,null,0,null,0,null,null,"",""]
[null,1512,null,null,null,null,null,null,0,null,0,null,null,"",""]
[null,1513,null,null,null,null,null,null,0,null,0,null,null,"",""]
[null,1514,null,null,null,null,null,null,0,null,0,null,null,"",""]
[null,1515,null,null,null,null,null,null,0,null,0,null,null,"",""]
[null,1516,null,null,null,null,null,null,0,null,0,null,null,"",""]
[null,1517,null,null,null,null,null,null,0,null,0,null,null,"",""]
[null,1518,null,null,null,null,null,null,0,null,0,null,null,"",""]
[null,1519,null,null,null,null,null,null,0,null,0,null,null,"",""]
[null,1520,null,null,null,null,null,null,0,null,0,null,null,"",""]
[null,1521,null,null,null,null,null,null,0,null,0,null,null,"",""]
[null,1522,null,null,null,null,null,null,0,null,0,null,null,"",""]
[null,1523,null,null,null,null,null,null,0,null,0,null,null,"",""]
[null,1524,null,null,null,null,null,null,0,null,0,null,null,"",""]
[null,1525,null,null,null,null,null,null,0,null,0,null,null,"",""]
[null,1526,null,null,null,null,null,null,0,null,0,null,null,"",""]
[null,1527,null,null,null,null,null,null,0,null,0,null,null,"",""]
[null,1528,null,null,null,null,null,null,0,null,0,null,null,"",""]
[null,1529,null,null,null,null,null,null,0,null,0,null,null,"",""]
[null,1530,null,null,null,null,null,null,0,null,0,null,null,"",""]
[null,1531,null,null,null,null,null,null,0,null,0,null,null,"",""]
[null,1532,null,null,null,null,null,null,0,null,0,null,null,"",""]
[null,1533,null,null,null,null,null,null,0,null,0,null,null,"",""]
[null,1534,null,null,null,null,null,null,0,null,0,null,null,"",""]
[null,1535,null,null,null,null,null,null,0,null,0,null,null,"",""]
[null,1536,null,null,null,null,null,null,0,null,0,null,null,"",""]
[null,1537,null,null,null,null,null,null,0,null,0,null,null,"",""]
[null,1538,null,null,null,null,null,null,0,null,0,null,null,"",""]
[null,1539,null,null,null,null,null,null,0,null,0,null,null,"",""]
[null,1540,null,null,null,null,null,null,0,null,0,null,null,"",""]
[null,1541,null,null,null,null,null,null,0,null,0,null,null,"",""]
[null,1542,null,null,null,null,null,null,0,null,0,null,null,"",""]
[null,1543,null,null,null,null,null,null,0,null,0,null,null,"",""]
[null,1544,null,null,null,null,null,null,0,null,0,null,null,"",""]
[null,1545,null,null,null,null,null,null,0,null,0,null,null,"",""]
[null,1546,null,null,null,null,null,null,0,null,0,null,null,"",""]
[null,1547,null,null,null,null,null,null,0,null,0,null,null,"",""]
[null,1548,null,null,null,null,null,null,0,null,0,null,null,"",""]
[null,1549,null,null,null,null,null,null,0,null,0,null,null,"",""]
[null,1550,null,null,null,null,null,null,0,null,0,null,null,"",""]
[null,1551,null,null,null,null,null,null,0,null,0,null,null,"",""]
[null,1552,null,null,null,null,null,null,0,null,0,null,null,"",""]
[null,1553,null,null,null,null,null,null,0,null,0,null,null,"",""]
[null,1554,null,null,null,null,null,null,0,null,0,null,null,"",""]
[null,1555,null,null,null,null,null,null,{"$f":"E1560-(E1560*H1560)","v":0},null,{"$f":"I1560-J1560","v":0},null,null,{"$f":"IF(L1560=\"\",\"\",IF(D1560=\"إشتراك يومي\",\"\",L1560+$S$6))","v":""},{"$f":"IF(AND($S$7>N1560,K1560>0),\"مطلوب السداد\",\"\")","v":""}]
[null,1556,null,null,null,null,null,null,0,null,0,null,null,"",""]
[null,1557,null,null,null,null,null,null,0,null,0,null,null,"",""]
[null,1558,null,null,null,null,null,null,0,null,0,null,null,"",""]
[null,1559,null,null,null,null,null,null,0,null,0,null,null,"",""]
[null,1560,null,null,null,null,null,null,0,null,0,null,null,"",""]
[null,1561,null,null,null,null,null,null,0,null,0,null,null,"",""]
[null,1562,null,null,null,null,null,null,0,null,0,null,null,"",""]
[null,1563,null,null,null,null,null,null,0,null,0,null,null,"",""]
[null,1564,null,null,null,null,null,null,0,null,0,null,null,"",""]
[null,1565,null,null,null,null,null,null,0,null,0,null,null,"",""]
[null,1566,null,null,null,null,null,null,0,null,0,null,null,"",""]
[null,1567,null,null,null,null,null,null,0,null,0,null,null,"",""]
[null,1568,null,null,null,null,null,null,0,null,0,null,null,"",""]
[null,1569,null,null,null,null,null,null,0,null,0,null,null,"",""]
[null,1570,null,null,null,null,null,null,0,null,0,null,null,"",""]
[null,1571,null,null,null,null,null,null,0,null,0,null,null,"",""]
[null,1572,null,null,null,null,null,null,0,null,0,null,null,"",""]
[null,1573,null,null,null,null,null,null,0,null,0,null,null,"",""]
[null,1574,null,null,null,null,null,null,0,null,0,null,null,"",""]
[null,1575,null,null,null,null,null,null,0,null,0,null,null,"",""]
[null,1576,null,null,null,null,null,null,0,null,0,null,null,"",""]
[null,1577,null,null,null,null,null,null,0,null,0,null,null,"",""]
[null,1578,null,null,null,null,null,null,0,null,0,null,null,"",""]
[null,1579,null,null,null,null,null,null,0,null,0,null,null,"",""]
[null,1580,null,null,null,null,null,null,0,null,0,null,null,"",""]
[null,1581,null,null,null,null,null,null,0,null,0,null,null,"",""]
[null,1582,null,null,null,null,null,null,0,null,0,null,null,"",""]
[null,1583,null,null,null,null,null,null,0,null,0,null,null,"",""]
[null,1584,null,null,null,null,null,null,0,null,0,null,null,"",""]
[null,1585,null,null,null,null,null,null,0,null,0,null,null,"",""]
[null,1586,null,null,null,null,null,null,0,null,0,null,null,"",""]
[null,1587,null,null,null,null,null,null,0,null,0,null,null,"",""]
[null,1588,null,null,null,null,null,null,0,null,0,null,null,"",""]
[null,1589,null,null,null,null,null,null,0,null,0,null,null,"",""]
[null,1590,null,null,null,null,null,null,0,null,0,null,null,"",""]
[null,1591,null,null,null,null,null,null,0,null,0,null,null,"",""]
[null,1592,null,null,null,null,null,null,0,null,0,null,null,"",""]
[null,1593,null,null,null,null,null,null,0,null,0,null,null,"",""]
[null,1594,null,null,null,null,null,null,0,null,0,null,null,"",""]
[null,1595,null,null,null,null,null,null,0,null,0,null,null,"",""]
[null,1596,null,null,null,null,null,null,0,null,0,null,null,"",""]
[null,1597,null,null,null,null,null,null,0,null,0,null,null,"",""]
[null,1598,null,null,null,null,null,null,0,null,0,null,null,"",""]
[null,1599,null,null,null,null,null,null,0,null,0,null,null,"",""]
[null,1600,null,null,null,null,null,null,0,null,0,null,null,"",""]
[null,1601,null,null,null,null,null,null,0,null,0,null,null,"",""]
[null,1602,null,null,null,null,null,null,0,null,0,null,null,"",""]
[null,1603,null,null,null,null,null,null,0,null,0,null,null,"",""]
[null,1604,null,null,null,null,null,null,0,null,0,null,null,"",""]
[null,1605,null,null,null,null,null,null,0,null,0,null,null,"",""]
[null,1606,null,null,null,null,null,null,0,null,0,null,null,"",""]
[null,1607,null,null,null,null,null,null,0,null,0,null,null,"",""]
[null,1608,null,null,null,null,null,null,0,null,0,null,null,"",""]
[null,1609,null,null,null,null,null,null,0,null,0,null,null,"",""]
[null,1610,null,null,null,null,null,null,0,null,0,null,null,"",""]
[null,1611,null,null,null,null,null,null,0,null,0,null,null,"",""]
[null,1612,null,null,null,null,null,null,0,null,0,null,null,"",""]
[null,1613,null,null,null,null,null,null,0,null,0,null,null,"",""]
[null,1614,null,null,null,null,null,null,0,null,0,null,null,"",""]
[null,1615,null,null,null,null,null,null,0,null,0,null,null,"",""]
[null,1616,null,null,null,null,null,null,0,null,0,null,null,"",""]
[null,1617,null,null,null,null,null,null,0,null,0,null,null,"",""]
[null,1618,null,null,null,null,null,null,0,null,0,null,null,"",""]
[null,1619,null,null,null,null,null,null,{"$f":"E1624-(E1624*H1624)","v":0},null,{"$f":"I1624-J1624","v":0},null,null,{"$f":"IF(L1624=\"\",\"\",IF(D1624=\"إشتراك يومي\",\"\",L1624+$S$6))","v":""},{"$f":"IF(AND($S$7>N1624,K1624>0),\"مطلوب السداد\",\"\")","v":""}]
[null,1620,null,null,null,null,null,null,0,null,0,null,null,"",""]
[null,1621,null,null,null,null,null,null,0,null,0,null,null,"",""]
[null,1622,null,null,null,null,null,null,0,null,0,null,null,"",""]
[null,1623,null,null,null,null,null,null,0,null,0,null,null,"",""]
[null,1624,null,null,null,null,null,null,0,null,0,null,null,"",""]
[null,1625,null,null,null,null,null,null,0,null,0,null,null,"",""]
[null,1626,null,null,null,null,null,null,0,null,0,null,null,"",""]
[null,1627,null,null,null,null,null,null,0,null,0,null,null,"",""]
[null,1628,null,null,null,null,null,null,0,null,0,null,null,"",""]
[null,1629,null,null,null,null,null,null,0,null,0,null,null,"",""]
[null,1630,null,null,null,null,null,null,0,null,0,null,null,"",""]
[null,1631,null,null,null,null,null,null,0,null,0,null,null,"",""]
[null,1632,null,null,null,null,null,null,0,null,0,null,null,"",""]
[null,1633,null,null,null,null,null,null,0,null,0,null,null,"",""]
[null,1634,null,null,null,null,null,null,0,null,0,null,null,"",""]
[null,1635,null,null,null,null,null,null,0,null,0,null,null,"",""]
[null,1636,null,null,null,null,null,null,0,null,0,null,null,"",""]
[null,1637,null,null,null,null,null,null,0,null,0,null,null,"",""]
[null,1638,null,null,null,null,null,null,0,null,0,null,null,"",""]
[null,1639,null,null,null,null,null,null,0,null,0,null,null,"",""]
[null,1640,null,null,null,null,null,null,0,null,0,null,null,"",""]
[null,1641,null,null,null,null,null,null,0,null,0,null,null,"",""]
[null,1642,null,null,null,null,null,null,0,null,0,null,null,"",""]
[null,1643,null,null,null,null,null,null,0,null,0,null,null,"",""]
[null,1644,null,null,null,null,null,null,0,null,0,null,null,"",""]
[null,1645,null,null,null,null,null,null,0,null,0,null,null,"",""]
[null,1646,null,null,null,null,null,null,0,null,0,null,null,"",""]
[null,1647,null,null,null,null,null,null,0,null,0,null,null,"",""]
[null,1648,null,null,null,null,null,null,0,null,0,null,null,"",""]
[null,1649,null,null,null,null,null,null,0,null,0,null,null,"",""]
[null,1650,null,null,null,null,null,null,0,null,0,null,null,"",""]
[null,1651,null,null,null,null,null,null,0,null,0,null,null,"",""]
[null,1652,null,null,null,null,null,null,0,null,0,null,null,"",""]
[null,1653,null,null,null,null,null,null,0,null,0,null,null,"",""]
[null,1654,null,null,null,null,null,null,0,null,0,null,null,"",""]
[null,1655,null,null,null,null,null,null,0,null,0,null,null,"",""]
[null,1656,null,null,null,null,null,null,0,null,0,null,null,"",""]
[null,1657,null,null,null,null,null,null,0,null,0,null,null,"",""]
[null,1658,null,null,null,null,null,null,0,null,0,null,null,"",""]
[null,1659,null,null,null,null,null,null,0,null,0,null,null,"",""]
[null,1660,null,null,null,null,null,null,0,null,0,null,null,"",""]
[null,1661,null,null,null,null,null,null,0,null,0,null,null,"",""]
[null,1662,null,null,null,null,null,null,0,null,0,null,null,"",""]
[null,1663,null,null,null,null,null,null,0,null,0,null,null,"",""]
[null,1664,null,null,null,null,null,null,0,null,0,null,null,"",""]
[null,1665,null,null,null,null,null,null,0,null,0,null,null,"",""]
[null,1666,null,null,null,null,null,null,0,null,0,null,null,"",""]
[null,1667,null,null,null,null,null,null,0,null,0,null,null,"",""]
[null,1668,null,null,null,null,null,null,0,null,0,null,null,"",""]
[null,1669,null,null,null,null,null,null,0,null,0,null,null,"",""]
[null,1670,null,null,null,null,null,null,0,null,0,null,null,"",""]
[null,1671,null,null,null,null,null,null,0,null,0,null,null,"",""]
[null,1672,null,null,null,null,null,null,0,null,0,null,null,"",""]
[null,1673,null,null,null,null,null,null,0,null,0,null,null,"",""]
[null,1674,null,null,null,null,null,null,0,null,0,null,null,"",""]
[null,1675,null,null,null,null,null,null,0,null,0,null,null,"",""]
[null,1676,null,null,null,null,null,null,0,null,0,null,null,"",""]
[null,1677,null,null,null,null,null,null,0,null,0,null,null,"",""]
[null,1678,null,null,null,null,null,null,0,null,0,null,null,"",""]
[null,1679,null,null,null,null,null,null,0,null,0,null,null,"",""]
[null,1680,null,null,null,null,null,null,0,null,0,null,null,"",""]
[null,1681,null,null,null,null,null,null,0,null,0,null,null,"",""]
[null,1682,null,null,null,null,null,null,0,null,0,null,null,"",""]
[null,1683,null,null,null,null,null,null,{"$f":"E1688-(E1688*H1688)","v":0},null,{"$f":"I1688-J1688","v":0},null,null,{"$f":"IF(L1688=\"\",\"\",IF(D1688=\"إشتراك يومي\",\"\",L1688+$S$6))","v":""},{"$f":"IF(AND($S$7>N1688,K1688>0),\"مطلوب السداد\",\"\")","v":""}]
[null,1684,null,null,null,null,null,null,0,null,0,null,null,"",""]
[null,1685,null,null,null,null,null,null,0,null,0,null,null,"",""]
[null,1686,null,null,null,null,null,null,0,null,0,null,null,"",""]
[null,1687,null,null,null,null,null,null,0,null,0,null,null,"",""]
[null,1688,null,null,null,null,null,null,0,null,0,null,null,"",""]
[null,1689,null,null,null,null,null,null,0,null,0,null,null,"",""]
[null,1690,null,null,null,null,null,null,0,null,0,null,null,"",""]
[null,1691,null,null,null,null,null,null,0,null,0,null,null,"",""]
[null,1692,null,null,null,null,null,null,0,null,0,null,null,"",""]
[null,1693,null,null,null,null,null,null,0,null,0,null,null,"",""]
[null,1694,null,null,null,null,null,null,0,null,0,null,null,"",""]
[null,1695,null,null,null,null,null,null,0,null,0,null,null,"",""]
[null,1696,null,null,null,null,null,null,0,null,0,null,null,"",""]
[null,1697,null,null,null,null,null,null,0,null,0,null,null,"",""]
[null,1698,null,null,null,null,null,null,0,null,0,null,null,"",""]
[null,1699,null,null,null,null,null,null,0,null,0,null,null,"",""]
[null,1700,null,null,null,null,null,null,0,null,0,null,null,"",""]
[null,1701,null,null,null,null,null,null,0,null,0,null,null,"",""]
[null,1702,null,null,null,null,null,null,0,null,0,null,null,"",""]
[null,1703,null,null,null,null,null,null,0,null,0,null,null,"",""]
[null,1704,null,null,null,null,null,null,0,null,0,null,null,"",""]
[null,1705,null,null,null,null,null,null,0,null,0,null,null,"",""]
[null,1706,null,null,null,null,null,null,0,null,0,null,null,"",""]
[null,1707,null,null,null,null,null,null,0,null,0,null,null,"",""]
[null,1708,null,null,null,null,null,null,0,null,0,null,null,"",""]
[null,1709,null,null,null,null,null,null,0,null,0,null,null,"",""]
[null,1710,null,null,null,null,null,null,0,null,0,null,null,"",""]
[null,1711,null,null,null,null,null,null,0,null,0,null,null,"",""]
[null,1712,null,null,null,null,null,null,0,null,0,null,null,"",""]
[null,1713,null,null,null,null,null,null,0,null,0,null,null,"",""]
[null,1714,null,null,null,null,null,null,0,null,0,null,null,"",""]
[null,1715,null,null,null,null,null,null,0,null,0,null,null,"",""]
[null,1716,null,null,null,null,null,null,0,null,0,null,null,"",""]
[null,1717,null,null,null,null,null,null,0,null,0,null,null,"",""]
[null,1718,null,null,null,null,null,null,0,null,0,null,null,"",""]
[null,1719,null,null,null,null,null,null,0,null,0,null,null,"",""]
[null,1720,null,null,null,null,null,null,0,null,0,null,null,"",""]
[null,1721,null,null,null,null,null,null,0,null,0,null,null,"",""]
[null,1722,null,null,null,null,null,null,0,null,0,null,null,"",""]
[null,1723,null,null,null,null,null,null,0,null,0,null,null,"",""]
[null,1724,null,null,null,null,null,null,0,null,0,null,null,"",""]
[null,1725,null,null,null,null,null,null,0,null,0,null,null,"",""]
[null,1726,null,null,null,null,null,null,0,null,0,null,null,"",""]
[null,1727,null,null,null,null,null,null,0,null,0,null,null,"",""]
[null,1728,null,null,null,null,null,null,0,null,0,null,null,"",""]
[null,1729,null,null,null,null,null,null,0,null,0,null,null,"",""]
[null,1730,null,null,null,null,null,null,0,null,0,null,null,"",""]
[null,1731,null,null,null,null,null,null,0,null,0,null,null,"",""]
[null,1732,null,null,null,null,null,null,0,null,0,null,null,"",""]
[null,1733,null,null,null,null,null,null,0,null,0,null,null,"",""]
[null,1734,null,null,null,null,null,null,0,null,0,null,null,"",""]
[null,1735,null,null,null,null,null,null,0,null,0,null,null,"",""]
[null,1736,null,null,null,null,null,null,0,null,0,null,null,"",""]
[null,1737,null,null,null,null,null,null,0,null,0,null,null,"",""]
[null,1738,null,null,null,null,null,null,0,null,0,null,null,"",""]
[null,1739,null,null,null,null,null,null,0,null,0,null,null,"",""]
[null,1740,null,null,null,null,null,null,0,null,0,null,null,"",""]
[null,1741,null,null,null,null,null,null,0,null,0,null,null,"",""]
[null,1742,null,null,null,null,null,null,0,null,0,null,null,"",""]
[null,1743,null,null,null,null,null,null,0,null,0,null,null,"",""]
[null,1744,null,null,null,null,null,null,0,null,0,null,null,"",""]
[null,1745,null,null,null,null,null,null,0,null,0,null,null,"",""]
[null,1746,null,null,null,null,null,null,0,null,0,null,null,"",""]
[null,1747,null,null,null,null,null,null,{"$f":"E1752-(E1752*H1752)","v":0},null,{"$f":"I1752-J1752","v":0},null,null,{"$f":"IF(L1752=\"\",\"\",IF(D1752=\"إشتراك يومي\",\"\",L1752+$S$6))","v":""},{"$f":"IF(AND($S$7>N1752,K1752>0),\"مطلوب السداد\",\"\")","v":""}]
[null,1748,null,null,null,null,null,null,0,null,0,null,null,"",""]
[null,1749,null,null,null,null,null,null,0,null,0,null,null,"",""]
[null,1750,null,null,null,null,null,null,0,null,0,null,null,"",""]
[null,1751,null,null,null,null,null,null,0,null,0,null,null,"",""]
[null,1752,null,null,null,null,null,null,0,null,0,null,null,"",""]
[null,1753,null,null,null,null,null,null,0,null,0,null,null,"",""]
[null,1754,null,null,null,null,null,null,0,null,0,null,null,"",""]
[null,1755,null,null,null,null,null,null,0,null,0,null,null,"",""]
[null,1756,null,null,null,null,null,null,0,null,0,null,null,"",""]
[null,1757,null,null,null,null,null,null,0,null,0,null,null,"",""]
[null,1758,null,null,null,null,null,null,0,null,0,null,null,"",""]
[null,1759,null,null,null,null,null,null,0,null,0,null,null,"",""]
[null,1760,null,null,null,null,null,null,0,null,0,null,null,"",""]
[null,1761,null,null,null,null,null,null,0,null,0,null,null,"",""]
[null,1762,null,null,null,null,null,null,0,null,0,null,null,"",""]
[null,1763,null,null,null,null,null,null,0,null,0,null,null,"",""]
[null,1764,null,null,null,null,null,null,0,null,0,null,null,"",""]
[null,1765,null,null,null,null,null,null,0,null,0,null,null,"",""]
[null,1766,null,null,null,null,null,null,0,null,0,null,null,"",""]
[null,1767,null,null,null,null,null,null,0,null,0,null,null,"",""]
[null,1768,null,null,null,null,null,null,0,null,0,null,null,"",""]
[null,1769,null,null,null,null,null,null,0,null,0,null,null,"",""]
[null,1770,null,null,null,null,null,null,0,null,0,null,null,"",""]
[null,1771,null,null,null,null,null,null,0,null,0,null,null,"",""]
[null,1772,null,null,null,null,null,null,0,null,0,null,null,"",""]
[null,1773,null,null,null,null,null,null,0,null,0,null,null,"",""]
[null,1774,null,null,null,null,null,null,0,null,0,null,null,"",""]
[null,1775,null,null,null,null,null,null,0,null,0,null,null,"",""]
[null,1776,null,null,null,null,null,null,0,null,0,null,null,"",""]
[null,1777,null,null,null,null,null,null,0,null,0,null,null,"",""]
[null,1778,null,null,null,null,null,null,0,null,0,null,null,"",""]
[null,1779,null,null,null,null,null,null,0,null,0,null,null,"",""]
[null,1780,null,null,null,null,null,null,0,null,0,null,null,"",""]
[null,1781,null,null,null,null,null,null,0,null,0,null,null,"",""]
[null,1782,null,null,null,null,null,null,0,null,0,null,null,"",""]
[null,1783,null,null,null,null,null,null,0,null,0,null,null,"",""]
[null,1784,null,null,null,null,null,null,0,null,0,null,null,"",""]
[null,1785,null,null,null,null,null,null,0,null,0,null,null,"",""]
[null,1786,null,null,null,null,null,null,0,null,0,null,null,"",""]
[null,1787,null,null,null,null,null,null,0,null,0,null,null,"",""]
[null,1788,null,null,null,null,null,null,0,null,0,null,null,"",""]
[null,1789,null,null,null,null,null,null,0,null,0,null,null,"",""]
[null,1790,null,null,null,null,null,null,0,null,0,null,null,"",""]
[null,1791,null,null,null,null,null,null,0,null,0,null,null,"",""]
[null,1792,null,null,null,null,null,null,0,null,0,null,null,"",""]
[null,1793,null,null,null,null,null,null,0,null,0,null,null,"",""]
[null,1794,null,null,null,null,null,null,0,null,0,null,null,"",""]
[null,1795,null,null,null,null,null,null,0,null,0,null,null,"",""]
[null,1796,null,null,null,null,null,null,0,null,0,null,null,"",""]
[null,1797,null,null,null,null,null,null,0,null,0,null,null,"",""]
[null,1798,null,null,null,null,null,null,0,null,0,null,null,"",""]
[null,1799,null,null,null,null,null,null,0,null,0,null,null,"",""]
[null,1800,null,null,null,null,null,null,0,null,0,null,null,"",""]
[null,1801,null,null,null,null,null,null,0,null,0,null,null,"",""]
[null,1802,null,null,null,null,null,null,0,null,0,null,null,"",""]
[null,1803,null,null,null,null,null,null,0,null,0,null,null,"",""]
[null,1804,null,null,null,null,null,null,0,null,0,null,null,"",""]
[null,1805,null,null,null,null,null,null,0,null,0,null,null,"",""]
[null,1806,null,null,null,null,null,null,0,null,0,null,null,"",""]
[null,1807,null,null,null,null,null,null,0,null,0,null,null,"",""]
[null,1808,null,null,null,null,null,null,0,null,0,null,null,"",""]
[null,1809,null,null,null,null,null,null,0,null,0,null,null,"",""]
[null,1810,null,null,null,null,null,null,0,null,0,null,null,"",""]
[null,1811,null,null,null,null,null,null,{"$f":"E1816-(E1816*H1816)","v":0},null,{"$f":"I1816-J1816","v":0},null,null,{"$f":"IF(L1816=\"\",\"\",IF(D1816=\"إشتراك يومي\",\"\",L1816+$S$6))","v":""},{"$f":"IF(AND($S$7>N1816,K1816>0),\"مطلوب السداد\",\"\")","v":""}]
[null,1812,null,null,null,null,null,null,0,null,0,null,null,"",""]
[null,1813,null,null,null,null,null,null,0,null,0,null,null,"",""]
[null,1814,null,null,null,null,null,null,0,null,0,null,null,"",""]
[null,1815,null,null,null,null,null,null,0,null,0,null,null,"",""]
[null,1816,null,null,null,null,null,null,0,null,0,null,null,"",""]
[null,1817,null,null,null,null,null,null,0,null,0,null,null,"",""]
[null,1818,null,null,null,null,null,null,0,null,0,null,null,"",""]
[null,1819,null,null,null,null,null,null,0,null,0,null,null,"",""]
[null,1820,null,null,null,null,null,null,0,null,0,null,null,"",""]
[null,1821,null,null,null,null,null,null,0,null,0,null,null,"",""]
[null,1822,null,null,null,null,null,null,0,null,0,null,null,"",""]
[null,1823,null,null,null,null,null,null,0,null,0,null,null,"",""]
[null,1824,null,null,null,null,null,null,0,null,0,null,null,"",""]
[null,1825,null,null,null,null,null,null,0,null,0,null,null,"",""]
[null,1826,null,null,null,null,null,null,0,null,0,null,null,"",""]
[null,1827,null,null,null,null,null,null,0,null,0,null,null,"",""]
[null,1828,null,null,null,null,null,null,0,null,0,null,null,"",""]
[null,1829,null,null,null,null,null,null,0,null,0,null,null,"",""]
[null,1830,null,null,null,null,null,null,0,null,0,null,null,"",""]
[null,1831,null,null,null,null,null,null,0,null,0,null,null,"",""]
[null,1832,null,null,null,null,null,null,0,null,0,null,null,"",""]
[null,1833,null,null,null,null,null,null,0,null,0,null,null,"",""]
[null,1834,null,null,null,null,null,null,0,null,0,null,null,"",""]
[null,1835,null,null,null,null,null,null,0,null,0,null,null,"",""]
[null,1836,null,null,null,null,null,null,0,null,0,null,null,"",""]
[null,1837,null,null,null,null,null,null,0,null,0,null,null,"",""]
[null,1838,null,null,null,null,null,null,0,null,0,null,null,"",""]
[null,1839,null,null,null,null,null,null,0,null,0,null,null,"",""]
[null,1840,null,null,null,null,null,null,0,null,0,null,null,"",""]
[null,1841,null,null,null,null,null,null,0,null,0,null,null,"",""]
[null,1842,null,null,null,null,null,null,0,null,0,null,null,"",""]
[null,1843,null,null,null,null,null,null,0,null,0,null,null,"",""]
[null,1844,null,null,null,null,null,null,0,null,0,null,null,"",""]
[null,1845,null,null,null,null,null,null,0,null,0,null,null,"",""]
[null,1846,null,null,null,null,null,null,0,null,0,null,null,"",""]
[null,1847,null,null,null,null,null,null,0,null,0,null,null,"",""]
[null,1848,null,null,null,null,null,null,0,null,0,null,null,"",""]
[null,1849,null,null,null,null,null,null,0,null,0,null,null,"",""]
[null,1850,null,null,null,null,null,null,0,null,0,null,null,"",""]
[null,1851,null,null,null,null,null,null,0,null,0,null,null,"",""]
[null,1852,null,null,null,null,null,null,0,null,0,null,null,"",""]
[null,1853,null,null,null,null,null,null,0,null,0,null,null,"",""]
[null,1854,null,null,null,null,null,null,0,null,0,null,null,"",""]
[null,1855,null,null,null,null,null,null,0,null,0,null,null,"",""]
[null,1856,null,null,null,null,null,null,0,null,0,null,null,"",""]
[null,1857,null,null,null,null,null,null,0,null,0,null,null,"",""]
[null,1858,null,null,null,null,null,null,0,null,0,null,null,"",""]
[null,1859,null,null,null,null,null,null,0,null,0,null,null,"",""]
[null,1860,null,null,null,null,null,null,0,null,0,null,null,"",""]
[null,1861,null,null,null,null,null,null,0,null,0,null,null,"",""]
[null,1862,null,null,null,null,null,null,0,null,0,null,null,"",""]
[null,1863,null,null,null,null,null,null,0,null,0,null,null,"",""]
[null,1864,null,null,null,null,null,null,0,null,0,null,null,"",""]
[null,1865,null,null,null,null,null,null,0,null,0,null,null,"",""]
[null,1866,null,null,null,null,null,null,0,null,0,null,null,"",""]
[null,1867,null,null,null,null,null,null,0,null,0,null,null,"",""]
[null,1868,null,null,null,null,null,null,0,null,0,null,null,"",""]
[null,1869,null,null,null,null,null,null,0,null,0,null,null,"",""]
[null,1870,null,null,null,null,null,null,0,null,0,null,null,"",""]
[null,1871,null,null,null,null,null,null,0,null,0,null,null,"",""]
[null,1872,null,null,null,null,null,null,0,null,0,null,null,"",""]
[null,1873,null,null,null,null,null,null,0,null,0,null,null,"",""]
[null,1874,null,null,null,null,null,null,0,null,0,null,null,"",""]
[null,1875,null,null,null,null,null,null,{"$f":"E1880-(E1880*H1880)","v":0},null,{"$f":"I1880-J1880","v":0},null,null,{"$f":"IF(L1880=\"\",\"\",IF(D1880=\"إشتراك يومي\",\"\",L1880+$S$6))","v":""},{"$f":"IF(AND($S$7>N1880,K1880>0),\"مطلوب السداد\",\"\")","v":""}]
[null,1876,null,null,null,null,null,null,0,null,0,null,null,"",""]
[null,1877,null,null,null,null,null,null,0,null,0,null,null,"",""]
[null,1878,null,null,null,null,null,null,0,null,0,null,null,"",""]
[null,1879,null,null,null,null,null,null,0,null,0,null,null,"",""]
[null,1880,null,null,null,null,null,null,0,null,0,null,null,"",""]
[null,1881,null,null,null,null,null,null,0,null,0,null,null,"",""]
[null,1882,null,null,null,null,null,null,0,null,0,null,null,"",""]
[null,1883,null,null,null,null,null,null,0,null,0,null,null,"",""]
[null,1884,null,null,null,null,null,null,0,null,0,null,null,"",""]
[null,1885,null,null,null,null,null,null,0,null,0,null,null,"",""]
[null,1886,null,null,null,null,null,null,0,null,0,null,null,"",""]
[null,1887,null,null,null,null,null,null,0,null,0,null,null,"",""]
[null,1888,null,null,null,null,null,null,0,null,0,null,null,"",""]
[null,1889,null,null,null,null,null,null,0,null,0,null,null,"",""]
[null,1890,null,null,null,null,null,null,0,null,0,null,null,"",""]
[null,1891,null,null,null,null,null,null,0,null,0,null,null,"",""]
[null,1892,null,null,null,null,null,null,0,null,0,null,null,"",""]
[null,1893,null,null,null,null,null,null,0,null,0,null,null,"",""]
[null,1894,null,null,null,null,null,null,0,null,0,null,null,"",""]
[null,1895,null,null,null,null,null,null,0,null,0,null,null,"",""]
[null,1896,null,null,null,null,null,null,0,null,0,null,null,"",""]
[null,1897,null,null,null,null,null,null,0,null,0,null,null,"",""]
[null,1898,null,null,null,null,null,null,0,null,0,null,null,"",""]
[null,1899,null,null,null,null,null,null,0,null,0,null,null,"",""]
[null,1900,null,null,null,null,null,null,0,null,0,null,null,"",""]
[null,1901,null,null,null,null,null,null,0,null,0,null,null,"",""]
[null,1902,null,null,null,null,null,null,0,null,0,null,null,"",""]
[null,1903,null,null,null,null,null,null,0,null,0,null,null,"",""]
[null,1904,null,null,null,null,null,null,0,null,0,null,null,"",""]
[null,1905,null,null,null,null,null,null,0,null,0,null,null,"",""]
[null,1906,null,null,null,null,null,null,0,null,0,null,null,"",""]
[null,1907,null,null,null,null,null,null,0,null,0,null,null,"",""]
[null,1908,null,null,null,null,null,null,0,null,0,null,null,"",""]
[null,1909,null,null,null,null,null,null,0,null,0,null,null,"",""]
[null,1910,null,null,null,null,null,null,0,null,0,null,null,"",""]
[null,1911,null,null,null,null,null,null,0,null,0,null,null,"",""]
[null,1912,null,null,null,null,null,null,0,null,0,null,null,"",""]
[null,1913,null,null,null,null,null,null,0,null,0,null,null,"",""]
[null,1914,null,null,null,null,null,null,0,null,0,null,null,"",""]
[null,1915,null,null,null,null,null,null,0,null,0,null,null,"",""]
[null,1916,null,null,null,null,null,null,0,null,0,null,null,"",""]
[null,1917,null,null,null,null,null,null,0,null,0,null,null,"",""]
[null,1918,null,null,null,null,null,null,0,null,0,null,null,"",""]
[null,1919,null,null,null,null,null,null,0,null,0,null,null,"",""]
[null,1920,null,null,null,null,null,null,0,null,0,null,null,"",""]
[null,1921,null,null,null,null,null,null,0,null,0,null,null,"",""]
[null,1922,null,null,null,null,null,null,0,null,0,null,null,"",""]
[null,1923,null,null,null,null,null,null,0,null,0,null,null,"",""]
[null,1924,null,null,null,null,null,null,0,null,0,null,null,"",""]
[null,1925,null,null,null,null,null,null,0,null,0,null,null,"",""]
[null,1926,null,null,null,null,null,null,0,null,0,null,null,"",""]
[null,1927,null,null,null,null,null,null,0,null,0,null,null,"",""]
[null,1928,null,null,null,null,null,null,0,null,0,null,null,"",""]
[null,1929,null,null,null,null,null,null,0,null,0,null,null,"",""]
[null,1930,null,null,null,null,null,null,0,null,0,null,null,"",""]
[null,1931,null,null,null,null,null,null,0,null,0,null,null,"",""]
[null,1932,null,null,null,null,null,null,0,null,0,null,null,"",""]
[null,1933,null,null,null,null,null,null,0,null,0,null,null,"",""]
[null,1934,null,null,null,null,null,null,0,null,0,null,null,"",""]
[null,1935,null,null,null,null,null,null,0,null,0,null,null,"",""]
[null,1936,null,null,null,null,null,null,0,null,0,null,null,"",""]
[null,1937,null,null,null,null,null,null,0,null,0,null,null,"",""]
[null,1938,null,null,null,null,null,null,0,null,0,null,null,"",""]
[null,1939,null,null,null,null,null,null,{"$f":"E1944-(E1944*H1944)","v":0},null,{"$f":"I1944-J1944","v":0},null,null,{"$f":"IF(L1944=\"\",\"\",IF(D1944=\"إشتراك يومي\",\"\",L1944+$S$6))","v":""},{"$f":"IF(AND($S$7>N1944,K1944>0),\"مطلوب السداد\",\"\")","v":""}]
[null,1940,null,null,null,null,null,null,0,null,0,null,null,"",""]
[null,1941,null,null,null,null,null,null,0,null,0,null,null,"",""]
[null,1942,null,null,null,null,null,null,0,null,0,null,null,"",""]
[null,1943,null,null,null,null,null,null,0,null,0,null,null,"",""]
[null,1944,null,null,null,null,null,null,0,null,0,null,null,"",""]
[null,1945,null,null,null,null,null,null,0,null,0,null,null,"",""]
[null,1946,null,null,null,null,null,null,0,null,0,null,null,"",""]
[null,1947,null,null,null,null,null,null,0,null,0,null,null,"",""]
[null,1948,null,null,null,null,null,null,0,null,0,null,null,"",""]
[null,1949,null,null,null,null,null,null,0,null,0,null,null,"",""]
[null,1950,null,null,null,null,null,null,0,null,0,null,null,"",""]
[null,1951,null,null,null,null,null,null,0,null,0,null,null,"",""]
[null,1952,null,null,null,null,null,null,0,null,0,null,null,"",""]
[null,1953,null,null,null,null,null,null,0,null,0,null,null,"",""]
[null,1954,null,null,null,null,null,null,0,null,0,null,null,"",""]
[null,1955,null,null,null,null,null,null,0,null,0,null,null,"",""]
[null,1956,null,null,null,null,null,null,0,null,0,null,null,"",""]
[null,1957,null,null,null,null,null,null,0,null,0,null,null,"",""]
[null,1958,null,null,null,null,null,null,0,null,0,null,null,"",""]
[null,1959,null,null,null,null,null,null,0,null,0,null,null,"",""]
[null,1960,null,null,null,null,null,null,0,null,0,null,null,"",""]
[null,1961,null,null,null,null,null,null,0,null,0,null,null,"",""]
[null,1962,null,null,null,null,null,null,0,null,0,null,null,"",""]
[null,1963,null,null,null,null,null,null,0,null,0,null,null,"",""]
[null,1964,null,null,null,null,null,null,0,null,0,null,null,"",""]
[null,1965,null,null,null,null,null,null,0,null,0,null,null,"",""]
[null,1966,null,null,null,null,null,null,0,null,0,null,null,"",""]
[null,1967,null,null,null,null,null,null,0,null,0,null,null,"",""]
[null,1968,null,null,null,null,null,null,0,null,0,null,null,"",""]
[null,1969,null,null,null,null,null,null,0,null,0,null,null,"",""]
[null,1970,null,null,null,null,null,null,0,null,0,null,null,"",""]
[null,1971,null,null,null,null,null,null,0,null,0,null,null,"",""]
[null,1972,null,null,null,null,null,null,0,null,0,null,null,"",""]
[null,1973,null,null,null,null,null,null,0,null,0,null,null,"",""]
[null,1974,null,null,null,null,null,null,0,null,0,null,null,"",""]
[null,1975,null,null,null,null,null,null,0,null,0,null,null,"",""]
[null,1976,null,null,null,null,null,null,0,null,0,null,null,"",""]
[null,1977,null,null,null,null,null,null,0,null,0,null,null,"",""]
[null,1978,null,null,null,null,null,null,0,null,0,null,null,"",""]
[null,1979,null,null,null,null,null,null,0,null,0,null,null,"",""]
[null,1980,null,null,null,null,null,null,0,null,0,null,null,"",""]
[null,1981,null,null,null,null,null,null,0,null,0,null,null,"",""]
[null,1982,null,null,null,null,null,null,0,null,0,null,null,"",""]
[null,1983,null,null,null,null,null,null,0,null,0,null,null,"",""]
[null,1984,null,null,null,null,null,null,0,null,0,null,null,"",""]
[null,1985,null,null,null,null,null,null,0,null,0,null,null,"",""]
[null,1986,null,null,null,null,null,null,0,null,0,null,null,"",""]
[null,1987,null,null,null,null,null,null,0,null,0,null,null,"",""]
[null,1988,null,null,null,null,null,null,0,null,0,null,null,"",""]
[null,1989,null,null,null,null,null,null,0,null,0,null,null,"",""]
[null,1990,null,null,null,null,null,null,0,null,0,null,null,"",""]
[null,1991,null,null,null,null,null,null,0,null,0,null,null,"",""]
[null,1992,null,null,null,null,null,null,0,null,0,null,null,"",""]
[null,1993,null,null,null,null,null,null,0,null,0,null,null,"",""]
[null,1994,null,null,null,null,null,null,0,null,0,null,null,"",""]
[null,1995,null,null,null,null,null,null,0,null,0,null,null,"",""]
[null,1996,null,null,null,null,null,null,0,null,0,null,null,"",""]
[null,1997,null,null,null,null,null,null,0,null,0,null,null,"",""]
[null,1998,null,null,null,null,null,null,0,null,0,null,null,"",""]
[null,1999,null,null,null,null,null,null,0,null,0,null,null,"",""]
[null,2000,null,null,null,null,null,null,0,null,0,null,null,"",""]
[null,2001,null,null,null,null,null,null,0,null,0,null,null,"",""]
[null,2002,null,null,null,null,null,null,0,null,0,null,null,"",""]
[null,2003,null,null,null,null,null,null,{"$f":"E2008-(E2008*H2008)","v":0},null,{"$f":"I2008-J2008","v":0},null,null,{"$f":"IF(L2008=\"\",\"\",IF(D2008=\"إشتراك يومي\",\"\",L2008+$S$6))","v":""},{"$f":"IF(AND($S$7>N2008,K2008>0),\"مطلوب السداد\",\"\")","v":""}]
[null,2004,null,null,null,null,null,null,0,null,0,null,null,"",""]
[null,2005,null,null,null,null,null,null,0,null,0,null,null,"",""]
[null,2006,null,null,null,null,null,null,0,null,0,null,null,"",""]
[null,2007,null,null,null,null,null,null,0,null,0,null,null,"",""]
[null,2008,null,null,null,null,null,null,0,null,0,null,null,"",""]
[null,2009,null,null,null,null,null,null,0,null,0,null,null,"",""]
[null,2010,null,null,null,null,null,null,0,null,0,null,null,"",""]
[null,2011,null,null,null,null,null,null,0,null,0,null,null,"",""]
[null,2012,null,null,null,null,null,null,0,null,0,null,null,"",""]
[null,2013,null,null,null,null,null,null,0,null,0,null,null,"",""]
[null,2014,null,null,null,null,null,null,0,null,0,null,null,"",""]
[null,2015,null,null,null,null,null,null,0,null,0,null,null,"",""]
[null,2016,null,null,null,null,null,null,0,null,0,null,null,"",""]
[null,2017,null,null,null,null,null,null,0,null,0,null,null,"",""]
[null,2018,null,null,null,null,null,null,0,null,0,null,null,"",""]
[null,2019,null,null,null,null,null,null,0,null,0,null,null,"",""]
[null,2020,null,null,null,null,null,null,0,null,0,null,null,"",""]
[null,2021,null,null,null,null,null,null,0,null,0,null,null,"",""]
[null,2022,null,null,null,null,null,null,0,null,0,null,null,"",""]
[null,2023,null,null,null,null,null,null,0,null,0,null,null,"",""]
[null,2024,null,null,null,null,null,null,0,null,0,null,null,"",""]
[null,2025,null,null,null,null,null,null,0,null,0,null,null,"",""]
[null,2026,null,null,null,null,null,null,0,null,0,null,null,"",""]
[null,2027,null,null,null,null,null,null,0,null,0,null,null,"",""]
[null,2028,null,null,null,null,null,null,0,null,0,null,null,"",""]
[null,2029,null,null,null,null,null,null,0,null,0,null,null,"",""]
[null,2030,null,null,null,null,null,null,0,null,0,null,null,"",""]
[null,2031,null,null,null,null,null,null,0,null,0,null,null,"",""]
[null,2032,null,null,null,null,null,null,0,null,0,null,null,"",""]
[null,2033,null,null,null,null,null,null,0,null,0,null,null,"",""]
[null,2034,null,null,null,null,null,null,0,null,0,null,null,"",""]
[null,2035,null,null,null,null,null,null,0,null,0,null,null,"",""]
[null,2036,null,null,null,null,null,null,0,null,0,null,null,"",""]
[null,2037,null,null,null,null,null,null,0,null,0,null,null,"",""]
[null,2038,null,null,null,null,null,null,0,null,0,null,null,"",""]
[null,2039,null,null,null,null,null,null,0,null,0,null,null,"",""]
[null,2040,null,null,null,null,null,null,0,null,0,null,null,"",""]
[null,2041,null,null,null,null,null,null,0,null,0,null,null,"",""]
[null,2042,null,null,null,null,null,null,0,null,0,null,null,"",""]
[null,2043,null,null,null,null,null,null,0,null,0,null,null,"",""]
[null,2044,null,null,null,null,null,null,0,null,0,null,null,"",""]
[null,2045,null,null,null,null,null,null,0,null,0,null,null,"",""]
[null,2046,null,null,null,null,null,null,0,null,0,null,null,"",""]
[null,2047,null,null,null,null,null,null,0,null,0,null,null,"",""]
[null,2048,null,null,null,null,null,null,0,null,0,null,null,"",""]
[null,2049,null,null,null,null,null,null,0,null,0,null,null,"",""]
[null,2050,null,null,null,null,null,null,0,null,0,null,null,"",""]
[null,2051,null,null,null,null,null,null,0,null,0,null,null,"",""]
[null,2052,null,null,null,null,null,null,0,null,0,null,null,"",""]
[null,2053,null,null,null,null,null,null,0,null,0,null,null,"",""]
[null,2054,null,null,null,null,null,null,0,null,0,null,null,"",""]
[null,2055,null,null,null,null,null,null,0,null,0,null,null,"",""]
[null,2056,null,null,null,null,null,null,0,null,0,null,null,"",""]
[null,2057,null,null,null,null,null,null,0,null,0,null,null,"",""]
[null,2058,null,null,null,null,null,null,0,null,0,null,null,"",""]
[null,2059,null,null,null,null,null,null,0,null,0,null,null,"",""]
[null,2060,null,null,null,null,null,null,0,null,0,null,null,"",""]
[null,2061,null,null,null,null,null,null,0,null,0,null,null,"",""]
[null,2062,null,null,null,null,null,null,0,null,0,null,null,"",""]
[null,2063,null,null,null,null,null,null,0,null,0,null,null,"",""]
[null,2064,null,null,null,null,null,null,0,null,0,null,null,"",""]
[null,2065,null,null,null,null,null,null,0,null,0,null,null,"",""]
[null,2066,null,null,null,null,null,null,0,null,0,null,null,"",""]
[null,2067,null,null,null,null,null,null,{"$f":"E2072-(E2072*H2072)","v":0},null,{"$f":"I2072-J2072","v":0},null,null,{"$f":"IF(L2072=\"\",\"\",IF(D2072=\"إشتراك يومي\",\"\",L2072+$S$6))","v":""},{"$f":"IF(AND($S$7>N2072,K2072>0),\"مطلوب السداد\",\"\")","v":""}]
[null,2068,null,null,null,null,null,null,0,null,0,null,null,"",""]
[null,2069,null,null,null,null,null,null,0,null,0,null,null,"",""]
[null,2070,null,null,null,null,null,null,0,null,0,null,null,"",""]
[null,2071,null,null,null,null,null,null,0,null,0,null,null,"",""]
[null,2072,null,null,null,null,null,null,0,null,0,null,null,"",""]
[null,2073,null,null,null,null,null,null,0,null,0,null,null,"",""]
[null,2074,null,null,null,null,null,null,0,null,0,null,null,"",""]
[null,2075,null,null,null,null,null,null,0,null,0,null,null,"",""]
[null,2076,null,null,null,null,null,null,0,null,0,null,null,"",""]
[null,2077,null,null,null,null,null,null,0,null,0,null,null,"",""]
[null,2078,null,null,null,null,null,null,0,null,0,null,null,"",""]
[null,2079,null,null,null,null,null,null,0,null,0,null,null,"",""]
[null,2080,null,null,null,null,null,null,0,null,0,null,null,"",""]
[null,2081,null,null,null,null,null,null,0,null,0,null,null,"",""]
[null,2082,null,null,null,null,null,null,0,null,0,null,null,"",""]
[null,2083,null,null,null,null,null,null,0,null,0,null,null,"",""]
[null,2084,null,null,null,null,null,null,0,null,0,null,null,"",""]
[null,2085,null,null,null,null,null,null,0,null,0,null,null,"",""]
[null,2086,null,null,null,null,null,null,0,null,0,null,null,"",""]
[null,2087,null,null,null,null,null,null,0,null,0,null,null,"",""]
[null,2088,null,null,null,null,null,null,0,null,0,null,null,"",""]
[null,2089,null,null,null,null,null,null,0,null,0,null,null,"",""]
[null,2090,null,null,null,null,null,null,0,null,0,null,null,"",""]
[null,2091,null,null,null,null,null,null,0,null,0,null,null,"",""]
[null,2092,null,null,null,null,null,null,0,null,0,null,null,"",""]
[null,2093,null,null,null,null,null,null,0,null,0,null,null,"",""]
[null,2094,null,null,null,null,null,null,0,null,0,null,null,"",""]
[null,2095,null,null,null,null,null,null,0,null,0,null,null,"",""]
[null,2096,null,null,null,null,null,null,0,null,0,null,null,"",""]
[null,2097,null,null,null,null,null,null,0,null,0,null,null,"",""]
[null,2098,null,null,null,null,null,null,0,null,0,null,null,"",""]
[null,2099,null,null,null,null,null,null,0,null,0,null,null,"",""]
[null,2100,null,null,null,null,null,null,0,null,0,null,null,"",""]
[null,2101,null,null,null,null,null,null,0,null,0,null,null,"",""]
[null,2102,null,null,null,null,null,null,0,null,0,null,null,"",""]
[null,2103,null,null,null,null,null,null,0,null,0,null,null,"",""]
[null,2104,null,null,null,null,null,null,0,null,0,null,null,"",""]
[null,2105,null,null,null,null,null,null,0,null,0,null,null,"",""]
[null,2106,null,null,null,null,null,null,0,null,0,null,null,"",""]
[null,2107,null,null,null,null,null,null,0,null,0,null,null,"",""]
[null,2108,null,null,null,null,null,null,0,null,0,null,null,"",""]
[null,2109,null,null,null,null,null,null,0,null,0,null,null,"",""]
[null,2110,null,null,null,null,null,null,0,null,0,null,null,"",""]
[null,2111,null,null,null,null,null,null,0,null,0,null,null,"",""]
[null,2112,null,null,null,null,null,null,0,null,0,null,null,"",""]
[null,2113,null,null,null,null,null,null,0,null,0,null,null,"",""]
[null,2114,null,null,null,null,null,null,0,null,0,null,null,"",""]
[null,2115,null,null,null,null,null,null,0,null,0,null,null,"",""]
[null,2116,null,null,null,null,null,null,0,null,0,null,null,"",""]
[null,2117,null,null,null,null,null,null,0,null,0,null,null,"",""]
[null,2118,null,null,null,null,null,null,0,null,0,null,null,"",""]
[null,2119,null,null,null,null,null,null,0,null,0,null,null,"",""]
[null,2120,null,null,null,null,null,null,0,null,0,null,null,"",""]
[null,2121,null,null,null,null,null,null,0,null,0,null,null,"",""]
[null,2122,null,null,null,null,null,null,0,null,0,null,null,"",""]
[null,2123,null,null,null,null,null,null,0,null,0,null,null,"",""]
[null,2124,null,null,null,null,null,null,0,null,0,null,null,"",""]
[null,2125,null,null,null,null,null,null,0,null,0,null,null,"",""]
[null,2126,null,null,null,null,null,null,0,null,0,null,null,"",""]
[null,2127,null,null,null,null,null,null,0,null,0,null,null,"",""]
[null,2128,null,null,null,null,null,null,0,null,0,null,null,"",""]
[null,2129,null,null,null,null,null,null,0,null,0,null,null,"",""]
[null,2130,null,null,null,null,null,null,0,null,0,null,null,"",""]
[null,2131,null,null,null,null,null,null,{"$f":"E2136-(E2136*H2136)","v":0},null,{"$f":"I2136-J2136","v":0},null,null,{"$f":"IF(L2136=\"\",\"\",IF(D2136=\"إشتراك يومي\",\"\",L2136+$S$6))","v":""},{"$f":"IF(AND($S$7>N2136,K2136>0),\"مطلوب السداد\",\"\")","v":""}]
[null,2132,null,null,null,null,null,null,0,null,0,null,null,"",""]
[null,2133,null,null,null,null,null,null,0,null,0,null,null,"",""]
[null,2134,null,null,null,null,null,null,0,null,0,null,null,"",""]
[null,2135,null,null,null,null,null,null,0,null,0,null,null,"",""]
[null,2136,null,null,null,null,null,null,0,null,0,null,null,"",""]
[null,2137,null,null,null,null,null,null,0,null,0,null,null,"",""]
[null,2138,null,null,null,null,null,null,0,null,0,null,null,"",""]
[null,2139,null,null,null,null,null,null,0,null,0,null,null,"",""]
[null,2140,null,null,null,null,null,null,0,null,0,null,null,"",""]
[null,2141,null,null,null,null,null,null,0,null,0,null,null,"",""]
[null,2142,null,null,null,null,null,null,0,null,0,null,null,"",""]
[null,2143,null,null,null,null,null,null,0,null,0,null,null,"",""]
[null,2144,null,null,null,null,null,null,0,null,0,null,null,"",""]
[null,2145,null,null,null,null,null,null,0,null,0,null,null,"",""]
[null,2146,null,null,null,null,null,null,0,null,0,null,null,"",""]
[null,2147,null,null,null,null,null,null,0,null,0,null,null,"",""]
[null,2148,null,null,null,null,null,null,0,null,0,null,null,"",""]
[null,2149,null,null,null,null,null,null,0,null,0,null,null,"",""]
[null,2150,null,null,null,null,null,null,0,null,0,null,null,"",""]
[null,2151,null,null,null,null,null,null,0,null,0,null,null,"",""]
[null,2152,null,null,null,null,null,null,0,null,0,null,null,"",""]
[null,2153,null,null,null,null,null,null,0,null,0,null,null,"",""]
[null,2154,null,null,null,null,null,null,0,null,0,null,null,"",""]
[null,2155,null,null,null,null,null,null,0,null,0,null,null,"",""]
[null,2156,null,null,null,null,null,null,0,null,0,null,null,"",""]
[null,2157,null,null,null,null,null,null,0,null,0,null,null,"",""]
[null,2158,null,null,null,null,null,null,0,null,0,null,null,"",""]
[null,2159,null,null,null,null,null,null,0,null,0,null,null,"",""]
[null,2160,null,null,null,null,null,null,0,null,0,null,null,"",""]
[null,2161,null,null,null,null,null,null,0,null,0,null,null,"",""]
[null,2162,null,null,null,null,null,null,0,null,0,null,null,"",""]
[null,2163,null,null,null,null,null,null,0,null,0,null,null,"",""]
[null,2164,null,null,null,null,null,null,0,null,0,null,null,"",""]
[null,2165,null,null,null,null,null,null,0,null,0,null,null,"",""]
[null,2166,null,null,null,null,null,null,0,null,0,null,null,"",""]
[null,2167,null,null,null,null,null,null,0,null,0,null,null,"",""]
[null,2168,null,null,null,null,null,null,0,null,0,null,null,"",""]
[null,2169,null,null,null,null,null,null,0,null,0,null,null,"",""]
[null,2170,null,null,null,null,null,null,0,null,0,null,null,"",""]
[null,2171,null,null,null,null,null,null,0,null,0,null,null,"",""]
[null,2172,null,null,null,null,null,null,0,null,0,null,null,"",""]
[null,2173,null,null,null,null,null,null,0,null,0,null,null,"",""]
[null,2174,null,null,null,null,null,null,0,null,0,null,null,"",""]
[null,2175,null,null,null,null,null,null,0,null,0,null,null,"",""]
[null,2176,null,null,null,null,null,null,0,null,0,null,null,"",""]
[null,2177,null,null,null,null,null,null,0,null,0,null,null,"",""]
[null,2178,null,null,null,null,null,null,0,null,0,null,null,"",""]
[null,2179,null,null,null,null,null,null,0,null,0,null,null,"",""]
[null,2180,null,null,null,null,null,null,0,null,0,null,null,"",""]
[null,2181,null,null,null,null,null,null,0,null,0,null,null,"",""]
[null,2182,null,null,null,null,null,null,0,null,0,null,null,"",""]
[null,2183,null,null,null,null,null,null,0,null,0,null,null,"",""]
[null,2184,null,null,null,null,null,null,0,null,0,null,null,"",""]
[null,2185,null,null,null,null,null,null,0,null,0,null,null,"",""]
[null,2186,null,null,null,null,null,null,0,null,0,null,null,"",""]
[null,2187,null,null,null,null,null,null,0,null,0,null,null,"",""]
[null,2188,null,null,null,null,null,null,0,null,0,null,null,"",""]
[null,2189,null,null,null,null,null,null,0,null,0,null,null,"",""]
[null,2190,null,null,null,null,null,null,0,null,0,null,null,"",""]
[null,2191,null,null,null,null,null,null,0,null,0,null,null,"",""]
[null,2192,null,null,null,null,null,null,0,null,0,null,null,"",""]
[null,2193,null,null,null,null,null,null,0,null,0,null,null,"",""]
[null,2194,null,null,null,null,null,null,0,null,0,null,null,"",""]
[null,2195,null,null,null,null,null,null,{"$f":"E2200-(E2200*H2200)","v":0},null,{"$f":"I2200-J2200","v":0},null,null,{"$f":"IF(L2200=\"\",\"\",IF(D2200=\"إشتراك يومي\",\"\",L2200+$S$6))","v":""},{"$f":"IF(AND($S$7>N2200,K2200>0),\"مطلوب السداد\",\"\")","v":""}]
[null,2196,null,null,null,null,null,null,0,null,0,null,null,"",""]
[null,2197,null,null,null,null,null,null,0,null,0,null,null,"",""]
[null,2198,null,null,null,null,null,null,0,null,0,null,null,"",""]
[null,2199,null,null,null,null,null,null,0,null,0,null,null,"",""]
[null,2200,null,null,null,null,null,null,0,null,0,null,null,"",""]
[null,2201,null,null,null,null,null,null,0,null,0,null,null,"",""]
[null,2202,null,null,null,null,null,null,0,null,0,null,null,"",""]
[null,2203,null,null,null,null,null,null,0,null,0,null,null,"",""]
[null,2204,null,null,null,null,null,null,0,null,0,null,null,"",""]
[null,2205,null,null,null,null,null,null,0,null,0,null,null,"",""]
[null,2206,null,null,null,null,null,null,0,null,0,null,null,"",""]
[null,2207,null,null,null,null,null,null,0,null,0,null,null,"",""]
[null,2208,null,null,null,null,null,null,0,null,0,null,null,"",""]
[null,2209,null,null,null,null,null,null,0,null,0,null,null,"",""]
[null,2210,null,null,null,null,null,null,0,null,0,null,null,"",""]
[null,2211,null,null,null,null,null,null,0,null,0,null,null,"",""]
[null,2212,null,null,null,null,null,null,0,null,0,null,null,"",""]
[null,2213,null,null,null,null,null,null,0,null,0,null,null,"",""]
[null,2214,null,null,null,null,null,null,0,null,0,null,null,"",""]
[null,2215,null,null,null,null,null,null,0,null,0,null,null,"",""]
[null,2216,null,null,null,null,null,null,0,null,0,null,null,"",""]
[null,2217,null,null,null,null,null,null,0,null,0,null,null,"",""]
[null,2218,null,null,null,null,null,null,0,null,0,null,null,"",""]
[null,2219,null,null,null,null,null,null,0,null,0,null,null,"",""]
[null,2220,null,null,null,null,null,null,0,null,0,null,null,"",""]
[null,2221,null,null,null,null,null,null,0,null,0,null,null,"",""]
[null,2222,null,null,null,null,null,null,0,null,0,null,null,"",""]
[null,2223,null,null,null,null,null,null,0,null,0,null,null,"",""]
[null,2224,null,null,null,null,null,null,0,null,0,null,null,"",""]
[null,2225,null,null,null,null,null,null,0,null,0,null,null,"",""]
[null,2226,null,null,null,null,null,null,0,null,0,null,null,"",""]
[null,2227,null,null,null,null,null,null,0,null,0,null,null,"",""]
[null,2228,null,null,null,null,null,null,0,null,0,null,null,"",""]
[null,2229,null,null,null,null,null,null,0,null,0,null,null,"",""]
[null,2230,null,null,null,null,null,null,0,null,0,null,null,"",""]
[null,2231,null,null,null,null,null,null,0,null,0,null,null,"",""]
[null,2232,null,null,null,null,null,null,0,null,0,null,null,"",""]
[null,2233,null,null,null,null,null,null,0,null,0,null,null,"",""]
[null,2234,null,null,null,null,null,null,0,null,0,null,null,"",""]
[null,2235,null,null,null,null,null,null,0,null,0,null,null,"",""]
[null,2236,null,null,null,null,null,null,0,null,0,null,null,"",""]
[null,2237,null,null,null,null,null,null,0,null,0,null,null,"",""]
[null,2238,null,null,null,null,null,null,0,null,0,null,null,"",""]
[null,2239,null,null,null,null,null,null,0,null,0,null,null,"",""]
[null,2240,null,null,null,null,null,null,0,null,0,null,null,"",""]
[null,2241,null,null,null,null,null,null,0,null,0,null,null,"",""]
[null,2242,null,null,null,null,null,null,0,null,0,null,null,"",""]
[null,2243,null,null,null,null,null,null,0,null,0,null,null,"",""]
[null,2244,null,null,null,null,null,null,0,null,0,null,null,"",""]
[null,2245,null,null,null,null,null,null,0,null,0,null,null,"",""]
[null,2246,null,null,null,null,null,null,0,null,0,null,null,"",""]
[null,2247,null,null,null,null,null,null,0,null,0,null,null,"",""]
[null,2248,null,null,null,null,null,null,0,null,0,null,null,"",""]
[null,2249,null,null,null,null,null,null,0,null,0,null,null,"",""]
[null,2250,null,null,null,null,null,null,0,null,0,null,null,"",""]
[null,2251,null,null,null,null,null,null,0,null,0,null,null,"",""]
[null,2252,null,null,null,null,null,null,0,null,0,null,null,"",""]
[null,2253,null,null,null,null,null,null,0,null,0,null,null,"",""]
[null,2254,null,null,null,null,null,null,0,null,0,null,null,"",""]
[null,2255,null,null,null,null,null,null,0,null,0,null,null,"",""]
[null,2256,null,null,null,null,null,null,0,null,0,null,null,"",""]
[null,2257,null,null,null,null,null,null,0,null,0,null,null,"",""]
[null,2258,null,null,null,null,null,null,0,null,0,null,null,"",""]
[null,2259,null,null,null,null,null,null,{"$f":"E2264-(E2264*H2264)","v":0},null,{"$f":"I2264-J2264","v":0},null,null,{"$f":"IF(L2264=\"\",\"\",IF(D2264=\"إشتراك يومي\",\"\",L2264+$S$6))","v":""},{"$f":"IF(AND($S$7>N2264,K2264>0),\"مطلوب السداد\",\"\")","v":""}]
[null,2260,null,null,null,null,null,null,0,null,0,null,null,"",""]
[null,2261,null,null,null,null,null,null,0,null,0,null,null,"",""]
[null,2262,null,null,null,null,null,null,0,null,0,null,null,"",""]
[null,2263,null,null,null,null,null,null,0,null,0,null,null,"",""]
[null,2264,null,null,null,null,null,null,0,null,0,null,null,"",""]
[null,2265,null,null,null,null,null,null,0,null,0,null,null,"",""]
[null,2266,null,null,null,null,null,null,0,null,0,null,null,"",""]
[null,2267,null,null,null,null,null,null,0,null,0,null,null,"",""]
[null,2268,null,null,null,null,null,null,0,null,0,null,null,"",""]
[null,2269,null,null,null,null,null,null,0,null,0,null,null,"",""]
[null,2270,null,null,null,null,null,null,0,null,0,null,null,"",""]
[null,2271,null,null,null,null,null,null,0,null,0,null,null,"",""]
[null,2272,null,null,null,null,null,null,0,null,0,null,null,"",""]
[null,2273,null,null,null,null,null,null,0,null,0,null,null,"",""]
[null,2274,null,null,null,null,null,null,0,null,0,null,null,"",""]
[null,2275,null,null,null,null,null,null,0,null,0,null,null,"",""]
[null,2276,null,null,null,null,null,null,0,null,0,null,null,"",""]
[null,2277,null,null,null,null,null,null,0,null,0,null,null,"",""]
[null,2278,null,null,null,null,null,null,0,null,0,null,null,"",""]
[null,2279,null,null,null,null,null,null,0,null,0,null,null,"",""]
[null,2280,null,null,null,null,null,null,0,null,0,null,null,"",""]
[null,2281,null,null,null,null,null,null,0,null,0,null,null,"",""]
[null,2282,null,null,null,null,null,null,0,null,0,null,null,"",""]
[null,2283,null,null,null,null,null,null,0,null,0,null,null,"",""]
[null,2284,null,null,null,null,null,null,0,null,0,null,null,"",""]
[null,2285,null,null,null,null,null,null,0,null,0,null,null,"",""]
[null,2286,null,null,null,null,null,null,0,null,0,null,null,"",""]
[null,2287,null,null,null,null,null,null,0,null,0,null,null,"",""]
[null,2288,null,null,null,null,null,null,0,null,0,null,null,"",""]
[null,2289,null,null,null,null,null,null,0,null,0,null,null,"",""]
[null,2290,null,null,null,null,null,null,0,null,0,null,null,"",""]
[null,2291,null,null,null,null,null,null,0,null,0,null,null,"",""]
[null,2292,null,null,null,null,null,null,0,null,0,null,null,"",""]
[null,2293,null,null,null,null,null,null,0,null,0,null,null,"",""]
[null,2294,null,null,null,null,null,null,0,null,0,null,null,"",""]
[null,2295,null,null,null,null,null,null,0,null,0,null,null,"",""]
[null,2296,null,null,null,null,null,null,0,null,0,null,null,"",""]
[null,2297,null,null,null,null,null,null,0,null,0,null,null,"",""]
[null,2298,null,null,null,null,null,null,0,null,0,null,null,"",""]
[null,2299,null,null,null,null,null,null,0,null,0,null,null,"",""]
[null,2300,null,null,null,null,null,null,0,null,0,null,null,"",""]
[null,2301,null,null,null,null,null,null,0,null,0,null,null,"",""]
[null,2302,null,null,null,null,null,null,0,null,0,null,null,"",""]
[null,2303,null,null,null,null,null,null,0,null,0,null,null,"",""]
[null,2304,null,null,null,null,null,null,0,null,0,null,null,"",""]
[null,2305,null,null,null,null,null,null,0,null,0,null,null,"",""]
[null,2306,null,null,null,null,null,null,0,null,0,null,null,"",""]
[null,2307,null,null,null,null,null,null,0,null,0,null,null,"",""]
[null,2308,null,null,null,null,null,null,0,null,0,null,null,"",""]
[null,2309,null,null,null,null,null,null,0,null,0,null,null,"",""]
[null,2310,null,null,null,null,null,null,0,null,0,null,null,"",""]
[null,2311,null,null,null,null,null,null,0,null,0,null,null,"",""]
[null,2312,null,null,null,null,null,null,0,null,0,null,null,"",""]
[null,2313,null,null,null,null,null,null,0,null,0,null,null,"",""]
[null,2314,null,null,null,null,null,null,0,null,0,null,null,"",""]
[null,2315,null,null,null,null,null,null,0,null,0,null,null,"",""]
[null,2316,null,null,null,null,null,null,0,null,0,null,null,"",""]
[null,2317,null,null,null,null,null,null,0,null,0,null,null,"",""]
[null,2318,null,null,null,null,null,null,0,null,0,null,null,"",""]
[null,2319,null,null,null,null,null,null,0,null,0,null,null,"",""]
[null,2320,null,null,null,null,null,null,0,null,0,null,null,"",""]
[null,2321,null,null,null,null,null,null,0,null,0,null,null,"",""]
[null,2322,null,null,null,null,null,null,0,null,0,null,null,"",""]
[null,2323,null,null,null,null,null,null,{"$f":"E2328-(E2328*H2328)","v":0},null,{"$f":"I2328-J2328","v":0},null,null,{"$f":"IF(L2328=\"\",\"\",IF(D2328=\"إشتراك يومي\",\"\",L2328+$S$6))","v":""},{"$f":"IF(AND($S$7>N2328,K2328>0),\"مطلوب السداد\",\"\")","v":""}]
[null,2324,null,null,null,null,null,null,0,null,0,null,null,"",""]
[null,2325,null,null,null,null,null,null,0,null,0,null,null,"",""]
[null,2326,null,null,null,null,null,null,0,null,0,null,null,"",""]
[null,2327,null,null,null,null,null,null,0,null,0,null,null,"",""]
[null,2328,null,null,null,null,null,null,0,null,0,null,null,"",""]
[null,2329,null,null,null,null,null,null,0,null,0,null,null,"",""]
[null,2330,null,null,null,null,null,null,0,null,0,null,null,"",""]
[null,2331,null,null,null,null,null,null,0,null,0,null,null,"",""]
[null,2332,null,null,null,null,null,null,0,null,0,null,null,"",""]
[null,2333,null,null,null,null,null,null,0,null,0,null,null,"",""]
[null,2334,null,null,null,null,null,null,0,null,0,null,null,"",""]
[null,2335,null,null,null,null,null,null,0,null,0,null,null,"",""]
[null,2336,null,null,null,null,null,null,0,null,0,null,null,"",""]
[null,2337,null,null,null,null,null,null,0,null,0,null,null,"",""]
[null,2338,null,null,null,null,null,null,0,null,0,null,null,"",""]
[null,2339,null,null,null,null,null,null,0,null,0,null,null,"",""]
[null,2340,null,null,null,null,null,null,0,null,0,null,null,"",""]
[null,2341,null,null,null,null,null,null,0,null,0,null,null,"",""]
[null,2342,null,null,null,null,null,null,0,null,0,null,null,"",""]
[null,2343,null,null,null,null,null,null,0,null,0,null,null,"",""]
[null,2344,null,null,null,null,null,null,0,null,0,null,null,"",""]
[null,2345,null,null,null,null,null,null,0,null,0,null,null,"",""]
[null,2346,null,null,null,null,null,null,0,null,0,null,null,"",""]
[null,2347,null,null,null,null,null,null,0,null,0,null,null,"",""]
[null,2348,null,null,null,null,null,null,0,null,0,null,null,"",""]
[null,2349,null,null,null,null,null,null,0,null,0,null,null,"",""]
[null,2350,null,null,null,null,null,null,0,null,0,null,null,"",""]
[null,2351,null,null,null,null,null,null,0,null,0,null,null,"",""]
[null,2352,null,null,null,null,null,null,0,null,0,null,null,"",""]
[null,2353,null,null,null,null,null,null,0,null,0,null,null,"",""]
[null,2354,null,null,null,null,null,null,0,null,0,null,null,"",""]
[null,2355,null,null,null,null,null,null,0,null,0,null,null,"",""]
[null,2356,null,null,null,null,null,null,0,null,0,null,null,"",""]
[null,2357,null,null,null,null,null,null,0,null,0,null,null,"",""]
[null,2358,null,null,null,null,null,null,0,null,0,null,null,"",""]
[null,2359,null,null,null,null,null,null,0,null,0,null,null,"",""]
[null,2360,null,null,null,null,null,null,0,null,0,null,null,"",""]
[null,2361,null,null,null,null,null,null,0,null,0,null,null,"",""]
[null,2362,null,null,null,null,null,null,0,null,0,null,null,"",""]
[null,2363,null,null,null,null,null,null,0,null,0,null,null,"",""]
[null,2364,null,null,null,null,null,null,0,null,0,null,null,"",""]
[null,2365,null,null,null,null,null,null,0,null,0,null,null,"",""]
[null,2366,null,null,null,null,null,null,0,null,0,null,null,"",""]
[null,2367,null,null,null,null,null,null,0,null,0,null,null,"",""]
[null,2368,null,null,null,null,null,null,0,null,0,null,null,"",""]
[null,2369,null,null,null,null,null,null,0,null,0,null,null,"",""]
[null,2370,null,null,null,null,null,null,0,null,0,null,null,"",""]
[null,2371,null,null,null,null,null,null,0,null,0,null,null,"",""]
[null,2372,null,null,null,null,null,null,0,null,0,null,null,"",""]
[null,2373,null,null,null,null,null,null,0,null,0,null,null,"",""]
[null,2374,null,null,null,null,null,null,0,null,0,null,null,"",""]
[null,2375,null,null,null,null,null,null,0,null,0,null,null,"",""]
[null,2376,null,null,null,null,null,null,0,null,0,null,null,"",""]
[null,2377,null,null,null,null,null,null,0,null,0,null,null,"",""]
[null,2378,null,null,null,null,null,null,0,null,0,null,null,"",""]
[null,2379,null,null,null,null,null,null,0,null,0,null,null,"",""]
[null,2380,null,null,null,null,null,null,0,null,0,null,null,"",""]
[null,2381,null,null,null,null,null,null,0,null,0,null,null,"",""]
[null,2382,null,null,null,null,null,null,0,null,0,null,null,"",""]
[null,2383,null,null,null,null,null,null,0,null,0,null,null,"",""]
[null,2384,null,null,null,null,null,null,0,null,0,null,null,"",""]
[null,2385,null,null,null,null,null,null,0,null,0,null,null,"",""]
[null,2386,null,null,null,null,null,null,0,null,0,null,null,"",""]
[null,2387,null,null,null,null,null,null,{"$f":"E2392-(E2392*H2392)","v":0},null,{"$f":"I2392-J2392","v":0},null,null,{"$f":"IF(L2392=\"\",\"\",IF(D2392=\"إشتراك يومي\",\"\",L2392+$S$6))","v":""},{"$f":"IF(AND($S$7>N2392,K2392>0),\"مطلوب السداد\",\"\")","v":""}]
[null,2388,null,null,null,null,null,null,0,null,0,null,null,"",""]
[null,2389,null,null,null,null,null,null,0,null,0,null,null,"",""]
[null,2390,null,null,null,null,null,null,0,null,0,null,null,"",""]
[null,2391,null,null,null,null,null,null,0,null,0,null,null,"",""]
[null,2392,null,null,null,null,null,null,0,null,0,null,null,"",""]
[null,2393,null,null,null,null,null,null,0,null,0,null,null,"",""]
[null,2394,null,null,null,null,null,null,0,null,0,null,null,"",""]
[null,2395,null,null,null,null,null,null,0,null,0,null,null,"",""]
[null,2396,null,null,null,null,null,null,0,null,0,null,null,"",""]
[null,2397,null,null,null,null,null,null,0,null,0,null,null,"",""]
[null,2398,null,null,null,null,null,null,0,null,0,null,null,"",""]
[null,2399,null,null,null,null,null,null,0,null,0,null,null,"",""]
[null,2400,null,null,null,null,null,null,0,null,0,null,null,"",""]
[null,2401,null,null,null,null,null,null,0,null,0,null,null,"",""]
[null,2402,null,null,null,null,null,null,0,null,0,null,null,"",""]
[null,2403,null,null,null,null,null,null,0,null,0,null,null,"",""]
[null,2404,null,null,null,null,null,null,0,null,0,null,null,"",""]
[null,2405,null,null,null,null,null,null,0,null,0,null,null,"",""]
[null,2406,null,null,null,null,null,null,0,null,0,null,null,"",""]
[null,2407,null,null,null,null,null,null,0,null,0,null,null,"",""]
[null,2408,null,null,null,null,null,null,0,null,0,null,null,"",""]
[null,2409,null,null,null,null,null,null,0,null,0,null,null,"",""]
[null,2410,null,null,null,null,null,null,0,null,0,null,null,"",""]
[null,2411,null,null,null,null,null,null,0,null,0,null,null,"",""]
[null,2412,null,null,null,null,null,null,0,null,0,null,null,"",""]
[null,2413,null,null,null,null,null,null,0,null,0,null,null,"",""]
[null,2414,null,null,null,null,null,null,0,null,0,null,null,"",""]
[null,2415,null,null,null,null,null,null,0,null,0,null,null,"",""]
[null,2416,null,null,null,null,null,null,0,null,0,null,null,"",""]
[null,2417,null,null,null,null,null,null,0,null,0,null,null,"",""]
[null,2418,null,null,null,null,null,null,0,null,0,null,null,"",""]
[null,2419,null,null,null,null,null,null,0,null,0,null,null,"",""]
[null,2420,null,null,null,null,null,null,0,null,0,null,null,"",""]
[null,2421,null,null,null,null,null,null,0,null,0,null,null,"",""]
[null,2422,null,null,null,null,null,null,0,null,0,null,null,"",""]
[null,2423,null,null,null,null,null,null,0,null,0,null,null,"",""]
[null,2424,null,null,null,null,null,null,0,null,0,null,null,"",""]
[null,2425,null,null,null,null,null,null,0,null,0,null,null,"",""]
[null,2426,null,null,null,null,null,null,0,null,0,null,null,"",""]
[null,2427,null,null,null,null,null,null,0,null,0,null,null,"",""]
[null,2428,null,null,null,null,null,null,0,null,0,null,null,"",""]
[null,2429,null,null,null,null,null,null,0,null,0,null,null,"",""]
[null,2430,null,null,null,null,null,null,0,null,0,null,null,"",""]
[null,2431,null,null,null,null,null,null,0,null,0,null,null,"",""]
[null,2432,null,null,null,null,null,null,0,null,0,null,null,"",""]
[null,2433,null,null,null,null,null,null,0,null,0,null,null,"",""]
[null,2434,null,null,null,null,null,null,0,null,0,null,null,"",""]
[null,2435,null,null,null,null,null,null,0,null,0,null,null,"",""]
[null,2436,null,null,null,null,null,null,0,null,0,null,null,"",""]
[null,2437,null,null,null,null,null,null,0,null,0,null,null,"",""]
[null,2438,null,null,null,null,null,null,0,null,0,null,null,"",""]
[null,2439,null,null,null,null,null,null,0,null,0,null,null,"",""]
[null,2440,null,null,null,null,null,null,0,null,0,null,null,"",""]
[null,2441,null,null,null,null,null,null,0,null,0,null,null,"",""]
[null,2442,null,null,null,null,null,null,0,null,0,null,null,"",""]
[null,2443,null,null,null,null,null,null,0,null,0,null,null,"",""]
[null,2444,null,null,null,null,null,null,0,null,0,null,null,"",""]
[null,2445,null,null,null,null,null,null,0,null,0,null,null,"",""]
[null,2446,null,null,null,null,null,null,0,null,0,null,null,"",""]
[null,2447,null,null,null,null,null,null,0,null,0,null,null,"",""]
[null,2448,null,null,null,null,null,null,0,null,0,null,null,"",""]
[null,2449,null,null,null,null,null,null,0,null,0,null,null,"",""]
[null,2450,null,null,null,null,null,null,0,null,0,null,null,"",""]
[null,2451,null,null,null,null,null,null,{"$f":"E2456-(E2456*H2456)","v":0},null,{"$f":"I2456-J2456","v":0},null,null,{"$f":"IF(L2456=\"\",\"\",IF(D2456=\"إشتراك يومي\",\"\",L2456+$S$6))","v":""},{"$f":"IF(AND($S$7>N2456,K2456>0),\"مطلوب السداد\",\"\")","v":""}]
[null,2452,null,null,null,null,null,null,0,null,0,null,null,"",""]
[null,2453,null,null,null,null,null,null,0,null,0,null,null,"",""]
[null,2454,null,null,null,null,null,null,0,null,0,null,null,"",""]
[null,2455,null,null,null,null,null,null,0,null,0,null,null,"",""]
[null,2456,null,null,null,null,null,null,0,null,0,null,null,"",""]
[null,2457,null,null,null,null,null,null,0,null,0,null,null,"",""]
[null,2458,null,null,null,null,null,null,0,null,0,null,null,"",""]

{"sheet":"الفاتورة","index":4,"n_rows":31,"n_cols":8,"rows_kept":31,"cut":false,"hidden":false,"merged":[[20,3,20,4],[1,3,1,5],[2,3,2,5],[5,1,5,2],[10,1,10,2],[12,1,12,2],[13,1,13,2],[14,1,14,2],[15,1,15,2],[16,1,16,2],[18,1,18,2],[19,1,19,2],[27,3,27,6],[28,3,28,6],[21,3,21,6],[22,3,22,6],[23,3,23,6],[24,3,24,6],[25,3,25,6],[26,3,26,6]]}
[]
[null,null,null,"فاتورة مبيعات "]
[null,null,null,"  sale invoice"]
[]
[]
[null,{"$f":"IFERROR(VLOOKUP(H6,'سجل الفواتير'!B5:M5000,8,0),\"\")","v":""},null,"ريال S.R",null,null,"رقم الفاتورة /"]
[null,null,null,null,null,null,"التاريخ :",{"$f":"IFERROR(VLOOKUP(H6,'سجل الفواتير'!B5:M5000,11,0),\"\")","v":""}]
[]
[]
[]
[null,{"$f":"IFERROR(VLOOKUP(H6,'سجل الفواتير'!B5:M5000,3,0),\"\")","v":""}]
[]
[null,"         القيمة قبل الخصم :",null,{"$f":"IFERROR(VLOOKUP(H6,'سجل الفواتير'!B5:M5000,4,0),\"\")","v":""}]
[null,"                   الخصم :",null,{"$f":"IFERROR(VLOOKUP(H6,'سجل الفواتير'!B5:M5000,7,0),\"\")","v":""}]
[null,"      الإجمالي بعد الخصم :",null,{"$f":"IFERROR(VLOOKUP(H6,'سجل الفواتير'!B5:M5000,8,0),\"\")","v":""}]
[]
[]
[]
[null,"  استلمنا من السيد /هـ :  ",null,{"$f":"IFERROR(VLOOKUP(H6,'سجل الفواتير'!B5:M5000,2,0),\"\")","v":""}]
[null,"  مبلغ وقدره :",null,{"$f":"IFERROR(VLOOKUP(H6,'سجل الفواتير'!B5:M5000,9,0),\"\")","v":""},null,"المتبقي :",{"$f":"IFERROR(VLOOKUP(H6,'سجل الفواتير'!B5:M5000,10,0),\"\")","v":""}]
[]
[]
[null,null,"الملعب :",{"$f":"IFERROR(VLOOKUP(H6,'سجل الفواتير'!B5:M5000,5,0),\"\")","v":""}]
[null,null,"عدد التمارين :",{"$f":"IFERROR(VLOOKUP(H6,'سجل الفواتير'!B5:M5000,6,0),\"\")","v":""}]
[null,null,"وقت الحجز :",{"$f":"IFERROR(VLOOKUP(H6,'سجل الفواتير'!B5:M5000,12,0),\"\")","v":""}]
[]
[]
[]
[]
[null,null,null,null,null,"المحاسب : ","إسماعيل أبكر"]
[null,null,null,null,null,"التوقيع :"]

{"sheet":"القوائم","index":5,"n_rows":20,"n_cols":15,"rows_kept":20,"cut":false,"hidden":false,"merged":[]}
[]
[]
[null,null,null,null,"أسعار الملاعب ",null,"أسعار الملاعب ",null,"التمارين",null,"مدة الحجز ",null,"الخصم",null,"الأيام"]
[null,null,null,null,250,null,800,null,"تمرين واحد",null,"من 4:30 م إلى 6:00 م",null,0.3,null,"السبت"]
[null,null,null,null,null,null,1600,null,"4 تمارين",null,"من 7:00 م  إلى 8:30 م ",null,0.25,null,"الاحد"]
[null,null,null,null,null,null,2600,null,"8 تمارين",null,"من9:00 م إلى 10:30 م",null,0.2,null,"الإثنين"]
[null,null,null,null,null,null,null,null,"12 تمرين",null,"من10:30 م إلى 12:00 ص",null,0.1,null,"الثلاثاء"]
[null,null,null,null,240,null,null,null,null,null,"من 12:00 ص إلى 1:30 ص",null,0.05,null,"الأربعاء"]
[null,null,null,null,null,null,null,null,null,null,"من 1:30 ص إلى 3:00 ص",null,null,null,"الخميس"]
[null,null,null,null,null,null,760,null,null,null,null,null,null,null,"الجمعة"]
[null,null,null,null,null,null,1520]
[null,null,null,null,220,null,2280]
[]
[]
[null,null,null,null,null,null,680,null,"الملاعب"]
[null,null,null,null,null,null,1360,null,"الملعب الكبير"]
[null,null,null,null,null,null,2040,null,"الملعب الوسط",null,"إشتراك يومي",null,"الإشتراك"]
[null,null,null,null,null,null,null,null,"الملعب الصغير ",null,"إشتراك شهري 4 تمارين",null,"إشتراك يومي"]
[null,null,null,null,null,null,null,null,null,null,"إشتراك شهري 8 تمارين ",null,"إشتراك شهري"]
[null,null,null,null,null,null,null,null,null,null,"إشتراك شهري 12 تمرين"]

{"sheet":"ورقة1","index":6,"n_rows":0,"n_cols":0,"rows_kept":0,"cut":false,"hidden":false,"merged":[]}